Workbook

Sheet 15.6
B9: Trade | C9: Description | E9: Multiplier
B10: New trade | C10: Payer IRS 7Y | E10: 1
B12: Trade 1 | C12: Payer IRS 7Y | E12: 0
B13: Trade 2 | C13: Payer IRS 5Y | E13: 0
B14: Trade 3 | C14: Payer swaption 5x5Y | E14: 1
B15: Trade 4 | C15: xCCY USDJPY | E15: 0
B17: Calculation type
B18: Metric | C18: EPE
B19: Quantile (for PFE) | C19: 0.95
A21: =IF(PFEorEPE="EPE",">0","<0") -> >0 | B21: Exposure | C21: 0 | D21: 0.25 | E21: 0.5 | F21: 0.75 | G21: 1 | H21: 1.25 | I21: 1.5 | J21: 1.75 | K21: 2 | L21: 2.25 | M21: 2.5 | N21: 2.75 | O21: 3 | P21: 3.25 | Q21: 3.5 | R21: 3.75 | S21: 4 | T21: 4.25 | U21: 4.5 | V21: 4.75 | W21: 5 | X21: 5.25 | Y21: 5.5 | Z21: 5.75 | AA21: 6 | AB21: 6.25 | AC21: 6.5 | AD21: 6.75 | AE21: 7
B22: =C10&" (stand-alone)" -> Payer IRS 7Y (stand-alone) | C22: =IF(OR(PFEorEPE="EPE",PFEorEPE="ENE"),SUMIF(C1030:C2029,$A$21)/1000,SMALL(C1030:C2029,Quantile*1000)) -> 1.564353489 | D22: 2.150158548 | E22: 2.563165157 | F22: 2.918397243 | G22: 3.233823884 | H22: 3.560178533 | I22: 3.692088876 | J22: 3.812409597 | K22: 3.836485044 | L22: 3.858475321 | M22: 3.85884392 | N22: 3.822222332 | O22: 3.732658571 | P22: 3.619023212 | Q22: 3.503886576 | R22: 3.348645673 | S22: 3.163986281 | T22: 2.976800673 | U22: 2.792441545 | V22: 2.588115343 | W22: 2.36511411 | X22: 2.131324451 | Y22: 1.893443993 | Z22: 1.645149966 | AA22: 1.382008433 | AB22: 1.104343602 | AC22: 0.8528658333 | AD22: 0.5802266676 | AE22: 0.289456574
B23: Netting Set | C23: =IF(OR(PFEorEPE="EPE",PFEorEPE="ENE"),SUMIF(C28:C1027,$A$21)/1000,SMALL(C28:C1027,1000*Quantile)) -> 3.715804598 | D23: 3.746371145 | E23: 3.655685039 | F23: 3.615861433 | G23: 3.616032328 | H23: 3.662776697 | I23: 3.631402072 | J23: 3.587969547 | K23: 3.509551766 | L23: 3.480994984 | M23: 3.469003958 | N23: 3.430966196 | O23: 3.367331015 | P23: 3.306350351 | Q23: 3.25146106 | R23: 3.165081631 | S23: 3.058837776 | T23: 2.967392285 | U23: 2.850152039 | V23: 2.676568822 | W23: 2.407522294 | X23: 2.311368691 | Y23: 1.962469177 | Z23: 2.138287696 | AA23: 1.772694724 | AB23: 1.933655798 | AC23: 1.580776026 | AD23: 1.723924186 | AE23: 1.343151731
B24: ="Netting Set + "&C10 -> Netting Set + Payer IRS 7Y | C24: =IF(OR(PFEorEPE="EPE",PFEorEPE="ENE"),SUMIF(C2032:C3031,$A$21)/1000,SMALL(C2032:C3031,Quantile*1000)) -> 5.280158086 | D24: 5.513356696 | E24: 5.836449329 | F24: 6.180928244 | G24: 6.540055292 | H24: 6.962642842 | I24: 7.104396909 | J24: 7.199171141 | K24: 7.173913837 | L24: 7.193077182 | M24: 7.203359172 | N24: 7.135110882 | O24: 7.003507854 | P24: 6.845358343 | Q24: 6.688350047 | R24: 6.455779334 | S24: 6.177068104 | T24: 5.909577111 | U24: 5.618739277 | V24: 5.251893207 | W24: 4.771058029 | X24: 4.442693142 | Y24: 3.847349094 | Z24: 3.783090588 | AA24: 3.142090541 | AB24: 3.036014746 | AC24: 2.416048718 | AD24: 2.29891286 | AE24: 1.618889408
B25: =C10&" (incremental)" -> Payer IRS 7Y (incremental) | C25: =C24-C23 -> 1.564353489 | D25: 1.766985551 | E25: 2.18076429 | F25: 2.565066811 | G25: 2.924022964 | H25: 3.299866145 | I25: 3.472994837 | J25: 3.611201595 | K25: 3.664362071 | L25: 3.712082198 | M25: 3.734355214 | N25: 3.704144686 | O25: 3.636176839 | P25: 3.539007992 | Q25: 3.436888987 | R25: 3.290697703 | S25: 3.118230327 | T25: 2.942184826 | U25: 2.768587238 | V25: 2.575324384 | W25: 2.363535735 | X25: 2.131324451 | Y25: 1.884879917 | Z25: 1.644802892 | AA25: 1.369395817 | AB25: 1.102358948 | AC25: 0.8352726918 | AD25: 0.5749886747 | AE25: 0.2757376767
B27: Netting set
B28: Simulation 1 | C28: =Multi1*SimulationData!C3+Multi2*SimulationData!C1005+Multi3*SimulationData!C2007+Multi4*SimulationData!C3009 -> 3.715804598 | D28: =Multi1*SimulationData!D3+Multi2*SimulationData!D1005+Multi3*SimulationData!D2007+Multi4*SimulationData!D3009 -> 2.757058971 | E28: =Multi1*SimulationData!E3+Multi2*SimulationData!E1005+Multi3*SimulationData!E2007+Multi4*SimulationData!E3009 -> 0.4700955433 | F28: =Multi1*SimulationData!F3+Multi2*SimulationData!F1005+Multi3*SimulationData!F2007+Multi4*SimulationData!F3009 -> 2.626791541 | G28: =Multi1*SimulationData!G3+Multi2*SimulationData!G1005+Multi3*SimulationData!G2007+Multi4*SimulationData!G3009 -> 2.863454407 | H28: =Multi1*SimulationData!H3+Multi2*SimulationData!H1005+Multi3*SimulationData!H2007+Multi4*SimulationData!H3009 -> 2.949998148 | I28: =Multi1*SimulationData!I3+Multi2*SimulationData!I1005+Multi3*SimulationData!I2007+Multi4*SimulationData!I3009 -> 3.885744385 | J28: =Multi1*SimulationData!J3+Multi2*SimulationData!J1005+Multi3*SimulationData!J2007+Multi4*SimulationData!J3009 -> 4.525343038 | K28: =Multi1*SimulationData!K3+Multi2*SimulationData!K1005+Multi3*SimulationData!K2007+Multi4*SimulationData!K3009 -> 4.417244357 | L28: =Multi1*SimulationData!L3+Multi2*SimulationData!L1005+Multi3*SimulationData!L2007+Multi4*SimulationData!L3009 -> 4.514861006 | M28: =Multi1*SimulationData!M3+Multi2*SimulationData!M1005+Multi3*SimulationData!M2007+Multi4*SimulationData!M3009 -> 4.403956321 | N28: =Multi1*SimulationData!N3+Multi2*SimulationData!N1005+Multi3*SimulationData!N2007+Multi4*SimulationData!N3009 -> 5.131344836 | O28: =Multi1*SimulationData!O3+Multi2*SimulationData!O1005+Multi3*SimulationData!O2007+Multi4*SimulationData!O3009 -> 5.573993369 | P28: =Multi1*SimulationData!P3+Multi2*SimulationData!P1005+Multi3*SimulationData!P2007+Multi4*SimulationData!P3009 -> 5.008124151 | Q28: =Multi1*SimulationData!Q3+Multi2*SimulationData!Q1005+Multi3*SimulationData!Q2007+Multi4*SimulationData!Q3009 -> 4.824912425 | R28: =Multi1*SimulationData!R3+Multi2*SimulationData!R1005+Multi3*SimulationData!R2007+Multi4*SimulationData!R3009 -> 4.930109912 | S28: =Multi1*SimulationData!S3+Multi2*SimulationData!S1005+Multi3*SimulationData!S2007+Multi4*SimulationData!S3009 -> 4.790889618 | T28: =Multi1*SimulationData!T3+Multi2*SimulationData!T1005+Multi3*SimulationData!T2007+Multi4*SimulationData!T3009 -> 4.3877259 | U28: =Multi1*SimulationData!U3+Multi2*SimulationData!U1005+Multi3*SimulationData!U2007+Multi4*SimulationData!U3009 -> 4.223844508 | V28: =Multi1*SimulationData!V3+Multi2*SimulationData!V1005+Multi3*SimulationData!V2007+Multi4*SimulationData!V3009 -> 3.6678008 | W28: =Multi1*SimulationData!W3+Multi2*SimulationData!W1005+Multi3*SimulationData!W2007+Multi4*SimulationData!W3009 -> 2.992879444 | X28: =Multi1*SimulationData!X3+Multi2*SimulationData!X1005+Multi3*SimulationData!X2007+Multi4*SimulationData!X3009 -> 2.907666618 | Y28: =Multi1*SimulationData!Y3+Multi2*SimulationData!Y1005+Multi3*SimulationData!Y2007+Multi4*SimulationData!Y3009 -> 2.194899879 | Z28: =Multi1*SimulationData!Z3+Multi2*SimulationData!Z1005+Multi3*SimulationData!Z2007+Multi4*SimulationData!Z3009 -> 2.746225886 | AA28: =Multi1*SimulationData!AA3+Multi2*SimulationData!AA1005+Multi3*SimulationData!AA2007+Multi4*SimulationData!AA3009 -> 2.020006552 | AB28: =Multi1*SimulationData!AB3+Multi2*SimulationData!AB1005+Multi3*SimulationData!AB2007+Multi4*SimulationData!AB3009 -> 2.542435483 | AC28: =Multi1*SimulationData!AC3+Multi2*SimulationData!AC1005+Multi3*SimulationData!AC2007+Multi4*SimulationData!AC3009 -> 1.828261034 | AD28: =Multi1*SimulationData!AD3+Multi2*SimulationData!AD1005+Multi3*SimulationData!AD2007+Multi4*SimulationData!AD3009 -> 2.287016629 | AE28: =Multi1*SimulationData!AE3+Multi2*SimulationData!AE1005+Multi3*SimulationData!AE2007+Multi4*SimulationData!AE3009 -> 1.508352723
B29: Simulation 2 | C29: =Multi1*SimulationData!C4+Multi2*SimulationData!C1006+Multi3*SimulationData!C2008+Multi4*SimulationData!C3010 -> 3.715804598 | D29: =Multi1*SimulationData!D4+Multi2*SimulationData!D1006+Multi3*SimulationData!D2008+Multi4*SimulationData!D3010 -> 5.990567802 | E29: =Multi1*SimulationData!E4+Multi2*SimulationData!E1006+Multi3*SimulationData!E2008+Multi4*SimulationData!E3010 -> 5.534099897 | F29: =Multi1*SimulationData!F4+Multi2*SimulationData!F1006+Multi3*SimulationData!F2008+Multi4*SimulationData!F3010 -> 4.068829739 | G29: =Multi1*SimulationData!G4+Multi2*SimulationData!G1006+Multi3*SimulationData!G2008+Multi4*SimulationData!G3010 -> 1.854736987 | H29: =Multi1*SimulationData!H4+Multi2*SimulationData!H1006+Multi3*SimulationData!H2008+Multi4*SimulationData!H3010 -> 1.62282051 | I29: =Multi1*SimulationData!I4+Multi2*SimulationData!I1006+Multi3*SimulationData!I2008+Multi4*SimulationData!I3010 -> 2.43696579 | J29: =Multi1*SimulationData!J4+Multi2*SimulationData!J1006+Multi3*SimulationData!J2008+Multi4*SimulationData!J3010 -> 1.443045922 | K29: =Multi1*SimulationData!K4+Multi2*SimulationData!K1006+Multi3*SimulationData!K2008+Multi4*SimulationData!K3010 -> 2.41911471 | L29: =Multi1*SimulationData!L4+Multi2*SimulationData!L1006+Multi3*SimulationData!L2008+Multi4*SimulationData!L3010 -> 2.718465384 | M29: =Multi1*SimulationData!M4+Multi2*SimulationData!M1006+Multi3*SimulationData!M2008+Multi4*SimulationData!M3010 -> 3.006436163 | N29: =Multi1*SimulationData!N4+Multi2*SimulationData!N1006+Multi3*SimulationData!N2008+Multi4*SimulationData!N3010 -> 3.661427203 | O29: =Multi1*SimulationData!O4+Multi2*SimulationData!O1006+Multi3*SimulationData!O2008+Multi4*SimulationData!O3010 -> 4.373895598 | P29: =Multi1*SimulationData!P4+Multi2*SimulationData!P1006+Multi3*SimulationData!P2008+Multi4*SimulationData!P3010 -> 4.016877962 | Q29: =Multi1*SimulationData!Q4+Multi2*SimulationData!Q1006+Multi3*SimulationData!Q2008+Multi4*SimulationData!Q3010 -> 3.722031187 | R29: =Multi1*SimulationData!R4+Multi2*SimulationData!R1006+Multi3*SimulationData!R2008+Multi4*SimulationData!R3010 -> 2.580707147 | S29: =Multi1*SimulationData!S4+Multi2*SimulationData!S1006+Multi3*SimulationData!S2008+Multi4*SimulationData!S3010 -> 2.733497503 | T29: =Multi1*SimulationData!T4+Multi2*SimulationData!T1006+Multi3*SimulationData!T2008+Multi4*SimulationData!T3010 -> 2.636229201 | U29: =Multi1*SimulationData!U4+Multi2*SimulationData!U1006+Multi3*SimulationData!U2008+Multi4*SimulationData!U3010 -> 2.547424447 | V29: =Multi1*SimulationData!V4+Multi2*SimulationData!V1006+Multi3*SimulationData!V2008+Multi4*SimulationData!V3010 -> 2.259448611 | W29: =Multi1*SimulationData!W4+Multi2*SimulationData!W1006+Multi3*SimulationData!W2008+Multi4*SimulationData!W3010 -> 1.665434843 | X29: =Multi1*SimulationData!X4+Multi2*SimulationData!X1006+Multi3*SimulationData!X2008+Multi4*SimulationData!X3010 -> 1.419165832 | Y29: =Multi1*SimulationData!Y4+Multi2*SimulationData!Y1006+Multi3*SimulationData!Y2008+Multi4*SimulationData!Y3010 -> 1.012094866 | Z29: =Multi1*SimulationData!Z4+Multi2*SimulationData!Z1006+Multi3*SimulationData!Z2008+Multi4*SimulationData!Z3010 -> 1.791553403 | AA29: =Multi1*SimulationData!AA4+Multi2*SimulationData!AA1006+Multi3*SimulationData!AA2008+Multi4*SimulationData!AA3010 -> 1.305819421 | AB29: =Multi1*SimulationData!AB4+Multi2*SimulationData!AB1006+Multi3*SimulationData!AB2008+Multi4*SimulationData!AB3010 -> 2.023217919 | AC29: =Multi1*SimulationData!AC4+Multi2*SimulationData!AC1006+Multi3*SimulationData!AC2008+Multi4*SimulationData!AC3010 -> 1.505461341 | AD29: =Multi1*SimulationData!AD4+Multi2*SimulationData!AD1006+Multi3*SimulationData!AD2008+Multi4*SimulationData!AD3010 -> 2.134311572 | AE29: =Multi1*SimulationData!AE4+Multi2*SimulationData!AE1006+Multi3*SimulationData!AE2008+Multi4*SimulationData!AE3010 -> 1.507809371
B30: Simulation 3 | C30: =Multi1*SimulationData!C5+Multi2*SimulationData!C1007+Multi3*SimulationData!C2009+Multi4*SimulationData!C3011 -> 3.715804598 | D30: =Multi1*SimulationData!D5+Multi2*SimulationData!D1007+Multi3*SimulationData!D2009+Multi4*SimulationData!D3011 -> 2.69601066 | E30: =Multi1*SimulationData!E5+Multi2*SimulationData!E1007+Multi3*SimulationData!E2009+Multi4*SimulationData!E3011 -> 3.385716244 | F30: =Multi1*SimulationData!F5+Multi2*SimulationData!F1007+Multi3*SimulationData!F2009+Multi4*SimulationData!F3011 -> 3.773993176 | G30: =Multi1*SimulationData!G5+Multi2*SimulationData!G1007+Multi3*SimulationData!G2009+Multi4*SimulationData!G3011 -> 6.863589812 | H30: =Multi1*SimulationData!H5+Multi2*SimulationData!H1007+Multi3*SimulationData!H2009+Multi4*SimulationData!H3011 -> 6.018112456 | I30: =Multi1*SimulationData!I5+Multi2*SimulationData!I1007+Multi3*SimulationData!I2009+Multi4*SimulationData!I3011 -> 2.295303756 | J30: =Multi1*SimulationData!J5+Multi2*SimulationData!J1007+Multi3*SimulationData!J2009+Multi4*SimulationData!J3011 -> 2.475146409 | K30: =Multi1*SimulationData!K5+Multi2*SimulationData!K1007+Multi3*SimulationData!K2009+Multi4*SimulationData!K3011 -> 1.549049106 | L30: =Multi1*SimulationData!L5+Multi2*SimulationData!L1007+Multi3*SimulationData!L2009+Multi4*SimulationData!L3011 -> 0.967177825 | M30: =Multi1*SimulationData!M5+Multi2*SimulationData!M1007+Multi3*SimulationData!M2009+Multi4*SimulationData!M3011 -> 1.153073178 | N30: =Multi1*SimulationData!N5+Multi2*SimulationData!N1007+Multi3*SimulationData!N2009+Multi4*SimulationData!N3011 -> 1.771363817 | O30: =Multi1*SimulationData!O5+Multi2*SimulationData!O1007+Multi3*SimulationData!O2009+Multi4*SimulationData!O3011 -> 1.183112394 | P30: =Multi1*SimulationData!P5+Multi2*SimulationData!P1007+Multi3*SimulationData!P2009+Multi4*SimulationData!P3011 -> 1.83868986 | Q30: =Multi1*SimulationData!Q5+Multi2*SimulationData!Q1007+Multi3*SimulationData!Q2009+Multi4*SimulationData!Q3011 -> 1.662890991 | R30: =Multi1*SimulationData!R5+Multi2*SimulationData!R1007+Multi3*SimulationData!R2009+Multi4*SimulationData!R3011 -> 1.152026127 | S30: =Multi1*SimulationData!S5+Multi2*SimulationData!S1007+Multi3*SimulationData!S2009+Multi4*SimulationData!S3011 -> 0.7340141493 | T30: =Multi1*SimulationData!T5+Multi2*SimulationData!T1007+Multi3*SimulationData!T2009+Multi4*SimulationData!T3011 -> 0.3681207117 | U30: =Multi1*SimulationData!U5+Multi2*SimulationData!U1007+Multi3*SimulationData!U2009+Multi4*SimulationData!U3011 -> 0.2575405745 | V30: =Multi1*SimulationData!V5+Multi2*SimulationData!V1007+Multi3*SimulationData!V2009+Multi4*SimulationData!V3011 -> 0.1249848503 | W30: =Multi1*SimulationData!W5+Multi2*SimulationData!W1007+Multi3*SimulationData!W2009+Multi4*SimulationData!W3011 -> 0.003112572322 | X30: =Multi1*SimulationData!X5+Multi2*SimulationData!X1007+Multi3*SimulationData!X2009+Multi4*SimulationData!X3011 -> 0 | Y30: =Multi1*SimulationData!Y5+Multi2*SimulationData!Y1007+Multi3*SimulationData!Y2009+Multi4*SimulationData!Y3011 -> 0 | Z30: =Multi1*SimulationData!Z5+Multi2*SimulationData!Z1007+Multi3*SimulationData!Z2009+Multi4*SimulationData!Z3011 -> 0 | AA30: =Multi1*SimulationData!AA5+Multi2*SimulationData!AA1007+Multi3*SimulationData!AA2009+Multi4*SimulationData!AA3011 -> 0 | AB30: =Multi1*SimulationData!AB5+Multi2*SimulationData!AB1007+Multi3*SimulationData!AB2009+Multi4*SimulationData!AB3011 -> 0 | AC30: =Multi1*SimulationData!AC5+Multi2*SimulationData!AC1007+Multi3*SimulationData!AC2009+Multi4*SimulationData!AC3011 -> 0 | AD30: =Multi1*SimulationData!AD5+Multi2*SimulationData!AD1007+Multi3*SimulationData!AD2009+Multi4*SimulationData!AD3011 -> 0 | AE30: =Multi1*SimulationData!AE5+Multi2*SimulationData!AE1007+Multi3*SimulationData!AE2009+Multi4*SimulationData!AE3011 -> 0
B31: Simulation 4 | C31: =Multi1*SimulationData!C6+Multi2*SimulationData!C1008+Multi3*SimulationData!C2010+Multi4*SimulationData!C3012 -> 3.715804598 | D31: =Multi1*SimulationData!D6+Multi2*SimulationData!D1008+Multi3*SimulationData!D2010+Multi4*SimulationData!D3012 -> 2.88470319 | E31: =Multi1*SimulationData!E6+Multi2*SimulationData!E1008+Multi3*SimulationData!E2010+Multi4*SimulationData!E3012 -> 3.749011048 | F31: =Multi1*SimulationData!F6+Multi2*SimulationData!F1008+Multi3*SimulationData!F2010+Multi4*SimulationData!F3012 -> 3.93210882 | G31: =Multi1*SimulationData!G6+Multi2*SimulationData!G1008+Multi3*SimulationData!G2010+Multi4*SimulationData!G3012 -> 1.851973543 | H31: =Multi1*SimulationData!H6+Multi2*SimulationData!H1008+Multi3*SimulationData!H2010+Multi4*SimulationData!H3012 -> 1.377092559 | I31: =Multi1*SimulationData!I6+Multi2*SimulationData!I1008+Multi3*SimulationData!I2010+Multi4*SimulationData!I3012 -> 1.256186806 | J31: =Multi1*SimulationData!J6+Multi2*SimulationData!J1008+Multi3*SimulationData!J2010+Multi4*SimulationData!J3012 -> 0.8497888324 | K31: =Multi1*SimulationData!K6+Multi2*SimulationData!K1008+Multi3*SimulationData!K2010+Multi4*SimulationData!K3012 -> 0.7617161679 | L31: =Multi1*SimulationData!L6+Multi2*SimulationData!L1008+Multi3*SimulationData!L2010+Multi4*SimulationData!L3012 -> 0.7393463832 | M31: =Multi1*SimulationData!M6+Multi2*SimulationData!M1008+Multi3*SimulationData!M2010+Multi4*SimulationData!M3012 -> 0.5896372482 | N31: =Multi1*SimulationData!N6+Multi2*SimulationData!N1008+Multi3*SimulationData!N2010+Multi4*SimulationData!N3012 -> 0.6471332947 | O31: =Multi1*SimulationData!O6+Multi2*SimulationData!O1008+Multi3*SimulationData!O2010+Multi4*SimulationData!O3012 -> 0.6551280794 | P31: =Multi1*SimulationData!P6+Multi2*SimulationData!P1008+Multi3*SimulationData!P2010+Multi4*SimulationData!P3012 -> 0.4766732838 | Q31: =Multi1*SimulationData!Q6+Multi2*SimulationData!Q1008+Multi3*SimulationData!Q2010+Multi4*SimulationData!Q3012 -> 0.2760946582 | R31: =Multi1*SimulationData!R6+Multi2*SimulationData!R1008+Multi3*SimulationData!R2010+Multi4*SimulationData!R3012 -> 0.328395863 | S31: =Multi1*SimulationData!S6+Multi2*SimulationData!S1008+Multi3*SimulationData!S2010+Multi4*SimulationData!S3012 -> 0.08749717168 | T31: =Multi1*SimulationData!T6+Multi2*SimulationData!T1008+Multi3*SimulationData!T2010+Multi4*SimulationData!T3012 -> 0.109156232 | U31: =Multi1*SimulationData!U6+Multi2*SimulationData!U1008+Multi3*SimulationData!U2010+Multi4*SimulationData!U3012 -> 0.05428745207 | V31: =Multi1*SimulationData!V6+Multi2*SimulationData!V1008+Multi3*SimulationData!V2010+Multi4*SimulationData!V3012 -> 0.01316035626 | W31: =Multi1*SimulationData!W6+Multi2*SimulationData!W1008+Multi3*SimulationData!W2010+Multi4*SimulationData!W3012 -> 2.492592383e-06 | X31: =Multi1*SimulationData!X6+Multi2*SimulationData!X1008+Multi3*SimulationData!X2010+Multi4*SimulationData!X3012 -> 0 | Y31: =Multi1*SimulationData!Y6+Multi2*SimulationData!Y1008+Multi3*SimulationData!Y2010+Multi4*SimulationData!Y3012 -> 0 | Z31: =Multi1*SimulationData!Z6+Multi2*SimulationData!Z1008+Multi3*SimulationData!Z2010+Multi4*SimulationData!Z3012 -> 0 | AA31: =Multi1*SimulationData!AA6+Multi2*SimulationData!AA1008+Multi3*SimulationData!AA2010+Multi4*SimulationData!AA3012 -> 0 | AB31: =Multi1*SimulationData!AB6+Multi2*SimulationData!AB1008+Multi3*SimulationData!AB2010+Multi4*SimulationData!AB3012 -> 0 | AC31: =Multi1*SimulationData!AC6+Multi2*SimulationData!AC1008+Multi3*SimulationData!AC2010+Multi4*SimulationData!AC3012 -> 0 | AD31: =Multi1*SimulationData!AD6+Multi2*SimulationData!AD1008+Multi3*SimulationData!AD2010+Multi4*SimulationData!AD3012 -> 0 | AE31: =Multi1*SimulationData!AE6+Multi2*SimulationData!AE1008+Multi3*SimulationData!AE2010+Multi4*SimulationData!AE3012 -> 0
B32: Simulation 5 | C32: =Multi1*SimulationData!C7+Multi2*SimulationData!C1009+Multi3*SimulationData!C2011+Multi4*SimulationData!C3013 -> 3.715804598 | D32: =Multi1*SimulationData!D7+Multi2*SimulationData!D1009+Multi3*SimulationData!D2011+Multi4*SimulationData!D3013 -> 4.625893663 | E32: =Multi1*SimulationData!E7+Multi2*SimulationData!E1009+Multi3*SimulationData!E2011+Multi4*SimulationData!E3013 -> 6.119103263 | F32: =Multi1*SimulationData!F7+Multi2*SimulationData!F1009+Multi3*SimulationData!F2011+Multi4*SimulationData!F3013 -> 6.673219117 | G32: =Multi1*SimulationData!G7+Multi2*SimulationData!G1009+Multi3*SimulationData!G2011+Multi4*SimulationData!G3013 -> 8.478544713 | H32: =Multi1*SimulationData!H7+Multi2*SimulationData!H1009+Multi3*SimulationData!H2011+Multi4*SimulationData!H3013 -> 6.552827032 | I32: =Multi1*SimulationData!I7+Multi2*SimulationData!I1009+Multi3*SimulationData!I2011+Multi4*SimulationData!I3013 -> 9.668993912 | J32: =Multi1*SimulationData!J7+Multi2*SimulationData!J1009+Multi3*SimulationData!J2011+Multi4*SimulationData!J3013 -> 6.800979469 | K32: =Multi1*SimulationData!K7+Multi2*SimulationData!K1009+Multi3*SimulationData!K2011+Multi4*SimulationData!K3013 -> 6.833376454 | L32: =Multi1*SimulationData!L7+Multi2*SimulationData!L1009+Multi3*SimulationData!L2011+Multi4*SimulationData!L3013 -> 6.072816823 | M32: =Multi1*SimulationData!M7+Multi2*SimulationData!M1009+Multi3*SimulationData!M2011+Multi4*SimulationData!M3013 -> 6.054249612 | N32: =Multi1*SimulationData!N7+Multi2*SimulationData!N1009+Multi3*SimulationData!N2011+Multi4*SimulationData!N3013 -> 4.511995945 | O32: =Multi1*SimulationData!O7+Multi2*SimulationData!O1009+Multi3*SimulationData!O2011+Multi4*SimulationData!O3013 -> 4.95694164 | P32: =Multi1*SimulationData!P7+Multi2*SimulationData!P1009+Multi3*SimulationData!P2011+Multi4*SimulationData!P3013 -> 4.947364833 | Q32: =Multi1*SimulationData!Q7+Multi2*SimulationData!Q1009+Multi3*SimulationData!Q2011+Multi4*SimulationData!Q3013 -> 5.272057402 | R32: =Multi1*SimulationData!R7+Multi2*SimulationData!R1009+Multi3*SimulationData!R2011+Multi4*SimulationData!R3013 -> 5.530583632 | S32: =Multi1*SimulationData!S7+Multi2*SimulationData!S1009+Multi3*SimulationData!S2011+Multi4*SimulationData!S3013 -> 5.17614729 | T32: =Multi1*SimulationData!T7+Multi2*SimulationData!T1009+Multi3*SimulationData!T2011+Multi4*SimulationData!T3013 -> 4.836309267 | U32: =Multi1*SimulationData!U7+Multi2*SimulationData!U1009+Multi3*SimulationData!U2011+Multi4*SimulationData!U3013 -> 4.473205091 | V32: =Multi1*SimulationData!V7+Multi2*SimulationData!V1009+Multi3*SimulationData!V2011+Multi4*SimulationData!V3013 -> 4.295689672 | W32: =Multi1*SimulationData!W7+Multi2*SimulationData!W1009+Multi3*SimulationData!W2011+Multi4*SimulationData!W3013 -> 4.002182497 | X32: =Multi1*SimulationData!X7+Multi2*SimulationData!X1009+Multi3*SimulationData!X2011+Multi4*SimulationData!X3013 -> 3.830714903 | Y32: =Multi1*SimulationData!Y7+Multi2*SimulationData!Y1009+Multi3*SimulationData!Y2011+Multi4*SimulationData!Y3013 -> 3.216528764 | Z32: =Multi1*SimulationData!Z7+Multi2*SimulationData!Z1009+Multi3*SimulationData!Z2011+Multi4*SimulationData!Z3013 -> 3.797550988 | AA32: =Multi1*SimulationData!AA7+Multi2*SimulationData!AA1009+Multi3*SimulationData!AA2011+Multi4*SimulationData!AA3013 -> 3.138424491 | AB32: =Multi1*SimulationData!AB7+Multi2*SimulationData!AB1009+Multi3*SimulationData!AB2011+Multi4*SimulationData!AB3013 -> 3.717588802 | AC32: =Multi1*SimulationData!AC7+Multi2*SimulationData!AC1009+Multi3*SimulationData!AC2011+Multi4*SimulationData!AC3013 -> 3.056531796 | AD32: =Multi1*SimulationData!AD7+Multi2*SimulationData!AD1009+Multi3*SimulationData!AD2011+Multi4*SimulationData!AD3013 -> 3.557865228 | AE32: =Multi1*SimulationData!AE7+Multi2*SimulationData!AE1009+Multi3*SimulationData!AE2011+Multi4*SimulationData!AE3013 -> 2.807504402
B33: Simulation 6 | C33: =Multi1*SimulationData!C8+Multi2*SimulationData!C1010+Multi3*SimulationData!C2012+Multi4*SimulationData!C3014 -> 3.715804598 | D33: =Multi1*SimulationData!D8+Multi2*SimulationData!D1010+Multi3*SimulationData!D2012+Multi4*SimulationData!D3014 -> 1.123640734 | E33: =Multi1*SimulationData!E8+Multi2*SimulationData!E1010+Multi3*SimulationData!E2012+Multi4*SimulationData!E3014 -> 2.090377905 | F33: =Multi1*SimulationData!F8+Multi2*SimulationData!F1010+Multi3*SimulationData!F2012+Multi4*SimulationData!F3014 -> 1.850160174 | G33: =Multi1*SimulationData!G8+Multi2*SimulationData!G1010+Multi3*SimulationData!G2012+Multi4*SimulationData!G3014 -> 3.997802419 | H33: =Multi1*SimulationData!H8+Multi2*SimulationData!H1010+Multi3*SimulationData!H2012+Multi4*SimulationData!H3014 -> 1.307667417 | I33: =Multi1*SimulationData!I8+Multi2*SimulationData!I1010+Multi3*SimulationData!I2012+Multi4*SimulationData!I3014 -> 1.156234574 | J33: =Multi1*SimulationData!J8+Multi2*SimulationData!J1010+Multi3*SimulationData!J2012+Multi4*SimulationData!J3014 -> 1.302656049 | K33: =Multi1*SimulationData!K8+Multi2*SimulationData!K1010+Multi3*SimulationData!K2012+Multi4*SimulationData!K3014 -> 2.329055465 | L33: =Multi1*SimulationData!L8+Multi2*SimulationData!L1010+Multi3*SimulationData!L2012+Multi4*SimulationData!L3014 -> 1.931401168 | M33: =Multi1*SimulationData!M8+Multi2*SimulationData!M1010+Multi3*SimulationData!M2012+Multi4*SimulationData!M3014 -> 1.853225818 | N33: =Multi1*SimulationData!N8+Multi2*SimulationData!N1010+Multi3*SimulationData!N2012+Multi4*SimulationData!N3014 -> 1.831032728 | O33: =Multi1*SimulationData!O8+Multi2*SimulationData!O1010+Multi3*SimulationData!O2012+Multi4*SimulationData!O3014 -> 1.517030554 | P33: =Multi1*SimulationData!P8+Multi2*SimulationData!P1010+Multi3*SimulationData!P2012+Multi4*SimulationData!P3014 -> 1.056408103 | Q33: =Multi1*SimulationData!Q8+Multi2*SimulationData!Q1010+Multi3*SimulationData!Q2012+Multi4*SimulationData!Q3014 -> 0.8794880849 | R33: =Multi1*SimulationData!R8+Multi2*SimulationData!R1010+Multi3*SimulationData!R2012+Multi4*SimulationData!R3014 -> 0.8873658006 | S33: =Multi1*SimulationData!S8+Multi2*SimulationData!S1010+Multi3*SimulationData!S2012+Multi4*SimulationData!S3014 -> 1.307591083 | T33: =Multi1*SimulationData!T8+Multi2*SimulationData!T1010+Multi3*SimulationData!T2012+Multi4*SimulationData!T3014 -> 1.294225386 | U33: =Multi1*SimulationData!U8+Multi2*SimulationData!U1010+Multi3*SimulationData!U2012+Multi4*SimulationData!U3014 -> 1.02501308 | V33: =Multi1*SimulationData!V8+Multi2*SimulationData!V1010+Multi3*SimulationData!V2012+Multi4*SimulationData!V3014 -> 0.7682439996 | W33: =Multi1*SimulationData!W8+Multi2*SimulationData!W1010+Multi3*SimulationData!W2012+Multi4*SimulationData!W3014 -> 0.2205012565 | X33: =Multi1*SimulationData!X8+Multi2*SimulationData!X1010+Multi3*SimulationData!X2012+Multi4*SimulationData!X3014 -> 0 | Y33: =Multi1*SimulationData!Y8+Multi2*SimulationData!Y1010+Multi3*SimulationData!Y2012+Multi4*SimulationData!Y3014 -> 0 | Z33: =Multi1*SimulationData!Z8+Multi2*SimulationData!Z1010+Multi3*SimulationData!Z2012+Multi4*SimulationData!Z3014 -> 0 | AA33: =Multi1*SimulationData!AA8+Multi2*SimulationData!AA1010+Multi3*SimulationData!AA2012+Multi4*SimulationData!AA3014 -> 0 | AB33: =Multi1*SimulationData!AB8+Multi2*SimulationData!AB1010+Multi3*SimulationData!AB2012+Multi4*SimulationData!AB3014 -> 0 | AC33: =Multi1*SimulationData!AC8+Multi2*SimulationData!AC1010+Multi3*SimulationData!AC2012+Multi4*SimulationData!AC3014 -> 0 | AD33: =Multi1*SimulationData!AD8+Multi2*SimulationData!AD1010+Multi3*SimulationData!AD2012+Multi4*SimulationData!AD3014 -> 0 | AE33: =Multi1*SimulationData!AE8+Multi2*SimulationData!AE1010+Multi3*SimulationData!AE2012+Multi4*SimulationData!AE3014 -> 0
B34: Simulation 7 | C34: =Multi1*SimulationData!C9+Multi2*SimulationData!C1011+Multi3*SimulationData!C2013+Multi4*SimulationData!C3015 -> 3.715804598 | D34: =Multi1*SimulationData!D9+Multi2*SimulationData!D1011+Multi3*SimulationData!D2013+Multi4*SimulationData!D3015 -> 2.104659566 | E34: =Multi1*SimulationData!E9+Multi2*SimulationData!E1011+Multi3*SimulationData!E2013+Multi4*SimulationData!E3015 -> 1.469703714 | F34: =Multi1*SimulationData!F9+Multi2*SimulationData!F1011+Multi3*SimulationData!F2013+Multi4*SimulationData!F3015 -> 1.749398379 | G34: =Multi1*SimulationData!G9+Multi2*SimulationData!G1011+Multi3*SimulationData!G2013+Multi4*SimulationData!G3015 -> 3.364196887 | H34: =Multi1*SimulationData!H9+Multi2*SimulationData!H1011+Multi3*SimulationData!H2013+Multi4*SimulationData!H3015 -> 1.72961134 | I34: =Multi1*SimulationData!I9+Multi2*SimulationData!I1011+Multi3*SimulationData!I2013+Multi4*SimulationData!I3015 -> 1.602026428 | J34: =Multi1*SimulationData!J9+Multi2*SimulationData!J1011+Multi3*SimulationData!J2013+Multi4*SimulationData!J3015 -> 0.3887163921 | K34: =Multi1*SimulationData!K9+Multi2*SimulationData!K1011+Multi3*SimulationData!K2013+Multi4*SimulationData!K3015 -> 0.009867600679 | L34: =Multi1*SimulationData!L9+Multi2*SimulationData!L1011+Multi3*SimulationData!L2013+Multi4*SimulationData!L3015 -> 0.04728157908 | M34: =Multi1*SimulationData!M9+Multi2*SimulationData!M1011+Multi3*SimulationData!M2013+Multi4*SimulationData!M3015 -> 0.006674436361 | N34: =Multi1*SimulationData!N9+Multi2*SimulationData!N1011+Multi3*SimulationData!N2013+Multi4*SimulationData!N3015 -> 0.09978396274 | O34: =Multi1*SimulationData!O9+Multi2*SimulationData!O1011+Multi3*SimulationData!O2013+Multi4*SimulationData!O3015 -> 0.02124949837 | P34: =Multi1*SimulationData!P9+Multi2*SimulationData!P1011+Multi3*SimulationData!P2013+Multi4*SimulationData!P3015 -> 0.01749796945 | Q34: =Multi1*SimulationData!Q9+Multi2*SimulationData!Q1011+Multi3*SimulationData!Q2013+Multi4*SimulationData!Q3015 -> 0.05988856957 | R34: =Multi1*SimulationData!R9+Multi2*SimulationData!R1011+Multi3*SimulationData!R2013+Multi4*SimulationData!R3015 -> 0.006159268621 | S34: =Multi1*SimulationData!S9+Multi2*SimulationData!S1011+Multi3*SimulationData!S2013+Multi4*SimulationData!S3015 -> 0.0007744878831 | T34: =Multi1*SimulationData!T9+Multi2*SimulationData!T1011+Multi3*SimulationData!T2013+Multi4*SimulationData!T3015 -> 0.0001803472921 | U34: =Multi1*SimulationData!U9+Multi2*SimulationData!U1011+Multi3*SimulationData!U2013+Multi4*SimulationData!U3015 -> 1.316225096e-05 | V34: =Multi1*SimulationData!V9+Multi2*SimulationData!V1011+Multi3*SimulationData!V2013+Multi4*SimulationData!V3015 -> 2.602575067e-07 | W34: =Multi1*SimulationData!W9+Multi2*SimulationData!W1011+Multi3*SimulationData!W2013+Multi4*SimulationData!W3015 -> 2.584683522e-23 | X34: =Multi1*SimulationData!X9+Multi2*SimulationData!X1011+Multi3*SimulationData!X2013+Multi4*SimulationData!X3015 -> 0 | Y34: =Multi1*SimulationData!Y9+Multi2*SimulationData!Y1011+Multi3*SimulationData!Y2013+Multi4*SimulationData!Y3015 -> 0 | Z34: =Multi1*SimulationData!Z9+Multi2*SimulationData!Z1011+Multi3*SimulationData!Z2013+Multi4*SimulationData!Z3015 -> 0 | AA34: =Multi1*SimulationData!AA9+Multi2*SimulationData!AA1011+Multi3*SimulationData!AA2013+Multi4*SimulationData!AA3015 -> 0 | AB34: =Multi1*SimulationData!AB9+Multi2*SimulationData!AB1011+Multi3*SimulationData!AB2013+Multi4*SimulationData!AB3015 -> 0 | AC34: =Multi1*SimulationData!AC9+Multi2*SimulationData!AC1011+Multi3*SimulationData!AC2013+Multi4*SimulationData!AC3015 -> 0 | AD34: =Multi1*SimulationData!AD9+Multi2*SimulationData!AD1011+Multi3*SimulationData!AD2013+Multi4*SimulationData!AD3015 -> 0 | AE34: =Multi1*SimulationData!AE9+Multi2*SimulationData!AE1011+Multi3*SimulationData!AE2013+Multi4*SimulationData!AE3015 -> 0
B35: Simulation 8 | C35: =Multi1*SimulationData!C10+Multi2*SimulationData!C1012+Multi3*SimulationData!C2014+Multi4*SimulationData!C3016 -> 3.715804598 | D35: =Multi1*SimulationData!D10+Multi2*SimulationData!D1012+Multi3*SimulationData!D2014+Multi4*SimulationData!D3016 -> 5.23285149 | E35: =Multi1*SimulationData!E10+Multi2*SimulationData!E1012+Multi3*SimulationData!E2014+Multi4*SimulationData!E3016 -> 8.496805819 | F35: =Multi1*SimulationData!F10+Multi2*SimulationData!F1012+Multi3*SimulationData!F2014+Multi4*SimulationData!F3016 -> 8.052088096 | G35: =Multi1*SimulationData!G10+Multi2*SimulationData!G1012+Multi3*SimulationData!G2014+Multi4*SimulationData!G3016 -> 7.592307573 | H35: =Multi1*SimulationData!H10+Multi2*SimulationData!H1012+Multi3*SimulationData!H2014+Multi4*SimulationData!H3016 -> 4.72484304 | I35: =Multi1*SimulationData!I10+Multi2*SimulationData!I1012+Multi3*SimulationData!I2014+Multi4*SimulationData!I3016 -> 1.215233844 | J35: =Multi1*SimulationData!J10+Multi2*SimulationData!J1012+Multi3*SimulationData!J2014+Multi4*SimulationData!J3016 -> 3.237781973 | K35: =Multi1*SimulationData!K10+Multi2*SimulationData!K1012+Multi3*SimulationData!K2014+Multi4*SimulationData!K3016 -> 2.55476867 | L35: =Multi1*SimulationData!L10+Multi2*SimulationData!L1012+Multi3*SimulationData!L2014+Multi4*SimulationData!L3016 -> 1.816141528 | M35: =Multi1*SimulationData!M10+Multi2*SimulationData!M1012+Multi3*SimulationData!M2014+Multi4*SimulationData!M3016 -> 1.428179481 | N35: =Multi1*SimulationData!N10+Multi2*SimulationData!N1012+Multi3*SimulationData!N2014+Multi4*SimulationData!N3016 -> 1.402808779 | O35: =Multi1*SimulationData!O10+Multi2*SimulationData!O1012+Multi3*SimulationData!O2014+Multi4*SimulationData!O3016 -> 1.191827047 | P35: =Multi1*SimulationData!P10+Multi2*SimulationData!P1012+Multi3*SimulationData!P2014+Multi4*SimulationData!P3016 -> 1.466881412 | Q35: =Multi1*SimulationData!Q10+Multi2*SimulationData!Q1012+Multi3*SimulationData!Q2014+Multi4*SimulationData!Q3016 -> 1.049209351 | R35: =Multi1*SimulationData!R10+Multi2*SimulationData!R1012+Multi3*SimulationData!R2014+Multi4*SimulationData!R3016 -> 0.8463083988 | S35: =Multi1*SimulationData!S10+Multi2*SimulationData!S1012+Multi3*SimulationData!S2014+Multi4*SimulationData!S3016 -> 0.3192562892 | T35: =Multi1*SimulationData!T10+Multi2*SimulationData!T1012+Multi3*SimulationData!T2014+Multi4*SimulationData!T3016 -> 0.1998617445 | U35: =Multi1*SimulationData!U10+Multi2*SimulationData!U1012+Multi3*SimulationData!U2014+Multi4*SimulationData!U3016 -> 0.1202198776 | V35: =Multi1*SimulationData!V10+Multi2*SimulationData!V1012+Multi3*SimulationData!V2014+Multi4*SimulationData!V3016 -> 0.05645624533 | W35: =Multi1*SimulationData!W10+Multi2*SimulationData!W1012+Multi3*SimulationData!W2014+Multi4*SimulationData!W3016 -> 0.0001176767829 | X35: =Multi1*SimulationData!X10+Multi2*SimulationData!X1012+Multi3*SimulationData!X2014+Multi4*SimulationData!X3016 -> 0 | Y35: =Multi1*SimulationData!Y10+Multi2*SimulationData!Y1012+Multi3*SimulationData!Y2014+Multi4*SimulationData!Y3016 -> 0 | Z35: =Multi1*SimulationData!Z10+Multi2*SimulationData!Z1012+Multi3*SimulationData!Z2014+Multi4*SimulationData!Z3016 -> 0 | AA35: =Multi1*SimulationData!AA10+Multi2*SimulationData!AA1012+Multi3*SimulationData!AA2014+Multi4*SimulationData!AA3016 -> 0 | AB35: =Multi1*SimulationData!AB10+Multi2*SimulationData!AB1012+Multi3*SimulationData!AB2014+Multi4*SimulationData!AB3016 -> 0 | AC35: =Multi1*SimulationData!AC10+Multi2*SimulationData!AC1012+Multi3*SimulationData!AC2014+Multi4*SimulationData!AC3016 -> 0 | AD35: =Multi1*SimulationData!AD10+Multi2*SimulationData!AD1012+Multi3*SimulationData!AD2014+Multi4*SimulationData!AD3016 -> 0 | AE35: =Multi1*SimulationData!AE10+Multi2*SimulationData!AE1012+Multi3*SimulationData!AE2014+Multi4*SimulationData!AE3016 -> 0
B36: Simulation 9 | C36: =Multi1*SimulationData!C11+Multi2*SimulationData!C1013+Multi3*SimulationData!C2015+Multi4*SimulationData!C3017 -> 3.715804598 | D36: =Multi1*SimulationData!D11+Multi2*SimulationData!D1013+Multi3*SimulationData!D2015+Multi4*SimulationData!D3017 -> 4.045951576 | E36: =Multi1*SimulationData!E11+Multi2*SimulationData!E1013+Multi3*SimulationData!E2015+Multi4*SimulationData!E3017 -> 1.356318655 | F36: =Multi1*SimulationData!F11+Multi2*SimulationData!F1013+Multi3*SimulationData!F2015+Multi4*SimulationData!F3017 -> 0.1305123488 | G36: =Multi1*SimulationData!G11+Multi2*SimulationData!G1013+Multi3*SimulationData!G2015+Multi4*SimulationData!G3017 -> 0 | H36: =Multi1*SimulationData!H11+Multi2*SimulationData!H1013+Multi3*SimulationData!H2015+Multi4*SimulationData!H3017 -> 0.01786406844 | I36: =Multi1*SimulationData!I11+Multi2*SimulationData!I1013+Multi3*SimulationData!I2015+Multi4*SimulationData!I3017 -> 0.09075144187 | J36: =Multi1*SimulationData!J11+Multi2*SimulationData!J1013+Multi3*SimulationData!J2015+Multi4*SimulationData!J3017 -> 0.02183182138 | K36: =Multi1*SimulationData!K11+Multi2*SimulationData!K1013+Multi3*SimulationData!K2015+Multi4*SimulationData!K3017 -> 0.00103887499 | L36: =Multi1*SimulationData!L11+Multi2*SimulationData!L1013+Multi3*SimulationData!L2015+Multi4*SimulationData!L3017 -> 0.0001361314341 | M36: =Multi1*SimulationData!M11+Multi2*SimulationData!M1013+Multi3*SimulationData!M2015+Multi4*SimulationData!M3017 -> 0 | N36: =Multi1*SimulationData!N11+Multi2*SimulationData!N1013+Multi3*SimulationData!N2015+Multi4*SimulationData!N3017 -> 0 | O36: =Multi1*SimulationData!O11+Multi2*SimulationData!O1013+Multi3*SimulationData!O2015+Multi4*SimulationData!O3017 -> 0.001535777731 | P36: =Multi1*SimulationData!P11+Multi2*SimulationData!P1013+Multi3*SimulationData!P2015+Multi4*SimulationData!P3017 -> 0.0240065274 | Q36: =Multi1*SimulationData!Q11+Multi2*SimulationData!Q1013+Multi3*SimulationData!Q2015+Multi4*SimulationData!Q3017 -> 0.1152742142 | R36: =Multi1*SimulationData!R11+Multi2*SimulationData!R1013+Multi3*SimulationData!R2015+Multi4*SimulationData!R3017 -> 0.1421327439 | S36: =Multi1*SimulationData!S11+Multi2*SimulationData!S1013+Multi3*SimulationData!S2015+Multi4*SimulationData!S3017 -> 0.03112680097 | T36: =Multi1*SimulationData!T11+Multi2*SimulationData!T1013+Multi3*SimulationData!T2015+Multi4*SimulationData!T3017 -> 0.01825771 | U36: =Multi1*SimulationData!U11+Multi2*SimulationData!U1013+Multi3*SimulationData!U2015+Multi4*SimulationData!U3017 -> 0.009023531821 | V36: =Multi1*SimulationData!V11+Multi2*SimulationData!V1013+Multi3*SimulationData!V2015+Multi4*SimulationData!V3017 -> 0.0006311878524 | W36: =Multi1*SimulationData!W11+Multi2*SimulationData!W1013+Multi3*SimulationData!W2015+Multi4*SimulationData!W3017 -> 7.28081671e-10 | X36: =Multi1*SimulationData!X11+Multi2*SimulationData!X1013+Multi3*SimulationData!X2015+Multi4*SimulationData!X3017 -> 0 | Y36: =Multi1*SimulationData!Y11+Multi2*SimulationData!Y1013+Multi3*SimulationData!Y2015+Multi4*SimulationData!Y3017 -> 0 | Z36: =Multi1*SimulationData!Z11+Multi2*SimulationData!Z1013+Multi3*SimulationData!Z2015+Multi4*SimulationData!Z3017 -> 0 | AA36: =Multi1*SimulationData!AA11+Multi2*SimulationData!AA1013+Multi3*SimulationData!AA2015+Multi4*SimulationData!AA3017 -> 0 | AB36: =Multi1*SimulationData!AB11+Multi2*SimulationData!AB1013+Multi3*SimulationData!AB2015+Multi4*SimulationData!AB3017 -> 0 | AC36: =Multi1*SimulationData!AC11+Multi2*SimulationData!AC1013+Multi3*SimulationData!AC2015+Multi4*SimulationData!AC3017 -> 0 | AD36: =Multi1*SimulationData!AD11+Multi2*SimulationData!AD1013+Multi3*SimulationData!AD2015+Multi4*SimulationData!AD3017 -> 0 | AE36: =Multi1*SimulationData!AE11+Multi2*SimulationData!AE1013+Multi3*SimulationData!AE2015+Multi4*SimulationData!AE3017 -> 0
B37: Simulation 10 | C37: =Multi1*SimulationData!C12+Multi2*SimulationData!C1014+Multi3*SimulationData!C2016+Multi4*SimulationData!C3018 -> 3.715804598 | D37: =Multi1*SimulationData!D12+Multi2*SimulationData!D1014+Multi3*SimulationData!D2016+Multi4*SimulationData!D3018 -> 4.136568365 | E37: =Multi1*SimulationData!E12+Multi2*SimulationData!E1014+Multi3*SimulationData!E2016+Multi4*SimulationData!E3018 -> 4.253983678 | F37: =Multi1*SimulationData!F12+Multi2*SimulationData!F1014+Multi3*SimulationData!F2016+Multi4*SimulationData!F3018 -> 6.854957254 | G37: =Multi1*SimulationData!G12+Multi2*SimulationData!G1014+Multi3*SimulationData!G2016+Multi4*SimulationData!G3018 -> 5.852022917 | H37: =Multi1*SimulationData!H12+Multi2*SimulationData!H1014+Multi3*SimulationData!H2016+Multi4*SimulationData!H3018 -> 7.699447217 | I37: =Multi1*SimulationData!I12+Multi2*SimulationData!I1014+Multi3*SimulationData!I2016+Multi4*SimulationData!I3018 -> 10.28699233 | J37: =Multi1*SimulationData!J12+Multi2*SimulationData!J1014+Multi3*SimulationData!J2016+Multi4*SimulationData!J3018 -> 8.448906543 | K37: =Multi1*SimulationData!K12+Multi2*SimulationData!K1014+Multi3*SimulationData!K2016+Multi4*SimulationData!K3018 -> 11.24602021 | L37: =Multi1*SimulationData!L12+Multi2*SimulationData!L1014+Multi3*SimulationData!L2016+Multi4*SimulationData!L3018 -> 12.20389097 | M37: =Multi1*SimulationData!M12+Multi2*SimulationData!M1014+Multi3*SimulationData!M2016+Multi4*SimulationData!M3018 -> 11.11684072 | N37: =Multi1*SimulationData!N12+Multi2*SimulationData!N1014+Multi3*SimulationData!N2016+Multi4*SimulationData!N3018 -> 10.7650307 | O37: =Multi1*SimulationData!O12+Multi2*SimulationData!O1014+Multi3*SimulationData!O2016+Multi4*SimulationData!O3018 -> 11.99889859 | P37: =Multi1*SimulationData!P12+Multi2*SimulationData!P1014+Multi3*SimulationData!P2016+Multi4*SimulationData!P3018 -> 12.14156298 | Q37: =Multi1*SimulationData!Q12+Multi2*SimulationData!Q1014+Multi3*SimulationData!Q2016+Multi4*SimulationData!Q3018 -> 11.8617693 | R37: =Multi1*SimulationData!R12+Multi2*SimulationData!R1014+Multi3*SimulationData!R2016+Multi4*SimulationData!R3018 -> 12.0827796 | S37: =Multi1*SimulationData!S12+Multi2*SimulationData!S1014+Multi3*SimulationData!S2016+Multi4*SimulationData!S3018 -> 11.4244694 | T37: =Multi1*SimulationData!T12+Multi2*SimulationData!T1014+Multi3*SimulationData!T2016+Multi4*SimulationData!T3018 -> 11.50016713 | U37: =Multi1*SimulationData!U12+Multi2*SimulationData!U1014+Multi3*SimulationData!U2016+Multi4*SimulationData!U3018 -> 11.64614027 | V37: =Multi1*SimulationData!V12+Multi2*SimulationData!V1014+Multi3*SimulationData!V2016+Multi4*SimulationData!V3018 -> 11.57137233 | W37: =Multi1*SimulationData!W12+Multi2*SimulationData!W1014+Multi3*SimulationData!W2016+Multi4*SimulationData!W3018 -> 11.50762696 | X37: =Multi1*SimulationData!X12+Multi2*SimulationData!X1014+Multi3*SimulationData!X2016+Multi4*SimulationData!X3018 -> 11.74289368 | Y37: =Multi1*SimulationData!Y12+Multi2*SimulationData!Y1014+Multi3*SimulationData!Y2016+Multi4*SimulationData!Y3018 -> 10.54529045 | Z37: =Multi1*SimulationData!Z12+Multi2*SimulationData!Z1014+Multi3*SimulationData!Z2016+Multi4*SimulationData!Z3018 -> 10.55208588 | AA37: =Multi1*SimulationData!AA12+Multi2*SimulationData!AA1014+Multi3*SimulationData!AA2016+Multi4*SimulationData!AA3018 -> 9.297513975 | AB37: =Multi1*SimulationData!AB12+Multi2*SimulationData!AB1014+Multi3*SimulationData!AB2016+Multi4*SimulationData!AB3018 -> 9.276030654 | AC37: =Multi1*SimulationData!AC12+Multi2*SimulationData!AC1014+Multi3*SimulationData!AC2016+Multi4*SimulationData!AC3018 -> 8.078982802 | AD37: =Multi1*SimulationData!AD12+Multi2*SimulationData!AD1014+Multi3*SimulationData!AD2016+Multi4*SimulationData!AD3018 -> 8.032096949 | AE37: =Multi1*SimulationData!AE12+Multi2*SimulationData!AE1014+Multi3*SimulationData!AE2016+Multi4*SimulationData!AE3018 -> 6.748291945
B38: Simulation 11 | C38: =Multi1*SimulationData!C13+Multi2*SimulationData!C1015+Multi3*SimulationData!C2017+Multi4*SimulationData!C3019 -> 3.715804598 | D38: =Multi1*SimulationData!D13+Multi2*SimulationData!D1015+Multi3*SimulationData!D2017+Multi4*SimulationData!D3019 -> 2.740928057 | E38: =Multi1*SimulationData!E13+Multi2*SimulationData!E1015+Multi3*SimulationData!E2017+Multi4*SimulationData!E3019 -> 1.27725413 | F38: =Multi1*SimulationData!F13+Multi2*SimulationData!F1015+Multi3*SimulationData!F2017+Multi4*SimulationData!F3019 -> 0.2771339622 | G38: =Multi1*SimulationData!G13+Multi2*SimulationData!G1015+Multi3*SimulationData!G2017+Multi4*SimulationData!G3019 -> 0.2060904371 | H38: =Multi1*SimulationData!H13+Multi2*SimulationData!H1015+Multi3*SimulationData!H2017+Multi4*SimulationData!H3019 -> 0.190940615 | I38: =Multi1*SimulationData!I13+Multi2*SimulationData!I1015+Multi3*SimulationData!I2017+Multi4*SimulationData!I3019 -> 0.9343336996 | J38: =Multi1*SimulationData!J13+Multi2*SimulationData!J1015+Multi3*SimulationData!J2017+Multi4*SimulationData!J3019 -> 1.017033699 | K38: =Multi1*SimulationData!K13+Multi2*SimulationData!K1015+Multi3*SimulationData!K2017+Multi4*SimulationData!K3019 -> 0.5144799416 | L38: =Multi1*SimulationData!L13+Multi2*SimulationData!L1015+Multi3*SimulationData!L2017+Multi4*SimulationData!L3019 -> 0.04917587854 | M38: =Multi1*SimulationData!M13+Multi2*SimulationData!M1015+Multi3*SimulationData!M2017+Multi4*SimulationData!M3019 -> 0.1279855645 | N38: =Multi1*SimulationData!N13+Multi2*SimulationData!N1015+Multi3*SimulationData!N2017+Multi4*SimulationData!N3019 -> 0.08084614557 | O38: =Multi1*SimulationData!O13+Multi2*SimulationData!O1015+Multi3*SimulationData!O2017+Multi4*SimulationData!O3019 -> 0 | P38: =Multi1*SimulationData!P13+Multi2*SimulationData!P1015+Multi3*SimulationData!P2017+Multi4*SimulationData!P3019 -> 8.101236663e-09 | Q38: =Multi1*SimulationData!Q13+Multi2*SimulationData!Q1015+Multi3*SimulationData!Q2017+Multi4*SimulationData!Q3019 -> 1.103995164e-06 | R38: =Multi1*SimulationData!R13+Multi2*SimulationData!R1015+Multi3*SimulationData!R2017+Multi4*SimulationData!R3019 -> 1.894474067e-17 | S38: =Multi1*SimulationData!S13+Multi2*SimulationData!S1015+Multi3*SimulationData!S2017+Multi4*SimulationData!S3019 -> 0 | T38: =Multi1*SimulationData!T13+Multi2*SimulationData!T1015+Multi3*SimulationData!T2017+Multi4*SimulationData!T3019 -> 0 | U38: =Multi1*SimulationData!U13+Multi2*SimulationData!U1015+Multi3*SimulationData!U2017+Multi4*SimulationData!U3019 -> 0 | V38: =Multi1*SimulationData!V13+Multi2*SimulationData!V1015+Multi3*SimulationData!V2017+Multi4*SimulationData!V3019 -> 0 | W38: =Multi1*SimulationData!W13+Multi2*SimulationData!W1015+Multi3*SimulationData!W2017+Multi4*SimulationData!W3019 -> 0 | X38: =Multi1*SimulationData!X13+Multi2*SimulationData!X1015+Multi3*SimulationData!X2017+Multi4*SimulationData!X3019 -> 0 | Y38: =Multi1*SimulationData!Y13+Multi2*SimulationData!Y1015+Multi3*SimulationData!Y2017+Multi4*SimulationData!Y3019 -> 0 | Z38: =Multi1*SimulationData!Z13+Multi2*SimulationData!Z1015+Multi3*SimulationData!Z2017+Multi4*SimulationData!Z3019 -> 0 | AA38: =Multi1*SimulationData!AA13+Multi2*SimulationData!AA1015+Multi3*SimulationData!AA2017+Multi4*SimulationData!AA3019 -> 0 | AB38: =Multi1*SimulationData!AB13+Multi2*SimulationData!AB1015+Multi3*SimulationData!AB2017+Multi4*SimulationData!AB3019 -> 0 | AC38: =Multi1*SimulationData!AC13+Multi2*SimulationData!AC1015+Multi3*SimulationData!AC2017+Multi4*SimulationData!AC3019 -> 0 | AD38: =Multi1*SimulationData!AD13+Multi2*SimulationData!AD1015+Multi3*SimulationData!AD2017+Multi4*SimulationData!AD3019 -> 0 | AE38: =Multi1*SimulationData!AE13+Multi2*SimulationData!AE1015+Multi3*SimulationData!AE2017+Multi4*SimulationData!AE3019 -> 0
B39: Simulation 12 | C39: =Multi1*SimulationData!C14+Multi2*SimulationData!C1016+Multi3*SimulationData!C2018+Multi4*SimulationData!C3020 -> 3.715804598 | D39: =Multi1*SimulationData!D14+Multi2*SimulationData!D1016+Multi3*SimulationData!D2018+Multi4*SimulationData!D3020 -> 2.489495615 | E39: =Multi1*SimulationData!E14+Multi2*SimulationData!E1016+Multi3*SimulationData!E2018+Multi4*SimulationData!E3020 -> 4.408726596 | F39: =Multi1*SimulationData!F14+Multi2*SimulationData!F1016+Multi3*SimulationData!F2018+Multi4*SimulationData!F3020 -> 2.245649567 | G39: =Multi1*SimulationData!G14+Multi2*SimulationData!G1016+Multi3*SimulationData!G2018+Multi4*SimulationData!G3020 -> 1.490097546 | H39: =Multi1*SimulationData!H14+Multi2*SimulationData!H1016+Multi3*SimulationData!H2018+Multi4*SimulationData!H3020 -> 1.83151037 | I39: =Multi1*SimulationData!I14+Multi2*SimulationData!I1016+Multi3*SimulationData!I2018+Multi4*SimulationData!I3020 -> 1.610655514 | J39: =Multi1*SimulationData!J14+Multi2*SimulationData!J1016+Multi3*SimulationData!J2018+Multi4*SimulationData!J3020 -> 0.6101709659 | K39: =Multi1*SimulationData!K14+Multi2*SimulationData!K1016+Multi3*SimulationData!K2018+Multi4*SimulationData!K3020 -> 0.3233908488 | L39: =Multi1*SimulationData!L14+Multi2*SimulationData!L1016+Multi3*SimulationData!L2018+Multi4*SimulationData!L3020 -> 1.111703251 | M39: =Multi1*SimulationData!M14+Multi2*SimulationData!M1016+Multi3*SimulationData!M2018+Multi4*SimulationData!M3020 -> 1.539206147 | N39: =Multi1*SimulationData!N14+Multi2*SimulationData!N1016+Multi3*SimulationData!N2018+Multi4*SimulationData!N3020 -> 0.6959708074 | O39: =Multi1*SimulationData!O14+Multi2*SimulationData!O1016+Multi3*SimulationData!O2018+Multi4*SimulationData!O3020 -> 0.5413946609 | P39: =Multi1*SimulationData!P14+Multi2*SimulationData!P1016+Multi3*SimulationData!P2018+Multi4*SimulationData!P3020 -> 0.176958803 | Q39: =Multi1*SimulationData!Q14+Multi2*SimulationData!Q1016+Multi3*SimulationData!Q2018+Multi4*SimulationData!Q3020 -> 0.0737446471 | R39: =Multi1*SimulationData!R14+Multi2*SimulationData!R1016+Multi3*SimulationData!R2018+Multi4*SimulationData!R3020 -> 0.0363460549 | S39: =Multi1*SimulationData!S14+Multi2*SimulationData!S1016+Multi3*SimulationData!S2018+Multi4*SimulationData!S3020 -> 0.01632245264 | T39: =Multi1*SimulationData!T14+Multi2*SimulationData!T1016+Multi3*SimulationData!T2018+Multi4*SimulationData!T3020 -> 0.006413718889 | U39: =Multi1*SimulationData!U14+Multi2*SimulationData!U1016+Multi3*SimulationData!U2018+Multi4*SimulationData!U3020 -> 0.002514326481 | V39: =Multi1*SimulationData!V14+Multi2*SimulationData!V1016+Multi3*SimulationData!V2018+Multi4*SimulationData!V3020 -> 8.371440308e-05 | W39: =Multi1*SimulationData!W14+Multi2*SimulationData!W1016+Multi3*SimulationData!W2018+Multi4*SimulationData!W3020 -> 8.460089072e-13 | X39: =Multi1*SimulationData!X14+Multi2*SimulationData!X1016+Multi3*SimulationData!X2018+Multi4*SimulationData!X3020 -> 0 | Y39: =Multi1*SimulationData!Y14+Multi2*SimulationData!Y1016+Multi3*SimulationData!Y2018+Multi4*SimulationData!Y3020 -> 0 | Z39: =Multi1*SimulationData!Z14+Multi2*SimulationData!Z1016+Multi3*SimulationData!Z2018+Multi4*SimulationData!Z3020 -> 0 | AA39: =Multi1*SimulationData!AA14+Multi2*SimulationData!AA1016+Multi3*SimulationData!AA2018+Multi4*SimulationData!AA3020 -> 0 | AB39: =Multi1*SimulationData!AB14+Multi2*SimulationData!AB1016+Multi3*SimulationData!AB2018+Multi4*SimulationData!AB3020 -> 0 | AC39: =Multi1*SimulationData!AC14+Multi2*SimulationData!AC1016+Multi3*SimulationData!AC2018+Multi4*SimulationData!AC3020 -> 0 | AD39: =Multi1*SimulationData!AD14+Multi2*SimulationData!AD1016+Multi3*SimulationData!AD2018+Multi4*SimulationData!AD3020 -> 0 | AE39: =Multi1*SimulationData!AE14+Multi2*SimulationData!AE1016+Multi3*SimulationData!AE2018+Multi4*SimulationData!AE3020 -> 0
B40: Simulation 13 | C40: =Multi1*SimulationData!C15+Multi2*SimulationData!C1017+Multi3*SimulationData!C2019+Multi4*SimulationData!C3021 -> 3.715804598 | D40: =Multi1*SimulationData!D15+Multi2*SimulationData!D1017+Multi3*SimulationData!D2019+Multi4*SimulationData!D3021 -> 1.405343499 | E40: =Multi1*SimulationData!E15+Multi2*SimulationData!E1017+Multi3*SimulationData!E2019+Multi4*SimulationData!E3021 -> 0.01757701901 | F40: =Multi1*SimulationData!F15+Multi2*SimulationData!F1017+Multi3*SimulationData!F2019+Multi4*SimulationData!F3021 -> 1.28601749 | G40: =Multi1*SimulationData!G15+Multi2*SimulationData!G1017+Multi3*SimulationData!G2019+Multi4*SimulationData!G3021 -> 1.132573559 | H40: =Multi1*SimulationData!H15+Multi2*SimulationData!H1017+Multi3*SimulationData!H2019+Multi4*SimulationData!H3021 -> 2.270874277 | I40: =Multi1*SimulationData!I15+Multi2*SimulationData!I1017+Multi3*SimulationData!I2019+Multi4*SimulationData!I3021 -> 4.0881272 | J40: =Multi1*SimulationData!J15+Multi2*SimulationData!J1017+Multi3*SimulationData!J2019+Multi4*SimulationData!J3021 -> 1.715598815 | K40: =Multi1*SimulationData!K15+Multi2*SimulationData!K1017+Multi3*SimulationData!K2019+Multi4*SimulationData!K3021 -> 0.9019806339 | L40: =Multi1*SimulationData!L15+Multi2*SimulationData!L1017+Multi3*SimulationData!L2019+Multi4*SimulationData!L3021 -> 0.7534351144 | M40: =Multi1*SimulationData!M15+Multi2*SimulationData!M1017+Multi3*SimulationData!M2019+Multi4*SimulationData!M3021 -> 0.4342269439 | N40: =Multi1*SimulationData!N15+Multi2*SimulationData!N1017+Multi3*SimulationData!N2019+Multi4*SimulationData!N3021 -> 0.9532193588 | O40: =Multi1*SimulationData!O15+Multi2*SimulationData!O1017+Multi3*SimulationData!O2019+Multi4*SimulationData!O3021 -> 1.302275437 | P40: =Multi1*SimulationData!P15+Multi2*SimulationData!P1017+Multi3*SimulationData!P2019+Multi4*SimulationData!P3021 -> 1.363486476 | Q40: =Multi1*SimulationData!Q15+Multi2*SimulationData!Q1017+Multi3*SimulationData!Q2019+Multi4*SimulationData!Q3021 -> 1.046988792 | R40: =Multi1*SimulationData!R15+Multi2*SimulationData!R1017+Multi3*SimulationData!R2019+Multi4*SimulationData!R3021 -> 1.400198113 | S40: =Multi1*SimulationData!S15+Multi2*SimulationData!S1017+Multi3*SimulationData!S2019+Multi4*SimulationData!S3021 -> 1.517420456 | T40: =Multi1*SimulationData!T15+Multi2*SimulationData!T1017+Multi3*SimulationData!T2019+Multi4*SimulationData!T3021 -> 1.748639297 | U40: =Multi1*SimulationData!U15+Multi2*SimulationData!U1017+Multi3*SimulationData!U2019+Multi4*SimulationData!U3021 -> 1.505952765 | V40: =Multi1*SimulationData!V15+Multi2*SimulationData!V1017+Multi3*SimulationData!V2019+Multi4*SimulationData!V3021 -> 1.274962038 | W40: =Multi1*SimulationData!W15+Multi2*SimulationData!W1017+Multi3*SimulationData!W2019+Multi4*SimulationData!W3021 -> 0.5998415798 | X40: =Multi1*SimulationData!X15+Multi2*SimulationData!X1017+Multi3*SimulationData!X2019+Multi4*SimulationData!X3021 -> 0 | Y40: =Multi1*SimulationData!Y15+Multi2*SimulationData!Y1017+Multi3*SimulationData!Y2019+Multi4*SimulationData!Y3021 -> 0 | Z40: =Multi1*SimulationData!Z15+Multi2*SimulationData!Z1017+Multi3*SimulationData!Z2019+Multi4*SimulationData!Z3021 -> 0 | AA40: =Multi1*SimulationData!AA15+Multi2*SimulationData!AA1017+Multi3*SimulationData!AA2019+Multi4*SimulationData!AA3021 -> 0 | AB40: =Multi1*SimulationData!AB15+Multi2*SimulationData!AB1017+Multi3*SimulationData!AB2019+Multi4*SimulationData!AB3021 -> 0 | AC40: =Multi1*SimulationData!AC15+Multi2*SimulationData!AC1017+Multi3*SimulationData!AC2019+Multi4*SimulationData!AC3021 -> 0 | AD40: =Multi1*SimulationData!AD15+Multi2*SimulationData!AD1017+Multi3*SimulationData!AD2019+Multi4*SimulationData!AD3021 -> 0 | AE40: =Multi1*SimulationData!AE15+Multi2*SimulationData!AE1017+Multi3*SimulationData!AE2019+Multi4*SimulationData!AE3021 -> 0
B41: Simulation 14 | C41: =Multi1*SimulationData!C16+Multi2*SimulationData!C1018+Multi3*SimulationData!C2020+Multi4*SimulationData!C3022 -> 3.715804598 | D41: =Multi1*SimulationData!D16+Multi2*SimulationData!D1018+Multi3*SimulationData!D2020+Multi4*SimulationData!D3022 -> 6.217255024 | E41: =Multi1*SimulationData!E16+Multi2*SimulationData!E1018+Multi3*SimulationData!E2020+Multi4*SimulationData!E3022 -> 6.267024953 | F41: =Multi1*SimulationData!F16+Multi2*SimulationData!F1018+Multi3*SimulationData!F2020+Multi4*SimulationData!F3022 -> 5.442334595 | G41: =Multi1*SimulationData!G16+Multi2*SimulationData!G1018+Multi3*SimulationData!G2020+Multi4*SimulationData!G3022 -> 6.411101527 | H41: =Multi1*SimulationData!H16+Multi2*SimulationData!H1018+Multi3*SimulationData!H2020+Multi4*SimulationData!H3022 -> 7.222415447 | I41: =Multi1*SimulationData!I16+Multi2*SimulationData!I1018+Multi3*SimulationData!I2020+Multi4*SimulationData!I3022 -> 5.593815714 | J41: =Multi1*SimulationData!J16+Multi2*SimulationData!J1018+Multi3*SimulationData!J2020+Multi4*SimulationData!J3022 -> 4.98058113 | K41: =Multi1*SimulationData!K16+Multi2*SimulationData!K1018+Multi3*SimulationData!K2020+Multi4*SimulationData!K3022 -> 4.180362054 | L41: =Multi1*SimulationData!L16+Multi2*SimulationData!L1018+Multi3*SimulationData!L2020+Multi4*SimulationData!L3022 -> 3.299144282 | M41: =Multi1*SimulationData!M16+Multi2*SimulationData!M1018+Multi3*SimulationData!M2020+Multi4*SimulationData!M3022 -> 2.795085681 | N41: =Multi1*SimulationData!N16+Multi2*SimulationData!N1018+Multi3*SimulationData!N2020+Multi4*SimulationData!N3022 -> 3.223928476 | O41: =Multi1*SimulationData!O16+Multi2*SimulationData!O1018+Multi3*SimulationData!O2020+Multi4*SimulationData!O3022 -> 2.749619501 | P41: =Multi1*SimulationData!P16+Multi2*SimulationData!P1018+Multi3*SimulationData!P2020+Multi4*SimulationData!P3022 -> 1.938174052 | Q41: =Multi1*SimulationData!Q16+Multi2*SimulationData!Q1018+Multi3*SimulationData!Q2020+Multi4*SimulationData!Q3022 -> 1.496032817 | R41: =Multi1*SimulationData!R16+Multi2*SimulationData!R1018+Multi3*SimulationData!R2020+Multi4*SimulationData!R3022 -> 1.087119828 | S41: =Multi1*SimulationData!S16+Multi2*SimulationData!S1018+Multi3*SimulationData!S2020+Multi4*SimulationData!S3022 -> 0.7718240397 | T41: =Multi1*SimulationData!T16+Multi2*SimulationData!T1018+Multi3*SimulationData!T2020+Multi4*SimulationData!T3022 -> 0.9546878954 | U41: =Multi1*SimulationData!U16+Multi2*SimulationData!U1018+Multi3*SimulationData!U2020+Multi4*SimulationData!U3022 -> 0.7568639703 | V41: =Multi1*SimulationData!V16+Multi2*SimulationData!V1018+Multi3*SimulationData!V2020+Multi4*SimulationData!V3022 -> 0.5005257103 | W41: =Multi1*SimulationData!W16+Multi2*SimulationData!W1018+Multi3*SimulationData!W2020+Multi4*SimulationData!W3022 -> 0.07332814066 | X41: =Multi1*SimulationData!X16+Multi2*SimulationData!X1018+Multi3*SimulationData!X2020+Multi4*SimulationData!X3022 -> 0 | Y41: =Multi1*SimulationData!Y16+Multi2*SimulationData!Y1018+Multi3*SimulationData!Y2020+Multi4*SimulationData!Y3022 -> 0 | Z41: =Multi1*SimulationData!Z16+Multi2*SimulationData!Z1018+Multi3*SimulationData!Z2020+Multi4*SimulationData!Z3022 -> 0 | AA41: =Multi1*SimulationData!AA16+Multi2*SimulationData!AA1018+Multi3*SimulationData!AA2020+Multi4*SimulationData!AA3022 -> 0 | AB41: =Multi1*SimulationData!AB16+Multi2*SimulationData!AB1018+Multi3*SimulationData!AB2020+Multi4*SimulationData!AB3022 -> 0 | AC41: =Multi1*SimulationData!AC16+Multi2*SimulationData!AC1018+Multi3*SimulationData!AC2020+Multi4*SimulationData!AC3022 -> 0 | AD41: =Multi1*SimulationData!AD16+Multi2*SimulationData!AD1018+Multi3*SimulationData!AD2020+Multi4*SimulationData!AD3022 -> 0 | AE41: =Multi1*SimulationData!AE16+Multi2*SimulationData!AE1018+Multi3*SimulationData!AE2020+Multi4*SimulationData!AE3022 -> 0
B42: Simulation 15 | C42: =Multi1*SimulationData!C17+Multi2*SimulationData!C1019+Multi3*SimulationData!C2021+Multi4*SimulationData!C3023 -> 3.715804598 | D42: =Multi1*SimulationData!D17+Multi2*SimulationData!D1019+Multi3*SimulationData!D2021+Multi4*SimulationData!D3023 -> 5.52148952 | E42: =Multi1*SimulationData!E17+Multi2*SimulationData!E1019+Multi3*SimulationData!E2021+Multi4*SimulationData!E3023 -> 4.663067117 | F42: =Multi1*SimulationData!F17+Multi2*SimulationData!F1019+Multi3*SimulationData!F2021+Multi4*SimulationData!F3023 -> 1.480745792 | G42: =Multi1*SimulationData!G17+Multi2*SimulationData!G1019+Multi3*SimulationData!G2021+Multi4*SimulationData!G3023 -> 0.3760444084 | H42: =Multi1*SimulationData!H17+Multi2*SimulationData!H1019+Multi3*SimulationData!H2021+Multi4*SimulationData!H3023 -> 0.4921412243 | I42: =Multi1*SimulationData!I17+Multi2*SimulationData!I1019+Multi3*SimulationData!I2021+Multi4*SimulationData!I3023 -> 0.6396771744 | J42: =Multi1*SimulationData!J17+Multi2*SimulationData!J1019+Multi3*SimulationData!J2021+Multi4*SimulationData!J3023 -> 0.1891032685 | K42: =Multi1*SimulationData!K17+Multi2*SimulationData!K1019+Multi3*SimulationData!K2021+Multi4*SimulationData!K3023 -> 0.8947258498 | L42: =Multi1*SimulationData!L17+Multi2*SimulationData!L1019+Multi3*SimulationData!L2021+Multi4*SimulationData!L3023 -> 0.334192936 | M42: =Multi1*SimulationData!M17+Multi2*SimulationData!M1019+Multi3*SimulationData!M2021+Multi4*SimulationData!M3023 -> 0.7475661993 | N42: =Multi1*SimulationData!N17+Multi2*SimulationData!N1019+Multi3*SimulationData!N2021+Multi4*SimulationData!N3023 -> 0.3113294779 | O42: =Multi1*SimulationData!O17+Multi2*SimulationData!O1019+Multi3*SimulationData!O2021+Multi4*SimulationData!O3023 -> 0.2325985774 | P42: =Multi1*SimulationData!P17+Multi2*SimulationData!P1019+Multi3*SimulationData!P2021+Multi4*SimulationData!P3023 -> 0.09203022673 | Q42: =Multi1*SimulationData!Q17+Multi2*SimulationData!Q1019+Multi3*SimulationData!Q2021+Multi4*SimulationData!Q3023 -> 0.1057206139 | R42: =Multi1*SimulationData!R17+Multi2*SimulationData!R1019+Multi3*SimulationData!R2021+Multi4*SimulationData!R3023 -> 0.02754461381 | S42: =Multi1*SimulationData!S17+Multi2*SimulationData!S1019+Multi3*SimulationData!S2021+Multi4*SimulationData!S3023 -> 0.07801200405 | T42: =Multi1*SimulationData!T17+Multi2*SimulationData!T1019+Multi3*SimulationData!T2021+Multi4*SimulationData!T3023 -> 0.03429455553 | U42: =Multi1*SimulationData!U17+Multi2*SimulationData!U1019+Multi3*SimulationData!U2021+Multi4*SimulationData!U3023 -> 0.02179974507 | V42: =Multi1*SimulationData!V17+Multi2*SimulationData!V1019+Multi3*SimulationData!V2021+Multi4*SimulationData!V3023 -> 0.00401924648 | W42: =Multi1*SimulationData!W17+Multi2*SimulationData!W1019+Multi3*SimulationData!W2021+Multi4*SimulationData!W3023 -> 4.294421856e-08 | X42: =Multi1*SimulationData!X17+Multi2*SimulationData!X1019+Multi3*SimulationData!X2021+Multi4*SimulationData!X3023 -> 0 | Y42: =Multi1*SimulationData!Y17+Multi2*SimulationData!Y1019+Multi3*SimulationData!Y2021+Multi4*SimulationData!Y3023 -> 0 | Z42: =Multi1*SimulationData!Z17+Multi2*SimulationData!Z1019+Multi3*SimulationData!Z2021+Multi4*SimulationData!Z3023 -> 0 | AA42: =Multi1*SimulationData!AA17+Multi2*SimulationData!AA1019+Multi3*SimulationData!AA2021+Multi4*SimulationData!AA3023 -> 0 | AB42: =Multi1*SimulationData!AB17+Multi2*SimulationData!AB1019+Multi3*SimulationData!AB2021+Multi4*SimulationData!AB3023 -> 0 | AC42: =Multi1*SimulationData!AC17+Multi2*SimulationData!AC1019+Multi3*SimulationData!AC2021+Multi4*SimulationData!AC3023 -> 0 | AD42: =Multi1*SimulationData!AD17+Multi2*SimulationData!AD1019+Multi3*SimulationData!AD2021+Multi4*SimulationData!AD3023 -> 0 | AE42: =Multi1*SimulationData!AE17+Multi2*SimulationData!AE1019+Multi3*SimulationData!AE2021+Multi4*SimulationData!AE3023 -> 0
B43: Simulation 16 | C43: =Multi1*SimulationData!C18+Multi2*SimulationData!C1020+Multi3*SimulationData!C2022+Multi4*SimulationData!C3024 -> 3.715804598 | D43: =Multi1*SimulationData!D18+Multi2*SimulationData!D1020+Multi3*SimulationData!D2022+Multi4*SimulationData!D3024 -> 6.411947599 | E43: =Multi1*SimulationData!E18+Multi2*SimulationData!E1020+Multi3*SimulationData!E2022+Multi4*SimulationData!E3024 -> 3.910363539 | F43: =Multi1*SimulationData!F18+Multi2*SimulationData!F1020+Multi3*SimulationData!F2022+Multi4*SimulationData!F3024 -> 4.047233013 | G43: =Multi1*SimulationData!G18+Multi2*SimulationData!G1020+Multi3*SimulationData!G2022+Multi4*SimulationData!G3024 -> 3.597354375 | H43: =Multi1*SimulationData!H18+Multi2*SimulationData!H1020+Multi3*SimulationData!H2022+Multi4*SimulationData!H3024 -> 3.188677116 | I43: =Multi1*SimulationData!I18+Multi2*SimulationData!I1020+Multi3*SimulationData!I2022+Multi4*SimulationData!I3024 -> 4.180702919 | J43: =Multi1*SimulationData!J18+Multi2*SimulationData!J1020+Multi3*SimulationData!J2022+Multi4*SimulationData!J3024 -> 3.991852144 | K43: =Multi1*SimulationData!K18+Multi2*SimulationData!K1020+Multi3*SimulationData!K2022+Multi4*SimulationData!K3024 -> 4.740851572 | L43: =Multi1*SimulationData!L18+Multi2*SimulationData!L1020+Multi3*SimulationData!L2022+Multi4*SimulationData!L3024 -> 6.326571361 | M43: =Multi1*SimulationData!M18+Multi2*SimulationData!M1020+Multi3*SimulationData!M2022+Multi4*SimulationData!M3024 -> 5.237815464 | N43: =Multi1*SimulationData!N18+Multi2*SimulationData!N1020+Multi3*SimulationData!N2022+Multi4*SimulationData!N3024 -> 4.962429095 | O43: =Multi1*SimulationData!O18+Multi2*SimulationData!O1020+Multi3*SimulationData!O2022+Multi4*SimulationData!O3024 -> 4.17494043 | P43: =Multi1*SimulationData!P18+Multi2*SimulationData!P1020+Multi3*SimulationData!P2022+Multi4*SimulationData!P3024 -> 2.985913059 | Q43: =Multi1*SimulationData!Q18+Multi2*SimulationData!Q1020+Multi3*SimulationData!Q2022+Multi4*SimulationData!Q3024 -> 2.287420649 | R43: =Multi1*SimulationData!R18+Multi2*SimulationData!R1020+Multi3*SimulationData!R2022+Multi4*SimulationData!R3024 -> 1.319580525 | S43: =Multi1*SimulationData!S18+Multi2*SimulationData!S1020+Multi3*SimulationData!S2022+Multi4*SimulationData!S3024 -> 1.226059941 | T43: =Multi1*SimulationData!T18+Multi2*SimulationData!T1020+Multi3*SimulationData!T2022+Multi4*SimulationData!T3024 -> 1.1482209 | U43: =Multi1*SimulationData!U18+Multi2*SimulationData!U1020+Multi3*SimulationData!U2022+Multi4*SimulationData!U3024 -> 0.8370648718 | V43: =Multi1*SimulationData!V18+Multi2*SimulationData!V1020+Multi3*SimulationData!V2022+Multi4*SimulationData!V3024 -> 0.4923498967 | W43: =Multi1*SimulationData!W18+Multi2*SimulationData!W1020+Multi3*SimulationData!W2022+Multi4*SimulationData!W3024 -> 0.05182992705 | X43: =Multi1*SimulationData!X18+Multi2*SimulationData!X1020+Multi3*SimulationData!X2022+Multi4*SimulationData!X3024 -> 0 | Y43: =Multi1*SimulationData!Y18+Multi2*SimulationData!Y1020+Multi3*SimulationData!Y2022+Multi4*SimulationData!Y3024 -> 0 | Z43: =Multi1*SimulationData!Z18+Multi2*SimulationData!Z1020+Multi3*SimulationData!Z2022+Multi4*SimulationData!Z3024 -> 0 | AA43: =Multi1*SimulationData!AA18+Multi2*SimulationData!AA1020+Multi3*SimulationData!AA2022+Multi4*SimulationData!AA3024 -> 0 | AB43: =Multi1*SimulationData!AB18+Multi2*SimulationData!AB1020+Multi3*SimulationData!AB2022+Multi4*SimulationData!AB3024 -> 0 | AC43: =Multi1*SimulationData!AC18+Multi2*SimulationData!AC1020+Multi3*SimulationData!AC2022+Multi4*SimulationData!AC3024 -> 0 | AD43: =Multi1*SimulationData!AD18+Multi2*SimulationData!AD1020+Multi3*SimulationData!AD2022+Multi4*SimulationData!AD3024 -> 0 | AE43: =Multi1*SimulationData!AE18+Multi2*SimulationData!AE1020+Multi3*SimulationData!AE2022+Multi4*SimulationData!AE3024 -> 0
B44: Simulation 17 | C44: =Multi1*SimulationData!C19+Multi2*SimulationData!C1021+Multi3*SimulationData!C2023+Multi4*SimulationData!C3025 -> 3.715804598 | D44: =Multi1*SimulationData!D19+Multi2*SimulationData!D1021+Multi3*SimulationData!D2023+Multi4*SimulationData!D3025 -> 3.951315788 | E44: =Multi1*SimulationData!E19+Multi2*SimulationData!E1021+Multi3*SimulationData!E2023+Multi4*SimulationData!E3025 -> 3.946819687 | F44: =Multi1*SimulationData!F19+Multi2*SimulationData!F1021+Multi3*SimulationData!F2023+Multi4*SimulationData!F3025 -> 3.011744309 | G44: =Multi1*SimulationData!G19+Multi2*SimulationData!G1021+Multi3*SimulationData!G2023+Multi4*SimulationData!G3025 -> 2.546370897 | H44: =Multi1*SimulationData!H19+Multi2*SimulationData!H1021+Multi3*SimulationData!H2023+Multi4*SimulationData!H3025 -> 2.083505604 | I44: =Multi1*SimulationData!I19+Multi2*SimulationData!I1021+Multi3*SimulationData!I2023+Multi4*SimulationData!I3025 -> 1.193890782 | J44: =Multi1*SimulationData!J19+Multi2*SimulationData!J1021+Multi3*SimulationData!J2023+Multi4*SimulationData!J3025 -> 1.34085418 | K44: =Multi1*SimulationData!K19+Multi2*SimulationData!K1021+Multi3*SimulationData!K2023+Multi4*SimulationData!K3025 -> 0.4921550101 | L44: =Multi1*SimulationData!L19+Multi2*SimulationData!L1021+Multi3*SimulationData!L2023+Multi4*SimulationData!L3025 -> 0.3707182253 | M44: =Multi1*SimulationData!M19+Multi2*SimulationData!M1021+Multi3*SimulationData!M2023+Multi4*SimulationData!M3025 -> 0.1523293625 | N44: =Multi1*SimulationData!N19+Multi2*SimulationData!N1021+Multi3*SimulationData!N2023+Multi4*SimulationData!N3025 -> 0.2723653075 | O44: =Multi1*SimulationData!O19+Multi2*SimulationData!O1021+Multi3*SimulationData!O2023+Multi4*SimulationData!O3025 -> 1.135337574 | P44: =Multi1*SimulationData!P19+Multi2*SimulationData!P1021+Multi3*SimulationData!P2023+Multi4*SimulationData!P3025 -> 1.03119551 | Q44: =Multi1*SimulationData!Q19+Multi2*SimulationData!Q1021+Multi3*SimulationData!Q2023+Multi4*SimulationData!Q3025 -> 0.7916485408 | R44: =Multi1*SimulationData!R19+Multi2*SimulationData!R1021+Multi3*SimulationData!R2023+Multi4*SimulationData!R3025 -> 1.147875864 | S44: =Multi1*SimulationData!S19+Multi2*SimulationData!S1021+Multi3*SimulationData!S2023+Multi4*SimulationData!S3025 -> 1.245265603 | T44: =Multi1*SimulationData!T19+Multi2*SimulationData!T1021+Multi3*SimulationData!T2023+Multi4*SimulationData!T3025 -> 0.9979602089 | U44: =Multi1*SimulationData!U19+Multi2*SimulationData!U1021+Multi3*SimulationData!U2023+Multi4*SimulationData!U3025 -> 0.8332258411 | V44: =Multi1*SimulationData!V19+Multi2*SimulationData!V1021+Multi3*SimulationData!V2023+Multi4*SimulationData!V3025 -> 0.5269063156 | W44: =Multi1*SimulationData!W19+Multi2*SimulationData!W1021+Multi3*SimulationData!W2023+Multi4*SimulationData!W3025 -> 0.05856650195 | X44: =Multi1*SimulationData!X19+Multi2*SimulationData!X1021+Multi3*SimulationData!X2023+Multi4*SimulationData!X3025 -> 0 | Y44: =Multi1*SimulationData!Y19+Multi2*SimulationData!Y1021+Multi3*SimulationData!Y2023+Multi4*SimulationData!Y3025 -> 0 | Z44: =Multi1*SimulationData!Z19+Multi2*SimulationData!Z1021+Multi3*SimulationData!Z2023+Multi4*SimulationData!Z3025 -> 0 | AA44: =Multi1*SimulationData!AA19+Multi2*SimulationData!AA1021+Multi3*SimulationData!AA2023+Multi4*SimulationData!AA3025 -> 0 | AB44: =Multi1*SimulationData!AB19+Multi2*SimulationData!AB1021+Multi3*SimulationData!AB2023+Multi4*SimulationData!AB3025 -> 0 | AC44: =Multi1*SimulationData!AC19+Multi2*SimulationData!AC1021+Multi3*SimulationData!AC2023+Multi4*SimulationData!AC3025 -> 0 | AD44: =Multi1*SimulationData!AD19+Multi2*SimulationData!AD1021+Multi3*SimulationData!AD2023+Multi4*SimulationData!AD3025 -> 0 | AE44: =Multi1*SimulationData!AE19+Multi2*SimulationData!AE1021+Multi3*SimulationData!AE2023+Multi4*SimulationData!AE3025 -> 0
B45: Simulation 18 | C45: =Multi1*SimulationData!C20+Multi2*SimulationData!C1022+Multi3*SimulationData!C2024+Multi4*SimulationData!C3026 -> 3.715804598 | D45: =Multi1*SimulationData!D20+Multi2*SimulationData!D1022+Multi3*SimulationData!D2024+Multi4*SimulationData!D3026 -> 3.366497181 | E45: =Multi1*SimulationData!E20+Multi2*SimulationData!E1022+Multi3*SimulationData!E2024+Multi4*SimulationData!E3026 -> 1.332024372 | F45: =Multi1*SimulationData!F20+Multi2*SimulationData!F1022+Multi3*SimulationData!F2024+Multi4*SimulationData!F3026 -> 0.8982400067 | G45: =Multi1*SimulationData!G20+Multi2*SimulationData!G1022+Multi3*SimulationData!G2024+Multi4*SimulationData!G3026 -> 0.3086193333 | H45: =Multi1*SimulationData!H20+Multi2*SimulationData!H1022+Multi3*SimulationData!H2024+Multi4*SimulationData!H3026 -> 0.4470093231 | I45: =Multi1*SimulationData!I20+Multi2*SimulationData!I1022+Multi3*SimulationData!I2024+Multi4*SimulationData!I3026 -> 0.5945473562 | J45: =Multi1*SimulationData!J20+Multi2*SimulationData!J1022+Multi3*SimulationData!J2024+Multi4*SimulationData!J3026 -> 0.1220544795 | K45: =Multi1*SimulationData!K20+Multi2*SimulationData!K1022+Multi3*SimulationData!K2024+Multi4*SimulationData!K3026 -> 3.63098101e-16 | L45: =Multi1*SimulationData!L20+Multi2*SimulationData!L1022+Multi3*SimulationData!L2024+Multi4*SimulationData!L3026 -> 0 | M45: =Multi1*SimulationData!M20+Multi2*SimulationData!M1022+Multi3*SimulationData!M2024+Multi4*SimulationData!M3026 -> 0 | N45: =Multi1*SimulationData!N20+Multi2*SimulationData!N1022+Multi3*SimulationData!N2024+Multi4*SimulationData!N3026 -> 0 | O45: =Multi1*SimulationData!O20+Multi2*SimulationData!O1022+Multi3*SimulationData!O2024+Multi4*SimulationData!O3026 -> 0 | P45: =Multi1*SimulationData!P20+Multi2*SimulationData!P1022+Multi3*SimulationData!P2024+Multi4*SimulationData!P3026 -> 0 | Q45: =Multi1*SimulationData!Q20+Multi2*SimulationData!Q1022+Multi3*SimulationData!Q2024+Multi4*SimulationData!Q3026 -> 0 | R45: =Multi1*SimulationData!R20+Multi2*SimulationData!R1022+Multi3*SimulationData!R2024+Multi4*SimulationData!R3026 -> 1.407805496e-06 | S45: =Multi1*SimulationData!S20+Multi2*SimulationData!S1022+Multi3*SimulationData!S2024+Multi4*SimulationData!S3026 -> 1.863151215e-19 | T45: =Multi1*SimulationData!T20+Multi2*SimulationData!T1022+Multi3*SimulationData!T2024+Multi4*SimulationData!T3026 -> 0 | U45: =Multi1*SimulationData!U20+Multi2*SimulationData!U1022+Multi3*SimulationData!U2024+Multi4*SimulationData!U3026 -> 0 | V45: =Multi1*SimulationData!V20+Multi2*SimulationData!V1022+Multi3*SimulationData!V2024+Multi4*SimulationData!V3026 -> 0 | W45: =Multi1*SimulationData!W20+Multi2*SimulationData!W1022+Multi3*SimulationData!W2024+Multi4*SimulationData!W3026 -> 0 | X45: =Multi1*SimulationData!X20+Multi2*SimulationData!X1022+Multi3*SimulationData!X2024+Multi4*SimulationData!X3026 -> 0 | Y45: =Multi1*SimulationData!Y20+Multi2*SimulationData!Y1022+Multi3*SimulationData!Y2024+Multi4*SimulationData!Y3026 -> 0 | Z45: =Multi1*SimulationData!Z20+Multi2*SimulationData!Z1022+Multi3*SimulationData!Z2024+Multi4*SimulationData!Z3026 -> 0 | AA45: =Multi1*SimulationData!AA20+Multi2*SimulationData!AA1022+Multi3*SimulationData!AA2024+Multi4*SimulationData!AA3026 -> 0 | AB45: =Multi1*SimulationData!AB20+Multi2*SimulationData!AB1022+Multi3*SimulationData!AB2024+Multi4*SimulationData!AB3026 -> 0 | AC45: =Multi1*SimulationData!AC20+Multi2*SimulationData!AC1022+Multi3*SimulationData!AC2024+Multi4*SimulationData!AC3026 -> 0 | AD45: =Multi1*SimulationData!AD20+Multi2*SimulationData!AD1022+Multi3*SimulationData!AD2024+Multi4*SimulationData!AD3026 -> 0 | AE45: =Multi1*SimulationData!AE20+Multi2*SimulationData!AE1022+Multi3*SimulationData!AE2024+Multi4*SimulationData!AE3026 -> 0
B46: Simulation 19 | C46: =Multi1*SimulationData!C21+Multi2*SimulationData!C1023+Multi3*SimulationData!C2025+Multi4*SimulationData!C3027 -> 3.715804598 | D46: =Multi1*SimulationData!D21+Multi2*SimulationData!D1023+Multi3*SimulationData!D2025+Multi4*SimulationData!D3027 -> 4.371706882 | E46: =Multi1*SimulationData!E21+Multi2*SimulationData!E1023+Multi3*SimulationData!E2025+Multi4*SimulationData!E3027 -> 3.477685249 | F46: =Multi1*SimulationData!F21+Multi2*SimulationData!F1023+Multi3*SimulationData!F2025+Multi4*SimulationData!F3027 -> 5.180828652 | G46: =Multi1*SimulationData!G21+Multi2*SimulationData!G1023+Multi3*SimulationData!G2025+Multi4*SimulationData!G3027 -> 4.159018996 | H46: =Multi1*SimulationData!H21+Multi2*SimulationData!H1023+Multi3*SimulationData!H2025+Multi4*SimulationData!H3027 -> 6.484640227 | I46: =Multi1*SimulationData!I21+Multi2*SimulationData!I1023+Multi3*SimulationData!I2025+Multi4*SimulationData!I3027 -> 6.921755886 | J46: =Multi1*SimulationData!J21+Multi2*SimulationData!J1023+Multi3*SimulationData!J2025+Multi4*SimulationData!J3027 -> 6.830858619 | K46: =Multi1*SimulationData!K21+Multi2*SimulationData!K1023+Multi3*SimulationData!K2025+Multi4*SimulationData!K3027 -> 8.367987606 | L46: =Multi1*SimulationData!L21+Multi2*SimulationData!L1023+Multi3*SimulationData!L2025+Multi4*SimulationData!L3027 -> 8.287059794 | M46: =Multi1*SimulationData!M21+Multi2*SimulationData!M1023+Multi3*SimulationData!M2025+Multi4*SimulationData!M3027 -> 6.773000106 | N46: =Multi1*SimulationData!N21+Multi2*SimulationData!N1023+Multi3*SimulationData!N2025+Multi4*SimulationData!N3027 -> 6.383412048 | O46: =Multi1*SimulationData!O21+Multi2*SimulationData!O1023+Multi3*SimulationData!O2025+Multi4*SimulationData!O3027 -> 7.838319919 | P46: =Multi1*SimulationData!P21+Multi2*SimulationData!P1023+Multi3*SimulationData!P2025+Multi4*SimulationData!P3027 -> 7.901648679 | Q46: =Multi1*SimulationData!Q21+Multi2*SimulationData!Q1023+Multi3*SimulationData!Q2025+Multi4*SimulationData!Q3027 -> 7.875311319 | R46: =Multi1*SimulationData!R21+Multi2*SimulationData!R1023+Multi3*SimulationData!R2025+Multi4*SimulationData!R3027 -> 8.271017092 | S46: =Multi1*SimulationData!S21+Multi2*SimulationData!S1023+Multi3*SimulationData!S2025+Multi4*SimulationData!S3027 -> 8.304144897 | T46: =Multi1*SimulationData!T21+Multi2*SimulationData!T1023+Multi3*SimulationData!T2025+Multi4*SimulationData!T3027 -> 8.092625631 | U46: =Multi1*SimulationData!U21+Multi2*SimulationData!U1023+Multi3*SimulationData!U2025+Multi4*SimulationData!U3027 -> 8.171274387 | V46: =Multi1*SimulationData!V21+Multi2*SimulationData!V1023+Multi3*SimulationData!V2025+Multi4*SimulationData!V3027 -> 8.059526929 | W46: =Multi1*SimulationData!W21+Multi2*SimulationData!W1023+Multi3*SimulationData!W2025+Multi4*SimulationData!W3027 -> 8.311777151 | X46: =Multi1*SimulationData!X21+Multi2*SimulationData!X1023+Multi3*SimulationData!X2025+Multi4*SimulationData!X3027 -> 8.382228344 | Y46: =Multi1*SimulationData!Y21+Multi2*SimulationData!Y1023+Multi3*SimulationData!Y2025+Multi4*SimulationData!Y3027 -> 7.534914552 | Z46: =Multi1*SimulationData!Z21+Multi2*SimulationData!Z1023+Multi3*SimulationData!Z2025+Multi4*SimulationData!Z3027 -> 7.862107878 | AA46: =Multi1*SimulationData!AA21+Multi2*SimulationData!AA1023+Multi3*SimulationData!AA2025+Multi4*SimulationData!AA3027 -> 6.942828582 | AB46: =Multi1*SimulationData!AB21+Multi2*SimulationData!AB1023+Multi3*SimulationData!AB2025+Multi4*SimulationData!AB3027 -> 7.236725588 | AC46: =Multi1*SimulationData!AC21+Multi2*SimulationData!AC1023+Multi3*SimulationData!AC2025+Multi4*SimulationData!AC3027 -> 6.334175874 | AD46: =Multi1*SimulationData!AD21+Multi2*SimulationData!AD1023+Multi3*SimulationData!AD2025+Multi4*SimulationData!AD3027 -> 6.591284316 | AE46: =Multi1*SimulationData!AE21+Multi2*SimulationData!AE1023+Multi3*SimulationData!AE2025+Multi4*SimulationData!AE3027 -> 5.579180106
B47: Simulation 20 | C47: =Multi1*SimulationData!C22+Multi2*SimulationData!C1024+Multi3*SimulationData!C2026+Multi4*SimulationData!C3028 -> 3.715804598 | D47: =Multi1*SimulationData!D22+Multi2*SimulationData!D1024+Multi3*SimulationData!D2026+Multi4*SimulationData!D3028 -> 3.841927518 | E47: =Multi1*SimulationData!E22+Multi2*SimulationData!E1024+Multi3*SimulationData!E2026+Multi4*SimulationData!E3028 -> 1.223310983 | F47: =Multi1*SimulationData!F22+Multi2*SimulationData!F1024+Multi3*SimulationData!F2026+Multi4*SimulationData!F3028 -> 0.1515774465 | G47: =Multi1*SimulationData!G22+Multi2*SimulationData!G1024+Multi3*SimulationData!G2026+Multi4*SimulationData!G3028 -> 0.0001441824331 | H47: =Multi1*SimulationData!H22+Multi2*SimulationData!H1024+Multi3*SimulationData!H2026+Multi4*SimulationData!H3028 -> 0 | I47: =Multi1*SimulationData!I22+Multi2*SimulationData!I1024+Multi3*SimulationData!I2026+Multi4*SimulationData!I3028 -> 0 | J47: =Multi1*SimulationData!J22+Multi2*SimulationData!J1024+Multi3*SimulationData!J2026+Multi4*SimulationData!J3028 -> 0 | K47: =Multi1*SimulationData!K22+Multi2*SimulationData!K1024+Multi3*SimulationData!K2026+Multi4*SimulationData!K3028 -> 0 | L47: =Multi1*SimulationData!L22+Multi2*SimulationData!L1024+Multi3*SimulationData!L2026+Multi4*SimulationData!L3028 -> 0 | M47: =Multi1*SimulationData!M22+Multi2*SimulationData!M1024+Multi3*SimulationData!M2026+Multi4*SimulationData!M3028 -> 0 | N47: =Multi1*SimulationData!N22+Multi2*SimulationData!N1024+Multi3*SimulationData!N2026+Multi4*SimulationData!N3028 -> 0 | O47: =Multi1*SimulationData!O22+Multi2*SimulationData!O1024+Multi3*SimulationData!O2026+Multi4*SimulationData!O3028 -> 0 | P47: =Multi1*SimulationData!P22+Multi2*SimulationData!P1024+Multi3*SimulationData!P2026+Multi4*SimulationData!P3028 -> 0 | Q47: =Multi1*SimulationData!Q22+Multi2*SimulationData!Q1024+Multi3*SimulationData!Q2026+Multi4*SimulationData!Q3028 -> 0 | R47: =Multi1*SimulationData!R22+Multi2*SimulationData!R1024+Multi3*SimulationData!R2026+Multi4*SimulationData!R3028 -> 0 | S47: =Multi1*SimulationData!S22+Multi2*SimulationData!S1024+Multi3*SimulationData!S2026+Multi4*SimulationData!S3028 -> 0 | T47: =Multi1*SimulationData!T22+Multi2*SimulationData!T1024+Multi3*SimulationData!T2026+Multi4*SimulationData!T3028 -> 0 | U47: =Multi1*SimulationData!U22+Multi2*SimulationData!U1024+Multi3*SimulationData!U2026+Multi4*SimulationData!U3028 -> 0 | V47: =Multi1*SimulationData!V22+Multi2*SimulationData!V1024+Multi3*SimulationData!V2026+Multi4*SimulationData!V3028 -> 0 | W47: =Multi1*SimulationData!W22+Multi2*SimulationData!W1024+Multi3*SimulationData!W2026+Multi4*SimulationData!W3028 -> 0 | X47: =Multi1*SimulationData!X22+Multi2*SimulationData!X1024+Multi3*SimulationData!X2026+Multi4*SimulationData!X3028 -> 0 | Y47: =Multi1*SimulationData!Y22+Multi2*SimulationData!Y1024+Multi3*SimulationData!Y2026+Multi4*SimulationData!Y3028 -> 0 | Z47: =Multi1*SimulationData!Z22+Multi2*SimulationData!Z1024+Multi3*SimulationData!Z2026+Multi4*SimulationData!Z3028 -> 0 | AA47: =Multi1*SimulationData!AA22+Multi2*SimulationData!AA1024+Multi3*SimulationData!AA2026+Multi4*SimulationData!AA3028 -> 0 | AB47: =Multi1*SimulationData!AB22+Multi2*SimulationData!AB1024+Multi3*SimulationData!AB2026+Multi4*SimulationData!AB3028 -> 0 | AC47: =Multi1*SimulationData!AC22+Multi2*SimulationData!AC1024+Multi3*SimulationData!AC2026+Multi4*SimulationData!AC3028 -> 0 | AD47: =Multi1*SimulationData!AD22+Multi2*SimulationData!AD1024+Multi3*SimulationData!AD2026+Multi4*SimulationData!AD3028 -> 0 | AE47: =Multi1*SimulationData!AE22+Multi2*SimulationData!AE1024+Multi3*SimulationData!AE2026+Multi4*SimulationData!AE3028 -> 0
B48: Simulation 21 | C48: =Multi1*SimulationData!C23+Multi2*SimulationData!C1025+Multi3*SimulationData!C2027+Multi4*SimulationData!C3029 -> 3.715804598 | D48: =Multi1*SimulationData!D23+Multi2*SimulationData!D1025+Multi3*SimulationData!D2027+Multi4*SimulationData!D3029 -> 6.537293948 | E48: =Multi1*SimulationData!E23+Multi2*SimulationData!E1025+Multi3*SimulationData!E2027+Multi4*SimulationData!E3029 -> 7.190922848 | F48: =Multi1*SimulationData!F23+Multi2*SimulationData!F1025+Multi3*SimulationData!F2027+Multi4*SimulationData!F3029 -> 6.578352319 | G48: =Multi1*SimulationData!G23+Multi2*SimulationData!G1025+Multi3*SimulationData!G2027+Multi4*SimulationData!G3029 -> 6.412315126 | H48: =Multi1*SimulationData!H23+Multi2*SimulationData!H1025+Multi3*SimulationData!H2027+Multi4*SimulationData!H3029 -> 7.70044167 | I48: =Multi1*SimulationData!I23+Multi2*SimulationData!I1025+Multi3*SimulationData!I2027+Multi4*SimulationData!I3029 -> 9.076096925 | J48: =Multi1*SimulationData!J23+Multi2*SimulationData!J1025+Multi3*SimulationData!J2027+Multi4*SimulationData!J3029 -> 4.98528706 | K48: =Multi1*SimulationData!K23+Multi2*SimulationData!K1025+Multi3*SimulationData!K2027+Multi4*SimulationData!K3029 -> 6.46511215 | L48: =Multi1*SimulationData!L23+Multi2*SimulationData!L1025+Multi3*SimulationData!L2027+Multi4*SimulationData!L3029 -> 6.337692602 | M48: =Multi1*SimulationData!M23+Multi2*SimulationData!M1025+Multi3*SimulationData!M2027+Multi4*SimulationData!M3029 -> 6.445993414 | N48: =Multi1*SimulationData!N23+Multi2*SimulationData!N1025+Multi3*SimulationData!N2027+Multi4*SimulationData!N3029 -> 6.134436976 | O48: =Multi1*SimulationData!O23+Multi2*SimulationData!O1025+Multi3*SimulationData!O2027+Multi4*SimulationData!O3029 -> 6.136002934 | P48: =Multi1*SimulationData!P23+Multi2*SimulationData!P1025+Multi3*SimulationData!P2027+Multi4*SimulationData!P3029 -> 5.233600976 | Q48: =Multi1*SimulationData!Q23+Multi2*SimulationData!Q1025+Multi3*SimulationData!Q2027+Multi4*SimulationData!Q3029 -> 4.966127855 | R48: =Multi1*SimulationData!R23+Multi2*SimulationData!R1025+Multi3*SimulationData!R2027+Multi4*SimulationData!R3029 -> 4.489765573 | S48: =Multi1*SimulationData!S23+Multi2*SimulationData!S1025+Multi3*SimulationData!S2027+Multi4*SimulationData!S3029 -> 4.64096364 | T48: =Multi1*SimulationData!T23+Multi2*SimulationData!T1025+Multi3*SimulationData!T2027+Multi4*SimulationData!T3029 -> 4.095098742 | U48: =Multi1*SimulationData!U23+Multi2*SimulationData!U1025+Multi3*SimulationData!U2027+Multi4*SimulationData!U3029 -> 3.715702646 | V48: =Multi1*SimulationData!V23+Multi2*SimulationData!V1025+Multi3*SimulationData!V2027+Multi4*SimulationData!V3029 -> 3.485252713 | W48: =Multi1*SimulationData!W23+Multi2*SimulationData!W1025+Multi3*SimulationData!W2027+Multi4*SimulationData!W3029 -> 2.980378245 | X48: =Multi1*SimulationData!X23+Multi2*SimulationData!X1025+Multi3*SimulationData!X2027+Multi4*SimulationData!X3029 -> 3.001874639 | Y48: =Multi1*SimulationData!Y23+Multi2*SimulationData!Y1025+Multi3*SimulationData!Y2027+Multi4*SimulationData!Y3029 -> 2.258977507 | Z48: =Multi1*SimulationData!Z23+Multi2*SimulationData!Z1025+Multi3*SimulationData!Z2027+Multi4*SimulationData!Z3029 -> 2.713526143 | AA48: =Multi1*SimulationData!AA23+Multi2*SimulationData!AA1025+Multi3*SimulationData!AA2027+Multi4*SimulationData!AA3029 -> 1.963348281 | AB48: =Multi1*SimulationData!AB23+Multi2*SimulationData!AB1025+Multi3*SimulationData!AB2027+Multi4*SimulationData!AB3029 -> 2.432666743 | AC48: =Multi1*SimulationData!AC23+Multi2*SimulationData!AC1025+Multi3*SimulationData!AC2027+Multi4*SimulationData!AC3029 -> 1.686918516 | AD48: =Multi1*SimulationData!AD23+Multi2*SimulationData!AD1025+Multi3*SimulationData!AD2027+Multi4*SimulationData!AD3029 -> 2.109293423 | AE48: =Multi1*SimulationData!AE23+Multi2*SimulationData!AE1025+Multi3*SimulationData!AE2027+Multi4*SimulationData!AE3029 -> 1.30706125
B49: Simulation 22 | C49: =Multi1*SimulationData!C24+Multi2*SimulationData!C1026+Multi3*SimulationData!C2028+Multi4*SimulationData!C3030 -> 3.715804598 | D49: =Multi1*SimulationData!D24+Multi2*SimulationData!D1026+Multi3*SimulationData!D2028+Multi4*SimulationData!D3030 -> 6.014652079 | E49: =Multi1*SimulationData!E24+Multi2*SimulationData!E1026+Multi3*SimulationData!E2028+Multi4*SimulationData!E3030 -> 5.628471387 | F49: =Multi1*SimulationData!F24+Multi2*SimulationData!F1026+Multi3*SimulationData!F2028+Multi4*SimulationData!F3030 -> 7.428675655 | G49: =Multi1*SimulationData!G24+Multi2*SimulationData!G1026+Multi3*SimulationData!G2028+Multi4*SimulationData!G3030 -> 9.418927048 | H49: =Multi1*SimulationData!H24+Multi2*SimulationData!H1026+Multi3*SimulationData!H2028+Multi4*SimulationData!H3030 -> 7.716155611 | I49: =Multi1*SimulationData!I24+Multi2*SimulationData!I1026+Multi3*SimulationData!I2028+Multi4*SimulationData!I3030 -> 5.135722334 | J49: =Multi1*SimulationData!J24+Multi2*SimulationData!J1026+Multi3*SimulationData!J2028+Multi4*SimulationData!J3030 -> 3.008608552 | K49: =Multi1*SimulationData!K24+Multi2*SimulationData!K1026+Multi3*SimulationData!K2028+Multi4*SimulationData!K3030 -> 2.651033827 | L49: =Multi1*SimulationData!L24+Multi2*SimulationData!L1026+Multi3*SimulationData!L2028+Multi4*SimulationData!L3030 -> 2.9309147 | M49: =Multi1*SimulationData!M24+Multi2*SimulationData!M1026+Multi3*SimulationData!M2028+Multi4*SimulationData!M3030 -> 1.208515997 | N49: =Multi1*SimulationData!N24+Multi2*SimulationData!N1026+Multi3*SimulationData!N2028+Multi4*SimulationData!N3030 -> 1.01862324 | O49: =Multi1*SimulationData!O24+Multi2*SimulationData!O1026+Multi3*SimulationData!O2028+Multi4*SimulationData!O3030 -> 0.9447815071 | P49: =Multi1*SimulationData!P24+Multi2*SimulationData!P1026+Multi3*SimulationData!P2028+Multi4*SimulationData!P3030 -> 0.6179879264 | Q49: =Multi1*SimulationData!Q24+Multi2*SimulationData!Q1026+Multi3*SimulationData!Q2028+Multi4*SimulationData!Q3030 -> 0.5397480443 | R49: =Multi1*SimulationData!R24+Multi2*SimulationData!R1026+Multi3*SimulationData!R2028+Multi4*SimulationData!R3030 -> 0.6820070689 | S49: =Multi1*SimulationData!S24+Multi2*SimulationData!S1026+Multi3*SimulationData!S2028+Multi4*SimulationData!S3030 -> 0.5678422833 | T49: =Multi1*SimulationData!T24+Multi2*SimulationData!T1026+Multi3*SimulationData!T2028+Multi4*SimulationData!T3030 -> 0.382502007 | U49: =Multi1*SimulationData!U24+Multi2*SimulationData!U1026+Multi3*SimulationData!U2028+Multi4*SimulationData!U3030 -> 0.3345130051 | V49: =Multi1*SimulationData!V24+Multi2*SimulationData!V1026+Multi3*SimulationData!V2028+Multi4*SimulationData!V3030 -> 0.1928386592 | W49: =Multi1*SimulationData!W24+Multi2*SimulationData!W1026+Multi3*SimulationData!W2028+Multi4*SimulationData!W3030 -> 0.01104171558 | X49: =Multi1*SimulationData!X24+Multi2*SimulationData!X1026+Multi3*SimulationData!X2028+Multi4*SimulationData!X3030 -> 0 | Y49: =Multi1*SimulationData!Y24+Multi2*SimulationData!Y1026+Multi3*SimulationData!Y2028+Multi4*SimulationData!Y3030 -> 0 | Z49: =Multi1*SimulationData!Z24+Multi2*SimulationData!Z1026+Multi3*SimulationData!Z2028+Multi4*SimulationData!Z3030 -> 0 | AA49: =Multi1*SimulationData!AA24+Multi2*SimulationData!AA1026+Multi3*SimulationData!AA2028+Multi4*SimulationData!AA3030 -> 0 | AB49: =Multi1*SimulationData!AB24+Multi2*SimulationData!AB1026+Multi3*SimulationData!AB2028+Multi4*SimulationData!AB3030 -> 0 | AC49: =Multi1*SimulationData!AC24+Multi2*SimulationData!AC1026+Multi3*SimulationData!AC2028+Multi4*SimulationData!AC3030 -> 0 | AD49: =Multi1*SimulationData!AD24+Multi2*SimulationData!AD1026+Multi3*SimulationData!AD2028+Multi4*SimulationData!AD3030 -> 0 | AE49: =Multi1*SimulationData!AE24+Multi2*SimulationData!AE1026+Multi3*SimulationData!AE2028+Multi4*SimulationData!AE3030 -> 0
B50: Simulation 23 | C50: =Multi1*SimulationData!C25+Multi2*SimulationData!C1027+Multi3*SimulationData!C2029+Multi4*SimulationData!C3031 -> 3.715804598 | D50: =Multi1*SimulationData!D25+Multi2*SimulationData!D1027+Multi3*SimulationData!D2029+Multi4*SimulationData!D3031 -> 2.047304395 | E50: =Multi1*SimulationData!E25+Multi2*SimulationData!E1027+Multi3*SimulationData!E2029+Multi4*SimulationData!E3031 -> 0.3950119204 | F50: =Multi1*SimulationData!F25+Multi2*SimulationData!F1027+Multi3*SimulationData!F2029+Multi4*SimulationData!F3031 -> 0.9242416445 | G50: =Multi1*SimulationData!G25+Multi2*SimulationData!G1027+Multi3*SimulationData!G2029+Multi4*SimulationData!G3031 -> 0.06883500903 | H50: =Multi1*SimulationData!H25+Multi2*SimulationData!H1027+Multi3*SimulationData!H2029+Multi4*SimulationData!H3031 -> 0.1360366467 | I50: =Multi1*SimulationData!I25+Multi2*SimulationData!I1027+Multi3*SimulationData!I2029+Multi4*SimulationData!I3031 -> 0.01383572783 | J50: =Multi1*SimulationData!J25+Multi2*SimulationData!J1027+Multi3*SimulationData!J2029+Multi4*SimulationData!J3031 -> 0.01245006494 | K50: =Multi1*SimulationData!K25+Multi2*SimulationData!K1027+Multi3*SimulationData!K2029+Multi4*SimulationData!K3031 -> 2.435595589e-05 | L50: =Multi1*SimulationData!L25+Multi2*SimulationData!L1027+Multi3*SimulationData!L2029+Multi4*SimulationData!L3031 -> 0.0008949860818 | M50: =Multi1*SimulationData!M25+Multi2*SimulationData!M1027+Multi3*SimulationData!M2029+Multi4*SimulationData!M3031 -> 0 | N50: =Multi1*SimulationData!N25+Multi2*SimulationData!N1027+Multi3*SimulationData!N2029+Multi4*SimulationData!N3031 -> 0 | O50: =Multi1*SimulationData!O25+Multi2*SimulationData!O1027+Multi3*SimulationData!O2029+Multi4*SimulationData!O3031 -> 0 | P50: =Multi1*SimulationData!P25+Multi2*SimulationData!P1027+Multi3*SimulationData!P2029+Multi4*SimulationData!P3031 -> 0 | Q50: =Multi1*SimulationData!Q25+Multi2*SimulationData!Q1027+Multi3*SimulationData!Q2029+Multi4*SimulationData!Q3031 -> 0 | R50: =Multi1*SimulationData!R25+Multi2*SimulationData!R1027+Multi3*SimulationData!R2029+Multi4*SimulationData!R3031 -> 0 | S50: =Multi1*SimulationData!S25+Multi2*SimulationData!S1027+Multi3*SimulationData!S2029+Multi4*SimulationData!S3031 -> 0 | T50: =Multi1*SimulationData!T25+Multi2*SimulationData!T1027+Multi3*SimulationData!T2029+Multi4*SimulationData!T3031 -> 0 | U50: =Multi1*SimulationData!U25+Multi2*SimulationData!U1027+Multi3*SimulationData!U2029+Multi4*SimulationData!U3031 -> 0 | V50: =Multi1*SimulationData!V25+Multi2*SimulationData!V1027+Multi3*SimulationData!V2029+Multi4*SimulationData!V3031 -> 0 | W50: =Multi1*SimulationData!W25+Multi2*SimulationData!W1027+Multi3*SimulationData!W2029+Multi4*SimulationData!W3031 -> 0 | X50: =Multi1*SimulationData!X25+Multi2*SimulationData!X1027+Multi3*SimulationData!X2029+Multi4*SimulationData!X3031 -> 0 | Y50: =Multi1*SimulationData!Y25+Multi2*SimulationData!Y1027+Multi3*SimulationData!Y2029+Multi4*SimulationData!Y3031 -> 0 | Z50: =Multi1*SimulationData!Z25+Multi2*SimulationData!Z1027+Multi3*SimulationData!Z2029+Multi4*SimulationData!Z3031 -> 0 | AA50: =Multi1*SimulationData!AA25+Multi2*SimulationData!AA1027+Multi3*SimulationData!AA2029+Multi4*SimulationData!AA3031 -> 0 | AB50: =Multi1*SimulationData!AB25+Multi2*SimulationData!AB1027+Multi3*SimulationData!AB2029+Multi4*SimulationData!AB3031 -> 0 | AC50: =Multi1*SimulationData!AC25+Multi2*SimulationData!AC1027+Multi3*SimulationData!AC2029+Multi4*SimulationData!AC3031 -> 0 | AD50: =Multi1*SimulationData!AD25+Multi2*SimulationData!AD1027+Multi3*SimulationData!AD2029+Multi4*SimulationData!AD3031 -> 0 | AE50: =Multi1*SimulationData!AE25+Multi2*SimulationData!AE1027+Multi3*SimulationData!AE2029+Multi4*SimulationData!AE3031 -> 0
B51: Simulation 24 | C51: =Multi1*SimulationData!C26+Multi2*SimulationData!C1028+Multi3*SimulationData!C2030+Multi4*SimulationData!C3032 -> 3.715804598 | D51: =Multi1*SimulationData!D26+Multi2*SimulationData!D1028+Multi3*SimulationData!D2030+Multi4*SimulationData!D3032 -> 3.561600258 | E51: =Multi1*SimulationData!E26+Multi2*SimulationData!E1028+Multi3*SimulationData!E2030+Multi4*SimulationData!E3032 -> 4.712343938 | F51: =Multi1*SimulationData!F26+Multi2*SimulationData!F1028+Multi3*SimulationData!F2030+Multi4*SimulationData!F3032 -> 6.720015145 | G51: =Multi1*SimulationData!G26+Multi2*SimulationData!G1028+Multi3*SimulationData!G2030+Multi4*SimulationData!G3032 -> 6.302034996 | H51: =Multi1*SimulationData!H26+Multi2*SimulationData!H1028+Multi3*SimulationData!H2030+Multi4*SimulationData!H3032 -> 8.483407703 | I51: =Multi1*SimulationData!I26+Multi2*SimulationData!I1028+Multi3*SimulationData!I2030+Multi4*SimulationData!I3032 -> 6.852179639 | J51: =Multi1*SimulationData!J26+Multi2*SimulationData!J1028+Multi3*SimulationData!J2030+Multi4*SimulationData!J3032 -> 5.718768304 | K51: =Multi1*SimulationData!K26+Multi2*SimulationData!K1028+Multi3*SimulationData!K2030+Multi4*SimulationData!K3032 -> 4.129755652 | L51: =Multi1*SimulationData!L26+Multi2*SimulationData!L1028+Multi3*SimulationData!L2030+Multi4*SimulationData!L3032 -> 3.370432633 | M51: =Multi1*SimulationData!M26+Multi2*SimulationData!M1028+Multi3*SimulationData!M2030+Multi4*SimulationData!M3032 -> 4.072124002 | N51: =Multi1*SimulationData!N26+Multi2*SimulationData!N1028+Multi3*SimulationData!N2030+Multi4*SimulationData!N3032 -> 2.898263155 | O51: =Multi1*SimulationData!O26+Multi2*SimulationData!O1028+Multi3*SimulationData!O2030+Multi4*SimulationData!O3032 -> 2.025932535 | P51: =Multi1*SimulationData!P26+Multi2*SimulationData!P1028+Multi3*SimulationData!P2030+Multi4*SimulationData!P3032 -> 1.315402059 | Q51: =Multi1*SimulationData!Q26+Multi2*SimulationData!Q1028+Multi3*SimulationData!Q2030+Multi4*SimulationData!Q3032 -> 1.132335254 | R51: =Multi1*SimulationData!R26+Multi2*SimulationData!R1028+Multi3*SimulationData!R2030+Multi4*SimulationData!R3032 -> 1.058020131 | S51: =Multi1*SimulationData!S26+Multi2*SimulationData!S1028+Multi3*SimulationData!S2030+Multi4*SimulationData!S3032 -> 0.6989863463 | T51: =Multi1*SimulationData!T26+Multi2*SimulationData!T1028+Multi3*SimulationData!T2030+Multi4*SimulationData!T3032 -> 0.4938592221 | U51: =Multi1*SimulationData!U26+Multi2*SimulationData!U1028+Multi3*SimulationData!U2030+Multi4*SimulationData!U3032 -> 0.3850787386 | V51: =Multi1*SimulationData!V26+Multi2*SimulationData!V1028+Multi3*SimulationData!V2030+Multi4*SimulationData!V3032 -> 0.2008958166 | W51: =Multi1*SimulationData!W26+Multi2*SimulationData!W1028+Multi3*SimulationData!W2030+Multi4*SimulationData!W3032 -> 0.01136074882 | X51: =Multi1*SimulationData!X26+Multi2*SimulationData!X1028+Multi3*SimulationData!X2030+Multi4*SimulationData!X3032 -> 0 | Y51: =Multi1*SimulationData!Y26+Multi2*SimulationData!Y1028+Multi3*SimulationData!Y2030+Multi4*SimulationData!Y3032 -> 0 | Z51: =Multi1*SimulationData!Z26+Multi2*SimulationData!Z1028+Multi3*SimulationData!Z2030+Multi4*SimulationData!Z3032 -> 0 | AA51: =Multi1*SimulationData!AA26+Multi2*SimulationData!AA1028+Multi3*SimulationData!AA2030+Multi4*SimulationData!AA3032 -> 0 | AB51: =Multi1*SimulationData!AB26+Multi2*SimulationData!AB1028+Multi3*SimulationData!AB2030+Multi4*SimulationData!AB3032 -> 0 | AC51: =Multi1*SimulationData!AC26+Multi2*SimulationData!AC1028+Multi3*SimulationData!AC2030+Multi4*SimulationData!AC3032 -> 0 | AD51: =Multi1*SimulationData!AD26+Multi2*SimulationData!AD1028+Multi3*SimulationData!AD2030+Multi4*SimulationData!AD3032 -> 0 | AE51: =Multi1*SimulationData!AE26+Multi2*SimulationData!AE1028+Multi3*SimulationData!AE2030+Multi4*SimulationData!AE3032 -> 0
B52: Simulation 25 | C52: =Multi1*SimulationData!C27+Multi2*SimulationData!C1029+Multi3*SimulationData!C2031+Multi4*SimulationData!C3033 -> 3.715804598 | D52: =Multi1*SimulationData!D27+Multi2*SimulationData!D1029+Multi3*SimulationData!D2031+Multi4*SimulationData!D3033 -> 3.077956346 | E52: =Multi1*SimulationData!E27+Multi2*SimulationData!E1029+Multi3*SimulationData!E2031+Multi4*SimulationData!E3033 -> 2.078686132 | F52: =Multi1*SimulationData!F27+Multi2*SimulationData!F1029+Multi3*SimulationData!F2031+Multi4*SimulationData!F3033 -> 2.272694666 | G52: =Multi1*SimulationData!G27+Multi2*SimulationData!G1029+Multi3*SimulationData!G2031+Multi4*SimulationData!G3033 -> 3.382537302 | H52: =Multi1*SimulationData!H27+Multi2*SimulationData!H1029+Multi3*SimulationData!H2031+Multi4*SimulationData!H3033 -> 4.358831915 | I52: =Multi1*SimulationData!I27+Multi2*SimulationData!I1029+Multi3*SimulationData!I2031+Multi4*SimulationData!I3033 -> 4.917770282 | J52: =Multi1*SimulationData!J27+Multi2*SimulationData!J1029+Multi3*SimulationData!J2031+Multi4*SimulationData!J3033 -> 4.133896923 | K52: =Multi1*SimulationData!K27+Multi2*SimulationData!K1029+Multi3*SimulationData!K2031+Multi4*SimulationData!K3033 -> 3.400449116 | L52: =Multi1*SimulationData!L27+Multi2*SimulationData!L1029+Multi3*SimulationData!L2031+Multi4*SimulationData!L3033 -> 3.984596867 | M52: =Multi1*SimulationData!M27+Multi2*SimulationData!M1029+Multi3*SimulationData!M2031+Multi4*SimulationData!M3033 -> 5.027951832 | N52: =Multi1*SimulationData!N27+Multi2*SimulationData!N1029+Multi3*SimulationData!N2031+Multi4*SimulationData!N3033 -> 5.186251153 | O52: =Multi1*SimulationData!O27+Multi2*SimulationData!O1029+Multi3*SimulationData!O2031+Multi4*SimulationData!O3033 -> 4.468060963 | P52: =Multi1*SimulationData!P27+Multi2*SimulationData!P1029+Multi3*SimulationData!P2031+Multi4*SimulationData!P3033 -> 5.374811552 | Q52: =Multi1*SimulationData!Q27+Multi2*SimulationData!Q1029+Multi3*SimulationData!Q2031+Multi4*SimulationData!Q3033 -> 5.344711078 | R52: =Multi1*SimulationData!R27+Multi2*SimulationData!R1029+Multi3*SimulationData!R2031+Multi4*SimulationData!R3033 -> 5.49829921 | S52: =Multi1*SimulationData!S27+Multi2*SimulationData!S1029+Multi3*SimulationData!S2031+Multi4*SimulationData!S3033 -> 5.206009074 | T52: =Multi1*SimulationData!T27+Multi2*SimulationData!T1029+Multi3*SimulationData!T2031+Multi4*SimulationData!T3033 -> 4.654568971 | U52: =Multi1*SimulationData!U27+Multi2*SimulationData!U1029+Multi3*SimulationData!U2031+Multi4*SimulationData!U3033 -> 4.27697221 | V52: =Multi1*SimulationData!V27+Multi2*SimulationData!V1029+Multi3*SimulationData!V2031+Multi4*SimulationData!V3033 -> 4.105001486 | W52: =Multi1*SimulationData!W27+Multi2*SimulationData!W1029+Multi3*SimulationData!W2031+Multi4*SimulationData!W3033 -> 3.530409001 | X52: =Multi1*SimulationData!X27+Multi2*SimulationData!X1029+Multi3*SimulationData!X2031+Multi4*SimulationData!X3033 -> 3.337328454 | Y52: =Multi1*SimulationData!Y27+Multi2*SimulationData!Y1029+Multi3*SimulationData!Y2031+Multi4*SimulationData!Y3033 -> 2.759173047 | Z52: =Multi1*SimulationData!Z27+Multi2*SimulationData!Z1029+Multi3*SimulationData!Z2031+Multi4*SimulationData!Z3033 -> 3.38335047 | AA52: =Multi1*SimulationData!AA27+Multi2*SimulationData!AA1029+Multi3*SimulationData!AA2031+Multi4*SimulationData!AA3033 -> 2.778255009 | AB52: =Multi1*SimulationData!AB27+Multi2*SimulationData!AB1029+Multi3*SimulationData!AB2031+Multi4*SimulationData!AB3033 -> 3.382272495 | AC52: =Multi1*SimulationData!AC27+Multi2*SimulationData!AC1029+Multi3*SimulationData!AC2031+Multi4*SimulationData!AC3033 -> 2.73151949 | AD52: =Multi1*SimulationData!AD27+Multi2*SimulationData!AD1029+Multi3*SimulationData!AD2031+Multi4*SimulationData!AD3033 -> 3.245492852 | AE52: =Multi1*SimulationData!AE27+Multi2*SimulationData!AE1029+Multi3*SimulationData!AE2031+Multi4*SimulationData!AE3033 -> 2.502317743
B53: Simulation 26 | C53: =Multi1*SimulationData!C28+Multi2*SimulationData!C1030+Multi3*SimulationData!C2032+Multi4*SimulationData!C3034 -> 3.715804598 | D53: =Multi1*SimulationData!D28+Multi2*SimulationData!D1030+Multi3*SimulationData!D2032+Multi4*SimulationData!D3034 -> 2.703565167 | E53: =Multi1*SimulationData!E28+Multi2*SimulationData!E1030+Multi3*SimulationData!E2032+Multi4*SimulationData!E3034 -> 0.9298933361 | F53: =Multi1*SimulationData!F28+Multi2*SimulationData!F1030+Multi3*SimulationData!F2032+Multi4*SimulationData!F3034 -> 1.641509309 | G53: =Multi1*SimulationData!G28+Multi2*SimulationData!G1030+Multi3*SimulationData!G2032+Multi4*SimulationData!G3034 -> 2.47762841 | H53: =Multi1*SimulationData!H28+Multi2*SimulationData!H1030+Multi3*SimulationData!H2032+Multi4*SimulationData!H3034 -> 4.122832216 | I53: =Multi1*SimulationData!I28+Multi2*SimulationData!I1030+Multi3*SimulationData!I2032+Multi4*SimulationData!I3034 -> 5.286962264 | J53: =Multi1*SimulationData!J28+Multi2*SimulationData!J1030+Multi3*SimulationData!J2032+Multi4*SimulationData!J3034 -> 4.249292995 | K53: =Multi1*SimulationData!K28+Multi2*SimulationData!K1030+Multi3*SimulationData!K2032+Multi4*SimulationData!K3034 -> 4.032304558 | L53: =Multi1*SimulationData!L28+Multi2*SimulationData!L1030+Multi3*SimulationData!L2032+Multi4*SimulationData!L3034 -> 5.595992284 | M53: =Multi1*SimulationData!M28+Multi2*SimulationData!M1030+Multi3*SimulationData!M2032+Multi4*SimulationData!M3034 -> 6.500386013 | N53: =Multi1*SimulationData!N28+Multi2*SimulationData!N1030+Multi3*SimulationData!N2032+Multi4*SimulationData!N3034 -> 6.561343775 | O53: =Multi1*SimulationData!O28+Multi2*SimulationData!O1030+Multi3*SimulationData!O2032+Multi4*SimulationData!O3034 -> 4.830220228 | P53: =Multi1*SimulationData!P28+Multi2*SimulationData!P1030+Multi3*SimulationData!P2032+Multi4*SimulationData!P3034 -> 5.401840227 | Q53: =Multi1*SimulationData!Q28+Multi2*SimulationData!Q1030+Multi3*SimulationData!Q2032+Multi4*SimulationData!Q3034 -> 4.467919451 | R53: =Multi1*SimulationData!R28+Multi2*SimulationData!R1030+Multi3*SimulationData!R2032+Multi4*SimulationData!R3034 -> 4.480953094 | S53: =Multi1*SimulationData!S28+Multi2*SimulationData!S1030+Multi3*SimulationData!S2032+Multi4*SimulationData!S3034 -> 3.235492713 | T53: =Multi1*SimulationData!T28+Multi2*SimulationData!T1030+Multi3*SimulationData!T2032+Multi4*SimulationData!T3034 -> 2.265649832 | U53: =Multi1*SimulationData!U28+Multi2*SimulationData!U1030+Multi3*SimulationData!U2032+Multi4*SimulationData!U3034 -> 2.132359014 | V53: =Multi1*SimulationData!V28+Multi2*SimulationData!V1030+Multi3*SimulationData!V2032+Multi4*SimulationData!V3034 -> 1.750344284 | W53: =Multi1*SimulationData!W28+Multi2*SimulationData!W1030+Multi3*SimulationData!W2032+Multi4*SimulationData!W3034 -> 1.10297929 | X53: =Multi1*SimulationData!X28+Multi2*SimulationData!X1030+Multi3*SimulationData!X2032+Multi4*SimulationData!X3034 -> 0.5863900734 | Y53: =Multi1*SimulationData!Y28+Multi2*SimulationData!Y1030+Multi3*SimulationData!Y2032+Multi4*SimulationData!Y3034 -> -0.1756779389 | Z53: =Multi1*SimulationData!Z28+Multi2*SimulationData!Z1030+Multi3*SimulationData!Z2032+Multi4*SimulationData!Z3034 -> 0.2948789498 | AA53: =Multi1*SimulationData!AA28+Multi2*SimulationData!AA1030+Multi3*SimulationData!AA2032+Multi4*SimulationData!AA3034 -> -0.4596382295 | AB53: =Multi1*SimulationData!AB28+Multi2*SimulationData!AB1030+Multi3*SimulationData!AB2032+Multi4*SimulationData!AB3034 -> 0.06109695218 | AC53: =Multi1*SimulationData!AC28+Multi2*SimulationData!AC1030+Multi3*SimulationData!AC2032+Multi4*SimulationData!AC3034 -> -0.6103441873 | AD53: =Multi1*SimulationData!AD28+Multi2*SimulationData!AD1030+Multi3*SimulationData!AD2032+Multi4*SimulationData!AD3034 -> -0.0908637231 | AE53: =Multi1*SimulationData!AE28+Multi2*SimulationData!AE1030+Multi3*SimulationData!AE2032+Multi4*SimulationData!AE3034 -> -0.7845192612
B54: Simulation 27 | C54: =Multi1*SimulationData!C29+Multi2*SimulationData!C1031+Multi3*SimulationData!C2033+Multi4*SimulationData!C3035 -> 3.715804598 | D54: =Multi1*SimulationData!D29+Multi2*SimulationData!D1031+Multi3*SimulationData!D2033+Multi4*SimulationData!D3035 -> 3.479925811 | E54: =Multi1*SimulationData!E29+Multi2*SimulationData!E1031+Multi3*SimulationData!E2033+Multi4*SimulationData!E3035 -> 4.357151233 | F54: =Multi1*SimulationData!F29+Multi2*SimulationData!F1031+Multi3*SimulationData!F2033+Multi4*SimulationData!F3035 -> 4.29942179 | G54: =Multi1*SimulationData!G29+Multi2*SimulationData!G1031+Multi3*SimulationData!G2033+Multi4*SimulationData!G3035 -> 4.895027217 | H54: =Multi1*SimulationData!H29+Multi2*SimulationData!H1031+Multi3*SimulationData!H2033+Multi4*SimulationData!H3035 -> 3.745508494 | I54: =Multi1*SimulationData!I29+Multi2*SimulationData!I1031+Multi3*SimulationData!I2033+Multi4*SimulationData!I3035 -> 6.67389661 | J54: =Multi1*SimulationData!J29+Multi2*SimulationData!J1031+Multi3*SimulationData!J2033+Multi4*SimulationData!J3035 -> 9.710583229 | K54: =Multi1*SimulationData!K29+Multi2*SimulationData!K1031+Multi3*SimulationData!K2033+Multi4*SimulationData!K3035 -> 8.679691543 | L54: =Multi1*SimulationData!L29+Multi2*SimulationData!L1031+Multi3*SimulationData!L2033+Multi4*SimulationData!L3035 -> 8.058252996 | M54: =Multi1*SimulationData!M29+Multi2*SimulationData!M1031+Multi3*SimulationData!M2033+Multi4*SimulationData!M3035 -> 7.511423357 | N54: =Multi1*SimulationData!N29+Multi2*SimulationData!N1031+Multi3*SimulationData!N2033+Multi4*SimulationData!N3035 -> 8.324781571 | O54: =Multi1*SimulationData!O29+Multi2*SimulationData!O1031+Multi3*SimulationData!O2033+Multi4*SimulationData!O3035 -> 8.186366162 | P54: =Multi1*SimulationData!P29+Multi2*SimulationData!P1031+Multi3*SimulationData!P2033+Multi4*SimulationData!P3035 -> 8.38439297 | Q54: =Multi1*SimulationData!Q29+Multi2*SimulationData!Q1031+Multi3*SimulationData!Q2033+Multi4*SimulationData!Q3035 -> 7.40225759 | R54: =Multi1*SimulationData!R29+Multi2*SimulationData!R1031+Multi3*SimulationData!R2033+Multi4*SimulationData!R3035 -> 7.088157447 | S54: =Multi1*SimulationData!S29+Multi2*SimulationData!S1031+Multi3*SimulationData!S2033+Multi4*SimulationData!S3035 -> 6.16091398 | T54: =Multi1*SimulationData!T29+Multi2*SimulationData!T1031+Multi3*SimulationData!T2033+Multi4*SimulationData!T3035 -> 5.985585002 | U54: =Multi1*SimulationData!U29+Multi2*SimulationData!U1031+Multi3*SimulationData!U2033+Multi4*SimulationData!U3035 -> 5.809615883 | V54: =Multi1*SimulationData!V29+Multi2*SimulationData!V1031+Multi3*SimulationData!V2033+Multi4*SimulationData!V3035 -> 5.566486972 | W54: =Multi1*SimulationData!W29+Multi2*SimulationData!W1031+Multi3*SimulationData!W2033+Multi4*SimulationData!W3035 -> 5.539661113 | X54: =Multi1*SimulationData!X29+Multi2*SimulationData!X1031+Multi3*SimulationData!X2033+Multi4*SimulationData!X3035 -> 5.466639962 | Y54: =Multi1*SimulationData!Y29+Multi2*SimulationData!Y1031+Multi3*SimulationData!Y2033+Multi4*SimulationData!Y3035 -> 4.788569451 | Z54: =Multi1*SimulationData!Z29+Multi2*SimulationData!Z1031+Multi3*SimulationData!Z2033+Multi4*SimulationData!Z3035 -> 5.308930229 | AA54: =Multi1*SimulationData!AA29+Multi2*SimulationData!AA1031+Multi3*SimulationData!AA2033+Multi4*SimulationData!AA3035 -> 4.564068526 | AB54: =Multi1*SimulationData!AB29+Multi2*SimulationData!AB1031+Multi3*SimulationData!AB2033+Multi4*SimulationData!AB3035 -> 5.018526776 | AC54: =Multi1*SimulationData!AC29+Multi2*SimulationData!AC1031+Multi3*SimulationData!AC2033+Multi4*SimulationData!AC3035 -> 4.255189995 | AD54: =Multi1*SimulationData!AD29+Multi2*SimulationData!AD1031+Multi3*SimulationData!AD2033+Multi4*SimulationData!AD3035 -> 4.669058078 | AE54: =Multi1*SimulationData!AE29+Multi2*SimulationData!AE1031+Multi3*SimulationData!AE2033+Multi4*SimulationData!AE3035 -> 3.820133913
B55: Simulation 28 | C55: =Multi1*SimulationData!C30+Multi2*SimulationData!C1032+Multi3*SimulationData!C2034+Multi4*SimulationData!C3036 -> 3.715804598 | D55: =Multi1*SimulationData!D30+Multi2*SimulationData!D1032+Multi3*SimulationData!D2034+Multi4*SimulationData!D3036 -> 2.816518849 | E55: =Multi1*SimulationData!E30+Multi2*SimulationData!E1032+Multi3*SimulationData!E2034+Multi4*SimulationData!E3036 -> 4.131636843 | F55: =Multi1*SimulationData!F30+Multi2*SimulationData!F1032+Multi3*SimulationData!F2034+Multi4*SimulationData!F3036 -> 2.727845911 | G55: =Multi1*SimulationData!G30+Multi2*SimulationData!G1032+Multi3*SimulationData!G2034+Multi4*SimulationData!G3036 -> 2.18049174 | H55: =Multi1*SimulationData!H30+Multi2*SimulationData!H1032+Multi3*SimulationData!H2034+Multi4*SimulationData!H3036 -> 1.119888777 | I55: =Multi1*SimulationData!I30+Multi2*SimulationData!I1032+Multi3*SimulationData!I2034+Multi4*SimulationData!I3036 -> 0.08232419745 | J55: =Multi1*SimulationData!J30+Multi2*SimulationData!J1032+Multi3*SimulationData!J2034+Multi4*SimulationData!J3036 -> 0.05424826665 | K55: =Multi1*SimulationData!K30+Multi2*SimulationData!K1032+Multi3*SimulationData!K2034+Multi4*SimulationData!K3036 -> 2.545426472e-06 | L55: =Multi1*SimulationData!L30+Multi2*SimulationData!L1032+Multi3*SimulationData!L2034+Multi4*SimulationData!L3036 -> 0 | M55: =Multi1*SimulationData!M30+Multi2*SimulationData!M1032+Multi3*SimulationData!M2034+Multi4*SimulationData!M3036 -> 0 | N55: =Multi1*SimulationData!N30+Multi2*SimulationData!N1032+Multi3*SimulationData!N2034+Multi4*SimulationData!N3036 -> 9.752382107e-07 | O55: =Multi1*SimulationData!O30+Multi2*SimulationData!O1032+Multi3*SimulationData!O2034+Multi4*SimulationData!O3036 -> 2.348799657e-21 | P55: =Multi1*SimulationData!P30+Multi2*SimulationData!P1032+Multi3*SimulationData!P2034+Multi4*SimulationData!P3036 -> 0 | Q55: =Multi1*SimulationData!Q30+Multi2*SimulationData!Q1032+Multi3*SimulationData!Q2034+Multi4*SimulationData!Q3036 -> 9.337420112e-15 | R55: =Multi1*SimulationData!R30+Multi2*SimulationData!R1032+Multi3*SimulationData!R2034+Multi4*SimulationData!R3036 -> 0 | S55: =Multi1*SimulationData!S30+Multi2*SimulationData!S1032+Multi3*SimulationData!S2034+Multi4*SimulationData!S3036 -> 0 | T55: =Multi1*SimulationData!T30+Multi2*SimulationData!T1032+Multi3*SimulationData!T2034+Multi4*SimulationData!T3036 -> 0 | U55: =Multi1*SimulationData!U30+Multi2*SimulationData!U1032+Multi3*SimulationData!U2034+Multi4*SimulationData!U3036 -> 0 | V55: =Multi1*SimulationData!V30+Multi2*SimulationData!V1032+Multi3*SimulationData!V2034+Multi4*SimulationData!V3036 -> 0 | W55: =Multi1*SimulationData!W30+Multi2*SimulationData!W1032+Multi3*SimulationData!W2034+Multi4*SimulationData!W3036 -> 0 | X55: =Multi1*SimulationData!X30+Multi2*SimulationData!X1032+Multi3*SimulationData!X2034+Multi4*SimulationData!X3036 -> 0 | Y55: =Multi1*SimulationData!Y30+Multi2*SimulationData!Y1032+Multi3*SimulationData!Y2034+Multi4*SimulationData!Y3036 -> 0 | Z55: =Multi1*SimulationData!Z30+Multi2*SimulationData!Z1032+Multi3*SimulationData!Z2034+Multi4*SimulationData!Z3036 -> 0 | AA55: =Multi1*SimulationData!AA30+Multi2*SimulationData!AA1032+Multi3*SimulationData!AA2034+Multi4*SimulationData!AA3036 -> 0 | AB55: =Multi1*SimulationData!AB30+Multi2*SimulationData!AB1032+Multi3*SimulationData!AB2034+Multi4*SimulationData!AB3036 -> 0 | AC55: =Multi1*SimulationData!AC30+Multi2*SimulationData!AC1032+Multi3*SimulationData!AC2034+Multi4*SimulationData!AC3036 -> 0 | AD55: =Multi1*SimulationData!AD30+Multi2*SimulationData!AD1032+Multi3*SimulationData!AD2034+Multi4*SimulationData!AD3036 -> 0 | AE55: =Multi1*SimulationData!AE30+Multi2*SimulationData!AE1032+Multi3*SimulationData!AE2034+Multi4*SimulationData!AE3036 -> 0
B56: Simulation 29 | C56: =Multi1*SimulationData!C31+Multi2*SimulationData!C1033+Multi3*SimulationData!C2035+Multi4*SimulationData!C3037 -> 3.715804598 | D56: =Multi1*SimulationData!D31+Multi2*SimulationData!D1033+Multi3*SimulationData!D2035+Multi4*SimulationData!D3037 -> 3.487066873 | E56: =Multi1*SimulationData!E31+Multi2*SimulationData!E1033+Multi3*SimulationData!E2035+Multi4*SimulationData!E3037 -> 2.161296319 | F56: =Multi1*SimulationData!F31+Multi2*SimulationData!F1033+Multi3*SimulationData!F2035+Multi4*SimulationData!F3037 -> 3.050586517 | G56: =Multi1*SimulationData!G31+Multi2*SimulationData!G1033+Multi3*SimulationData!G2035+Multi4*SimulationData!G3037 -> 2.559854975 | H56: =Multi1*SimulationData!H31+Multi2*SimulationData!H1033+Multi3*SimulationData!H2035+Multi4*SimulationData!H3037 -> 3.633472173 | I56: =Multi1*SimulationData!I31+Multi2*SimulationData!I1033+Multi3*SimulationData!I2035+Multi4*SimulationData!I3037 -> 4.561689088 | J56: =Multi1*SimulationData!J31+Multi2*SimulationData!J1033+Multi3*SimulationData!J2035+Multi4*SimulationData!J3037 -> 4.983932439 | K56: =Multi1*SimulationData!K31+Multi2*SimulationData!K1033+Multi3*SimulationData!K2035+Multi4*SimulationData!K3037 -> 6.899151322 | L56: =Multi1*SimulationData!L31+Multi2*SimulationData!L1033+Multi3*SimulationData!L2035+Multi4*SimulationData!L3037 -> 7.895570256 | M56: =Multi1*SimulationData!M31+Multi2*SimulationData!M1033+Multi3*SimulationData!M2035+Multi4*SimulationData!M3037 -> 8.253717591 | N56: =Multi1*SimulationData!N31+Multi2*SimulationData!N1033+Multi3*SimulationData!N2035+Multi4*SimulationData!N3037 -> 7.749744168 | O56: =Multi1*SimulationData!O31+Multi2*SimulationData!O1033+Multi3*SimulationData!O2035+Multi4*SimulationData!O3037 -> 7.886526093 | P56: =Multi1*SimulationData!P31+Multi2*SimulationData!P1033+Multi3*SimulationData!P2035+Multi4*SimulationData!P3037 -> 7.585604457 | Q56: =Multi1*SimulationData!Q31+Multi2*SimulationData!Q1033+Multi3*SimulationData!Q2035+Multi4*SimulationData!Q3037 -> 7.61468967 | R56: =Multi1*SimulationData!R31+Multi2*SimulationData!R1033+Multi3*SimulationData!R2035+Multi4*SimulationData!R3037 -> 7.556175567 | S56: =Multi1*SimulationData!S31+Multi2*SimulationData!S1033+Multi3*SimulationData!S2035+Multi4*SimulationData!S3037 -> 6.936746994 | T56: =Multi1*SimulationData!T31+Multi2*SimulationData!T1033+Multi3*SimulationData!T2035+Multi4*SimulationData!T3037 -> 6.766385432 | U56: =Multi1*SimulationData!U31+Multi2*SimulationData!U1033+Multi3*SimulationData!U2035+Multi4*SimulationData!U3037 -> 6.649075718 | V56: =Multi1*SimulationData!V31+Multi2*SimulationData!V1033+Multi3*SimulationData!V2035+Multi4*SimulationData!V3037 -> 6.354355062 | W56: =Multi1*SimulationData!W31+Multi2*SimulationData!W1033+Multi3*SimulationData!W2035+Multi4*SimulationData!W3037 -> 6.158151217 | X56: =Multi1*SimulationData!X31+Multi2*SimulationData!X1033+Multi3*SimulationData!X2035+Multi4*SimulationData!X3037 -> 6.067416244 | Y56: =Multi1*SimulationData!Y31+Multi2*SimulationData!Y1033+Multi3*SimulationData!Y2035+Multi4*SimulationData!Y3037 -> 5.263099542 | Z56: =Multi1*SimulationData!Z31+Multi2*SimulationData!Z1033+Multi3*SimulationData!Z2035+Multi4*SimulationData!Z3037 -> 5.644164441 | AA56: =Multi1*SimulationData!AA31+Multi2*SimulationData!AA1033+Multi3*SimulationData!AA2035+Multi4*SimulationData!AA3037 -> 4.811413719 | AB56: =Multi1*SimulationData!AB31+Multi2*SimulationData!AB1033+Multi3*SimulationData!AB2035+Multi4*SimulationData!AB3037 -> 5.194910134 | AC56: =Multi1*SimulationData!AC31+Multi2*SimulationData!AC1033+Multi3*SimulationData!AC2035+Multi4*SimulationData!AC3037 -> 4.364893922 | AD56: =Multi1*SimulationData!AD31+Multi2*SimulationData!AD1033+Multi3*SimulationData!AD2035+Multi4*SimulationData!AD3037 -> 4.709880542 | AE56: =Multi1*SimulationData!AE31+Multi2*SimulationData!AE1033+Multi3*SimulationData!AE2035+Multi4*SimulationData!AE3037 -> 3.788252659
B57: Simulation 30 | C57: =Multi1*SimulationData!C32+Multi2*SimulationData!C1034+Multi3*SimulationData!C2036+Multi4*SimulationData!C3038 -> 3.715804598 | D57: =Multi1*SimulationData!D32+Multi2*SimulationData!D1034+Multi3*SimulationData!D2036+Multi4*SimulationData!D3038 -> 1.78085446 | E57: =Multi1*SimulationData!E32+Multi2*SimulationData!E1034+Multi3*SimulationData!E2036+Multi4*SimulationData!E3038 -> 0.660860777 | F57: =Multi1*SimulationData!F32+Multi2*SimulationData!F1034+Multi3*SimulationData!F2036+Multi4*SimulationData!F3038 -> 0.6837948038 | G57: =Multi1*SimulationData!G32+Multi2*SimulationData!G1034+Multi3*SimulationData!G2036+Multi4*SimulationData!G3038 -> 0.2353592869 | H57: =Multi1*SimulationData!H32+Multi2*SimulationData!H1034+Multi3*SimulationData!H2036+Multi4*SimulationData!H3038 -> 0.137475055 | I57: =Multi1*SimulationData!I32+Multi2*SimulationData!I1034+Multi3*SimulationData!I2036+Multi4*SimulationData!I3038 -> 0 | J57: =Multi1*SimulationData!J32+Multi2*SimulationData!J1034+Multi3*SimulationData!J2036+Multi4*SimulationData!J3038 -> 1.370191115e-05 | K57: =Multi1*SimulationData!K32+Multi2*SimulationData!K1034+Multi3*SimulationData!K2036+Multi4*SimulationData!K3038 -> 0 | L57: =Multi1*SimulationData!L32+Multi2*SimulationData!L1034+Multi3*SimulationData!L2036+Multi4*SimulationData!L3038 -> 0 | M57: =Multi1*SimulationData!M32+Multi2*SimulationData!M1034+Multi3*SimulationData!M2036+Multi4*SimulationData!M3038 -> 0 | N57: =Multi1*SimulationData!N32+Multi2*SimulationData!N1034+Multi3*SimulationData!N2036+Multi4*SimulationData!N3038 -> 0 | O57: =Multi1*SimulationData!O32+Multi2*SimulationData!O1034+Multi3*SimulationData!O2036+Multi4*SimulationData!O3038 -> 0 | P57: =Multi1*SimulationData!P32+Multi2*SimulationData!P1034+Multi3*SimulationData!P2036+Multi4*SimulationData!P3038 -> 0 | Q57: =Multi1*SimulationData!Q32+Multi2*SimulationData!Q1034+Multi3*SimulationData!Q2036+Multi4*SimulationData!Q3038 -> 0 | R57: =Multi1*SimulationData!R32+Multi2*SimulationData!R1034+Multi3*SimulationData!R2036+Multi4*SimulationData!R3038 -> 7.188202915e-10 | S57: =Multi1*SimulationData!S32+Multi2*SimulationData!S1034+Multi3*SimulationData!S2036+Multi4*SimulationData!S3038 -> 1.117746854e-09 | T57: =Multi1*SimulationData!T32+Multi2*SimulationData!T1034+Multi3*SimulationData!T2036+Multi4*SimulationData!T3038 -> 3.221327433e-08 | U57: =Multi1*SimulationData!U32+Multi2*SimulationData!U1034+Multi3*SimulationData!U2036+Multi4*SimulationData!U3038 -> 5.542239002e-10 | V57: =Multi1*SimulationData!V32+Multi2*SimulationData!V1034+Multi3*SimulationData!V2036+Multi4*SimulationData!V3038 -> 1.791189987e-14 | W57: =Multi1*SimulationData!W32+Multi2*SimulationData!W1034+Multi3*SimulationData!W2036+Multi4*SimulationData!W3038 -> 2.772463476e-44 | X57: =Multi1*SimulationData!X32+Multi2*SimulationData!X1034+Multi3*SimulationData!X2036+Multi4*SimulationData!X3038 -> 0 | Y57: =Multi1*SimulationData!Y32+Multi2*SimulationData!Y1034+Multi3*SimulationData!Y2036+Multi4*SimulationData!Y3038 -> 0 | Z57: =Multi1*SimulationData!Z32+Multi2*SimulationData!Z1034+Multi3*SimulationData!Z2036+Multi4*SimulationData!Z3038 -> 0 | AA57: =Multi1*SimulationData!AA32+Multi2*SimulationData!AA1034+Multi3*SimulationData!AA2036+Multi4*SimulationData!AA3038 -> 0 | AB57: =Multi1*SimulationData!AB32+Multi2*SimulationData!AB1034+Multi3*SimulationData!AB2036+Multi4*SimulationData!AB3038 -> 0 | AC57: =Multi1*SimulationData!AC32+Multi2*SimulationData!AC1034+Multi3*SimulationData!AC2036+Multi4*SimulationData!AC3038 -> 0 | AD57: =Multi1*SimulationData!AD32+Multi2*SimulationData!AD1034+Multi3*SimulationData!AD2036+Multi4*SimulationData!AD3038 -> 0 | AE57: =Multi1*SimulationData!AE32+Multi2*SimulationData!AE1034+Multi3*SimulationData!AE2036+Multi4*SimulationData!AE3038 -> 0
B58: Simulation 31 | C58: =Multi1*SimulationData!C33+Multi2*SimulationData!C1035+Multi3*SimulationData!C2037+Multi4*SimulationData!C3039 -> 3.715804598 | D58: =Multi1*SimulationData!D33+Multi2*SimulationData!D1035+Multi3*SimulationData!D2037+Multi4*SimulationData!D3039 -> 2.881247159 | E58: =Multi1*SimulationData!E33+Multi2*SimulationData!E1035+Multi3*SimulationData!E2037+Multi4*SimulationData!E3039 -> 4.085256888 | F58: =Multi1*SimulationData!F33+Multi2*SimulationData!F1035+Multi3*SimulationData!F2037+Multi4*SimulationData!F3039 -> 4.38150125 | G58: =Multi1*SimulationData!G33+Multi2*SimulationData!G1035+Multi3*SimulationData!G2037+Multi4*SimulationData!G3039 -> 4.207794167 | H58: =Multi1*SimulationData!H33+Multi2*SimulationData!H1035+Multi3*SimulationData!H2037+Multi4*SimulationData!H3039 -> 6.499698902 | I58: =Multi1*SimulationData!I33+Multi2*SimulationData!I1035+Multi3*SimulationData!I2037+Multi4*SimulationData!I3039 -> 6.749509416 | J58: =Multi1*SimulationData!J33+Multi2*SimulationData!J1035+Multi3*SimulationData!J2037+Multi4*SimulationData!J3039 -> 8.463994628 | K58: =Multi1*SimulationData!K33+Multi2*SimulationData!K1035+Multi3*SimulationData!K2037+Multi4*SimulationData!K3039 -> 11.79513314 | L58: =Multi1*SimulationData!L33+Multi2*SimulationData!L1035+Multi3*SimulationData!L2037+Multi4*SimulationData!L3039 -> 9.245863656 | M58: =Multi1*SimulationData!M33+Multi2*SimulationData!M1035+Multi3*SimulationData!M2037+Multi4*SimulationData!M3039 -> 11.35052208 | N58: =Multi1*SimulationData!N33+Multi2*SimulationData!N1035+Multi3*SimulationData!N2037+Multi4*SimulationData!N3039 -> 12.58824479 | O58: =Multi1*SimulationData!O33+Multi2*SimulationData!O1035+Multi3*SimulationData!O2037+Multi4*SimulationData!O3039 -> 13.09995709 | P58: =Multi1*SimulationData!P33+Multi2*SimulationData!P1035+Multi3*SimulationData!P2037+Multi4*SimulationData!P3039 -> 12.63579199 | Q58: =Multi1*SimulationData!Q33+Multi2*SimulationData!Q1035+Multi3*SimulationData!Q2037+Multi4*SimulationData!Q3039 -> 13.61323791 | R58: =Multi1*SimulationData!R33+Multi2*SimulationData!R1035+Multi3*SimulationData!R2037+Multi4*SimulationData!R3039 -> 13.50228781 | S58: =Multi1*SimulationData!S33+Multi2*SimulationData!S1035+Multi3*SimulationData!S2037+Multi4*SimulationData!S3039 -> 12.86725515 | T58: =Multi1*SimulationData!T33+Multi2*SimulationData!T1035+Multi3*SimulationData!T2037+Multi4*SimulationData!T3039 -> 12.77985618 | U58: =Multi1*SimulationData!U33+Multi2*SimulationData!U1035+Multi3*SimulationData!U2037+Multi4*SimulationData!U3039 -> 12.75451303 | V58: =Multi1*SimulationData!V33+Multi2*SimulationData!V1035+Multi3*SimulationData!V2037+Multi4*SimulationData!V3039 -> 12.86847556 | W58: =Multi1*SimulationData!W33+Multi2*SimulationData!W1035+Multi3*SimulationData!W2037+Multi4*SimulationData!W3039 -> 13.12955142 | X58: =Multi1*SimulationData!X33+Multi2*SimulationData!X1035+Multi3*SimulationData!X2037+Multi4*SimulationData!X3039 -> 13.41923678 | Y58: =Multi1*SimulationData!Y33+Multi2*SimulationData!Y1035+Multi3*SimulationData!Y2037+Multi4*SimulationData!Y3039 -> 12.41765643 | Z58: =Multi1*SimulationData!Z33+Multi2*SimulationData!Z1035+Multi3*SimulationData!Z2037+Multi4*SimulationData!Z3039 -> 12.55804353 | AA58: =Multi1*SimulationData!AA33+Multi2*SimulationData!AA1035+Multi3*SimulationData!AA2037+Multi4*SimulationData!AA3039 -> 11.4036671 | AB58: =Multi1*SimulationData!AB33+Multi2*SimulationData!AB1035+Multi3*SimulationData!AB2037+Multi4*SimulationData!AB3039 -> 11.46801075 | AC58: =Multi1*SimulationData!AC33+Multi2*SimulationData!AC1035+Multi3*SimulationData!AC2037+Multi4*SimulationData!AC3039 -> 10.33729513 | AD58: =Multi1*SimulationData!AD33+Multi2*SimulationData!AD1035+Multi3*SimulationData!AD2037+Multi4*SimulationData!AD3039 -> 10.34735786 | AE58: =Multi1*SimulationData!AE33+Multi2*SimulationData!AE1035+Multi3*SimulationData!AE2037+Multi4*SimulationData!AE3039 -> 9.07460985
B59: Simulation 32 | C59: =Multi1*SimulationData!C34+Multi2*SimulationData!C1036+Multi3*SimulationData!C2038+Multi4*SimulationData!C3040 -> 3.715804598 | D59: =Multi1*SimulationData!D34+Multi2*SimulationData!D1036+Multi3*SimulationData!D2038+Multi4*SimulationData!D3040 -> 2.554004098 | E59: =Multi1*SimulationData!E34+Multi2*SimulationData!E1036+Multi3*SimulationData!E2038+Multi4*SimulationData!E3040 -> 1.126384041 | F59: =Multi1*SimulationData!F34+Multi2*SimulationData!F1036+Multi3*SimulationData!F2038+Multi4*SimulationData!F3040 -> 2.202381404 | G59: =Multi1*SimulationData!G34+Multi2*SimulationData!G1036+Multi3*SimulationData!G2038+Multi4*SimulationData!G3040 -> 2.486625029 | H59: =Multi1*SimulationData!H34+Multi2*SimulationData!H1036+Multi3*SimulationData!H2038+Multi4*SimulationData!H3040 -> 0.4081724223 | I59: =Multi1*SimulationData!I34+Multi2*SimulationData!I1036+Multi3*SimulationData!I2038+Multi4*SimulationData!I3040 -> 0.08486722363 | J59: =Multi1*SimulationData!J34+Multi2*SimulationData!J1036+Multi3*SimulationData!J2038+Multi4*SimulationData!J3040 -> 0.06718450615 | K59: =Multi1*SimulationData!K34+Multi2*SimulationData!K1036+Multi3*SimulationData!K2038+Multi4*SimulationData!K3040 -> 0.09986077442 | L59: =Multi1*SimulationData!L34+Multi2*SimulationData!L1036+Multi3*SimulationData!L2038+Multi4*SimulationData!L3040 -> 0.009106726991 | M59: =Multi1*SimulationData!M34+Multi2*SimulationData!M1036+Multi3*SimulationData!M2038+Multi4*SimulationData!M3040 -> 0.006476454278 | N59: =Multi1*SimulationData!N34+Multi2*SimulationData!N1036+Multi3*SimulationData!N2038+Multi4*SimulationData!N3040 -> 0.0005633111291 | O59: =Multi1*SimulationData!O34+Multi2*SimulationData!O1036+Multi3*SimulationData!O2038+Multi4*SimulationData!O3040 -> 0.0003724334879 | P59: =Multi1*SimulationData!P34+Multi2*SimulationData!P1036+Multi3*SimulationData!P2038+Multi4*SimulationData!P3040 -> 7.913866885e-07 | Q59: =Multi1*SimulationData!Q34+Multi2*SimulationData!Q1036+Multi3*SimulationData!Q2038+Multi4*SimulationData!Q3040 -> 0.0004374904814 | R59: =Multi1*SimulationData!R34+Multi2*SimulationData!R1036+Multi3*SimulationData!R2038+Multi4*SimulationData!R3040 -> 0.001065645547 | S59: =Multi1*SimulationData!S34+Multi2*SimulationData!S1036+Multi3*SimulationData!S2038+Multi4*SimulationData!S3040 -> 0.0004385071474 | T59: =Multi1*SimulationData!T34+Multi2*SimulationData!T1036+Multi3*SimulationData!T2038+Multi4*SimulationData!T3040 -> 0.000266309898 | U59: =Multi1*SimulationData!U34+Multi2*SimulationData!U1036+Multi3*SimulationData!U2038+Multi4*SimulationData!U3040 -> 1.324734578e-05 | V59: =Multi1*SimulationData!V34+Multi2*SimulationData!V1036+Multi3*SimulationData!V2038+Multi4*SimulationData!V3040 -> 1.292990404e-07 | W59: =Multi1*SimulationData!W34+Multi2*SimulationData!W1036+Multi3*SimulationData!W2038+Multi4*SimulationData!W3040 -> 2.989971274e-24 | X59: =Multi1*SimulationData!X34+Multi2*SimulationData!X1036+Multi3*SimulationData!X2038+Multi4*SimulationData!X3040 -> 0 | Y59: =Multi1*SimulationData!Y34+Multi2*SimulationData!Y1036+Multi3*SimulationData!Y2038+Multi4*SimulationData!Y3040 -> 0 | Z59: =Multi1*SimulationData!Z34+Multi2*SimulationData!Z1036+Multi3*SimulationData!Z2038+Multi4*SimulationData!Z3040 -> 0 | AA59: =Multi1*SimulationData!AA34+Multi2*SimulationData!AA1036+Multi3*SimulationData!AA2038+Multi4*SimulationData!AA3040 -> 0 | AB59: =Multi1*SimulationData!AB34+Multi2*SimulationData!AB1036+Multi3*SimulationData!AB2038+Multi4*SimulationData!AB3040 -> 0 | AC59: =Multi1*SimulationData!AC34+Multi2*SimulationData!AC1036+Multi3*SimulationData!AC2038+Multi4*SimulationData!AC3040 -> 0 | AD59: =Multi1*SimulationData!AD34+Multi2*SimulationData!AD1036+Multi3*SimulationData!AD2038+Multi4*SimulationData!AD3040 -> 0 | AE59: =Multi1*SimulationData!AE34+Multi2*SimulationData!AE1036+Multi3*SimulationData!AE2038+Multi4*SimulationData!AE3040 -> 0
B60: Simulation 33 | C60: =Multi1*SimulationData!C35+Multi2*SimulationData!C1037+Multi3*SimulationData!C2039+Multi4*SimulationData!C3041 -> 3.715804598 | D60: =Multi1*SimulationData!D35+Multi2*SimulationData!D1037+Multi3*SimulationData!D2039+Multi4*SimulationData!D3041 -> 3.725259703 | E60: =Multi1*SimulationData!E35+Multi2*SimulationData!E1037+Multi3*SimulationData!E2039+Multi4*SimulationData!E3041 -> 6.643141932 | F60: =Multi1*SimulationData!F35+Multi2*SimulationData!F1037+Multi3*SimulationData!F2039+Multi4*SimulationData!F3041 -> 9.497622005 | G60: =Multi1*SimulationData!G35+Multi2*SimulationData!G1037+Multi3*SimulationData!G2039+Multi4*SimulationData!G3041 -> 7.443875175 | H60: =Multi1*SimulationData!H35+Multi2*SimulationData!H1037+Multi3*SimulationData!H2039+Multi4*SimulationData!H3041 -> 6.860767902 | I60: =Multi1*SimulationData!I35+Multi2*SimulationData!I1037+Multi3*SimulationData!I2039+Multi4*SimulationData!I3041 -> 8.384988851 | J60: =Multi1*SimulationData!J35+Multi2*SimulationData!J1037+Multi3*SimulationData!J2039+Multi4*SimulationData!J3041 -> 8.883119706 | K60: =Multi1*SimulationData!K35+Multi2*SimulationData!K1037+Multi3*SimulationData!K2039+Multi4*SimulationData!K3041 -> 10.91489687 | L60: =Multi1*SimulationData!L35+Multi2*SimulationData!L1037+Multi3*SimulationData!L2039+Multi4*SimulationData!L3041 -> 9.784285645 | M60: =Multi1*SimulationData!M35+Multi2*SimulationData!M1037+Multi3*SimulationData!M2039+Multi4*SimulationData!M3041 -> 9.169685853 | N60: =Multi1*SimulationData!N35+Multi2*SimulationData!N1037+Multi3*SimulationData!N2039+Multi4*SimulationData!N3041 -> 9.651663361 | O60: =Multi1*SimulationData!O35+Multi2*SimulationData!O1037+Multi3*SimulationData!O2039+Multi4*SimulationData!O3041 -> 9.515797234 | P60: =Multi1*SimulationData!P35+Multi2*SimulationData!P1037+Multi3*SimulationData!P2039+Multi4*SimulationData!P3041 -> 10.80325505 | Q60: =Multi1*SimulationData!Q35+Multi2*SimulationData!Q1037+Multi3*SimulationData!Q2039+Multi4*SimulationData!Q3041 -> 11.30859214 | R60: =Multi1*SimulationData!R35+Multi2*SimulationData!R1037+Multi3*SimulationData!R2039+Multi4*SimulationData!R3041 -> 11.36280295 | S60: =Multi1*SimulationData!S35+Multi2*SimulationData!S1037+Multi3*SimulationData!S2039+Multi4*SimulationData!S3041 -> 10.82056623 | T60: =Multi1*SimulationData!T35+Multi2*SimulationData!T1037+Multi3*SimulationData!T2039+Multi4*SimulationData!T3041 -> 11.2349483 | U60: =Multi1*SimulationData!U35+Multi2*SimulationData!U1037+Multi3*SimulationData!U2039+Multi4*SimulationData!U3041 -> 11.39430888 | V60: =Multi1*SimulationData!V35+Multi2*SimulationData!V1037+Multi3*SimulationData!V2039+Multi4*SimulationData!V3041 -> 11.59160748 | W60: =Multi1*SimulationData!W35+Multi2*SimulationData!W1037+Multi3*SimulationData!W2039+Multi4*SimulationData!W3041 -> 11.75175105 | X60: =Multi1*SimulationData!X35+Multi2*SimulationData!X1037+Multi3*SimulationData!X2039+Multi4*SimulationData!X3041 -> 11.77848339 | Y60: =Multi1*SimulationData!Y35+Multi2*SimulationData!Y1037+Multi3*SimulationData!Y2039+Multi4*SimulationData!Y3041 -> 10.76072684 | Z60: =Multi1*SimulationData!Z35+Multi2*SimulationData!Z1037+Multi3*SimulationData!Z2039+Multi4*SimulationData!Z3041 -> 10.97330506 | AA60: =Multi1*SimulationData!AA35+Multi2*SimulationData!AA1037+Multi3*SimulationData!AA2039+Multi4*SimulationData!AA3041 -> 9.886076142 | AB60: =Multi1*SimulationData!AB35+Multi2*SimulationData!AB1037+Multi3*SimulationData!AB2039+Multi4*SimulationData!AB3041 -> 9.99754158 | AC60: =Multi1*SimulationData!AC35+Multi2*SimulationData!AC1037+Multi3*SimulationData!AC2039+Multi4*SimulationData!AC3041 -> 8.907832866 | AD60: =Multi1*SimulationData!AD35+Multi2*SimulationData!AD1037+Multi3*SimulationData!AD2039+Multi4*SimulationData!AD3041 -> 8.974549249 | AE60: =Multi1*SimulationData!AE35+Multi2*SimulationData!AE1037+Multi3*SimulationData!AE2039+Multi4*SimulationData!AE3041 -> 7.773755549
B61: Simulation 34 | C61: =Multi1*SimulationData!C36+Multi2*SimulationData!C1038+Multi3*SimulationData!C2040+Multi4*SimulationData!C3042 -> 3.715804598 | D61: =Multi1*SimulationData!D36+Multi2*SimulationData!D1038+Multi3*SimulationData!D2040+Multi4*SimulationData!D3042 -> 3.699199749 | E61: =Multi1*SimulationData!E36+Multi2*SimulationData!E1038+Multi3*SimulationData!E2040+Multi4*SimulationData!E3042 -> 5.206680587 | F61: =Multi1*SimulationData!F36+Multi2*SimulationData!F1038+Multi3*SimulationData!F2040+Multi4*SimulationData!F3042 -> 5.418961498 | G61: =Multi1*SimulationData!G36+Multi2*SimulationData!G1038+Multi3*SimulationData!G2040+Multi4*SimulationData!G3042 -> 5.964472277 | H61: =Multi1*SimulationData!H36+Multi2*SimulationData!H1038+Multi3*SimulationData!H2040+Multi4*SimulationData!H3042 -> 6.743002417 | I61: =Multi1*SimulationData!I36+Multi2*SimulationData!I1038+Multi3*SimulationData!I2040+Multi4*SimulationData!I3042 -> 4.619935065 | J61: =Multi1*SimulationData!J36+Multi2*SimulationData!J1038+Multi3*SimulationData!J2040+Multi4*SimulationData!J3042 -> 2.810271935 | K61: =Multi1*SimulationData!K36+Multi2*SimulationData!K1038+Multi3*SimulationData!K2040+Multi4*SimulationData!K3042 -> 2.519629375 | L61: =Multi1*SimulationData!L36+Multi2*SimulationData!L1038+Multi3*SimulationData!L2040+Multi4*SimulationData!L3042 -> 2.445012712 | M61: =Multi1*SimulationData!M36+Multi2*SimulationData!M1038+Multi3*SimulationData!M2040+Multi4*SimulationData!M3042 -> 2.367283939 | N61: =Multi1*SimulationData!N36+Multi2*SimulationData!N1038+Multi3*SimulationData!N2040+Multi4*SimulationData!N3042 -> 3.294890712 | O61: =Multi1*SimulationData!O36+Multi2*SimulationData!O1038+Multi3*SimulationData!O2040+Multi4*SimulationData!O3042 -> 4.905018603 | P61: =Multi1*SimulationData!P36+Multi2*SimulationData!P1038+Multi3*SimulationData!P2040+Multi4*SimulationData!P3042 -> 5.344987277 | Q61: =Multi1*SimulationData!Q36+Multi2*SimulationData!Q1038+Multi3*SimulationData!Q2040+Multi4*SimulationData!Q3042 -> 5.44046964 | R61: =Multi1*SimulationData!R36+Multi2*SimulationData!R1038+Multi3*SimulationData!R2040+Multi4*SimulationData!R3042 -> 5.065457441 | S61: =Multi1*SimulationData!S36+Multi2*SimulationData!S1038+Multi3*SimulationData!S2040+Multi4*SimulationData!S3042 -> 5.535292441 | T61: =Multi1*SimulationData!T36+Multi2*SimulationData!T1038+Multi3*SimulationData!T2040+Multi4*SimulationData!T3042 -> 5.056940524 | U61: =Multi1*SimulationData!U36+Multi2*SimulationData!U1038+Multi3*SimulationData!U2040+Multi4*SimulationData!U3042 -> 5.042383395 | V61: =Multi1*SimulationData!V36+Multi2*SimulationData!V1038+Multi3*SimulationData!V2040+Multi4*SimulationData!V3042 -> 4.712312329 | W61: =Multi1*SimulationData!W36+Multi2*SimulationData!W1038+Multi3*SimulationData!W2040+Multi4*SimulationData!W3042 -> 4.332392048 | X61: =Multi1*SimulationData!X36+Multi2*SimulationData!X1038+Multi3*SimulationData!X2040+Multi4*SimulationData!X3042 -> 4.233824069 | Y61: =Multi1*SimulationData!Y36+Multi2*SimulationData!Y1038+Multi3*SimulationData!Y2040+Multi4*SimulationData!Y3042 -> 3.442032748 | Z61: =Multi1*SimulationData!Z36+Multi2*SimulationData!Z1038+Multi3*SimulationData!Z2040+Multi4*SimulationData!Z3042 -> 3.859643737 | AA61: =Multi1*SimulationData!AA36+Multi2*SimulationData!AA1038+Multi3*SimulationData!AA2040+Multi4*SimulationData!AA3042 -> 3.011441122 | AB61: =Multi1*SimulationData!AB36+Multi2*SimulationData!AB1038+Multi3*SimulationData!AB2040+Multi4*SimulationData!AB3042 -> 3.393478721 | AC61: =Multi1*SimulationData!AC36+Multi2*SimulationData!AC1038+Multi3*SimulationData!AC2040+Multi4*SimulationData!AC3042 -> 2.562384485 | AD61: =Multi1*SimulationData!AD36+Multi2*SimulationData!AD1038+Multi3*SimulationData!AD2040+Multi4*SimulationData!AD3042 -> 2.919237505 | AE61: =Multi1*SimulationData!AE36+Multi2*SimulationData!AE1038+Multi3*SimulationData!AE2040+Multi4*SimulationData!AE3042 -> 2.039159265
B62: Simulation 35 | C62: =Multi1*SimulationData!C37+Multi2*SimulationData!C1039+Multi3*SimulationData!C2041+Multi4*SimulationData!C3043 -> 3.715804598 | D62: =Multi1*SimulationData!D37+Multi2*SimulationData!D1039+Multi3*SimulationData!D2041+Multi4*SimulationData!D3043 -> 2.753444739 | E62: =Multi1*SimulationData!E37+Multi2*SimulationData!E1039+Multi3*SimulationData!E2041+Multi4*SimulationData!E3043 -> 1.772597636 | F62: =Multi1*SimulationData!F37+Multi2*SimulationData!F1039+Multi3*SimulationData!F2041+Multi4*SimulationData!F3043 -> 2.334084902 | G62: =Multi1*SimulationData!G37+Multi2*SimulationData!G1039+Multi3*SimulationData!G2041+Multi4*SimulationData!G3043 -> 4.220909217 | H62: =Multi1*SimulationData!H37+Multi2*SimulationData!H1039+Multi3*SimulationData!H2041+Multi4*SimulationData!H3043 -> 4.542397477 | I62: =Multi1*SimulationData!I37+Multi2*SimulationData!I1039+Multi3*SimulationData!I2041+Multi4*SimulationData!I3043 -> 5.737335656 | J62: =Multi1*SimulationData!J37+Multi2*SimulationData!J1039+Multi3*SimulationData!J2041+Multi4*SimulationData!J3043 -> 7.882889715 | K62: =Multi1*SimulationData!K37+Multi2*SimulationData!K1039+Multi3*SimulationData!K2041+Multi4*SimulationData!K3043 -> 7.662620333 | L62: =Multi1*SimulationData!L37+Multi2*SimulationData!L1039+Multi3*SimulationData!L2041+Multi4*SimulationData!L3043 -> 10.35865207 | M62: =Multi1*SimulationData!M37+Multi2*SimulationData!M1039+Multi3*SimulationData!M2041+Multi4*SimulationData!M3043 -> 11.0657686 | N62: =Multi1*SimulationData!N37+Multi2*SimulationData!N1039+Multi3*SimulationData!N2041+Multi4*SimulationData!N3043 -> 10.37572836 | O62: =Multi1*SimulationData!O37+Multi2*SimulationData!O1039+Multi3*SimulationData!O2041+Multi4*SimulationData!O3043 -> 9.853774494 | P62: =Multi1*SimulationData!P37+Multi2*SimulationData!P1039+Multi3*SimulationData!P2041+Multi4*SimulationData!P3043 -> 10.40166163 | Q62: =Multi1*SimulationData!Q37+Multi2*SimulationData!Q1039+Multi3*SimulationData!Q2041+Multi4*SimulationData!Q3043 -> 10.35945939 | R62: =Multi1*SimulationData!R37+Multi2*SimulationData!R1039+Multi3*SimulationData!R2041+Multi4*SimulationData!R3043 -> 10.37258564 | S62: =Multi1*SimulationData!S37+Multi2*SimulationData!S1039+Multi3*SimulationData!S2041+Multi4*SimulationData!S3043 -> 10.53984415 | T62: =Multi1*SimulationData!T37+Multi2*SimulationData!T1039+Multi3*SimulationData!T2041+Multi4*SimulationData!T3043 -> 10.86643099 | U62: =Multi1*SimulationData!U37+Multi2*SimulationData!U1039+Multi3*SimulationData!U2041+Multi4*SimulationData!U3043 -> 10.8248817 | V62: =Multi1*SimulationData!V37+Multi2*SimulationData!V1039+Multi3*SimulationData!V2041+Multi4*SimulationData!V3043 -> 10.61545315 | W62: =Multi1*SimulationData!W37+Multi2*SimulationData!W1039+Multi3*SimulationData!W2041+Multi4*SimulationData!W3043 -> 10.857257 | X62: =Multi1*SimulationData!X37+Multi2*SimulationData!X1039+Multi3*SimulationData!X2041+Multi4*SimulationData!X3043 -> 10.96193287 | Y62: =Multi1*SimulationData!Y37+Multi2*SimulationData!Y1039+Multi3*SimulationData!Y2041+Multi4*SimulationData!Y3043 -> 10.00750039 | Z62: =Multi1*SimulationData!Z37+Multi2*SimulationData!Z1039+Multi3*SimulationData!Z2041+Multi4*SimulationData!Z3043 -> 10.2070688 | AA62: =Multi1*SimulationData!AA37+Multi2*SimulationData!AA1039+Multi3*SimulationData!AA2041+Multi4*SimulationData!AA3043 -> 9.164546278 | AB62: =Multi1*SimulationData!AB37+Multi2*SimulationData!AB1039+Multi3*SimulationData!AB2041+Multi4*SimulationData!AB3043 -> 9.299896147 | AC62: =Multi1*SimulationData!AC37+Multi2*SimulationData!AC1039+Multi3*SimulationData!AC2041+Multi4*SimulationData!AC3043 -> 8.220820892 | AD62: =Multi1*SimulationData!AD37+Multi2*SimulationData!AD1039+Multi3*SimulationData!AD2041+Multi4*SimulationData!AD3043 -> 8.307377382 | AE62: =Multi1*SimulationData!AE37+Multi2*SimulationData!AE1039+Multi3*SimulationData!AE2041+Multi4*SimulationData!AE3043 -> 7.121605763
B63: Simulation 36 | C63: =Multi1*SimulationData!C38+Multi2*SimulationData!C1040+Multi3*SimulationData!C2042+Multi4*SimulationData!C3044 -> 3.715804598 | D63: =Multi1*SimulationData!D38+Multi2*SimulationData!D1040+Multi3*SimulationData!D2042+Multi4*SimulationData!D3044 -> 3.944534112 | E63: =Multi1*SimulationData!E38+Multi2*SimulationData!E1040+Multi3*SimulationData!E2042+Multi4*SimulationData!E3044 -> 5.110942424 | F63: =Multi1*SimulationData!F38+Multi2*SimulationData!F1040+Multi3*SimulationData!F2042+Multi4*SimulationData!F3044 -> 3.673245735 | G63: =Multi1*SimulationData!G38+Multi2*SimulationData!G1040+Multi3*SimulationData!G2042+Multi4*SimulationData!G3044 -> 1.951240648 | H63: =Multi1*SimulationData!H38+Multi2*SimulationData!H1040+Multi3*SimulationData!H2042+Multi4*SimulationData!H3044 -> 1.348648762 | I63: =Multi1*SimulationData!I38+Multi2*SimulationData!I1040+Multi3*SimulationData!I2042+Multi4*SimulationData!I3044 -> 2.368098564 | J63: =Multi1*SimulationData!J38+Multi2*SimulationData!J1040+Multi3*SimulationData!J2042+Multi4*SimulationData!J3044 -> 2.694382678 | K63: =Multi1*SimulationData!K38+Multi2*SimulationData!K1040+Multi3*SimulationData!K2042+Multi4*SimulationData!K3044 -> 4.807239168 | L63: =Multi1*SimulationData!L38+Multi2*SimulationData!L1040+Multi3*SimulationData!L2042+Multi4*SimulationData!L3044 -> 4.618225178 | M63: =Multi1*SimulationData!M38+Multi2*SimulationData!M1040+Multi3*SimulationData!M2042+Multi4*SimulationData!M3044 -> 4.661694425 | N63: =Multi1*SimulationData!N38+Multi2*SimulationData!N1040+Multi3*SimulationData!N2042+Multi4*SimulationData!N3044 -> 4.883933359 | O63: =Multi1*SimulationData!O38+Multi2*SimulationData!O1040+Multi3*SimulationData!O2042+Multi4*SimulationData!O3044 -> 5.002298972 | P63: =Multi1*SimulationData!P38+Multi2*SimulationData!P1040+Multi3*SimulationData!P2042+Multi4*SimulationData!P3044 -> 4.904679391 | Q63: =Multi1*SimulationData!Q38+Multi2*SimulationData!Q1040+Multi3*SimulationData!Q2042+Multi4*SimulationData!Q3044 -> 4.461182222 | R63: =Multi1*SimulationData!R38+Multi2*SimulationData!R1040+Multi3*SimulationData!R2042+Multi4*SimulationData!R3044 -> 4.747189464 | S63: =Multi1*SimulationData!S38+Multi2*SimulationData!S1040+Multi3*SimulationData!S2042+Multi4*SimulationData!S3044 -> 5.01126332 | T63: =Multi1*SimulationData!T38+Multi2*SimulationData!T1040+Multi3*SimulationData!T2042+Multi4*SimulationData!T3044 -> 4.247591646 | U63: =Multi1*SimulationData!U38+Multi2*SimulationData!U1040+Multi3*SimulationData!U2042+Multi4*SimulationData!U3044 -> 3.911896253 | V63: =Multi1*SimulationData!V38+Multi2*SimulationData!V1040+Multi3*SimulationData!V2042+Multi4*SimulationData!V3044 -> 3.798342851 | W63: =Multi1*SimulationData!W38+Multi2*SimulationData!W1040+Multi3*SimulationData!W2042+Multi4*SimulationData!W3044 -> 3.504017629 | X63: =Multi1*SimulationData!X38+Multi2*SimulationData!X1040+Multi3*SimulationData!X2042+Multi4*SimulationData!X3044 -> 3.580955465 | Y63: =Multi1*SimulationData!Y38+Multi2*SimulationData!Y1040+Multi3*SimulationData!Y2042+Multi4*SimulationData!Y3044 -> 2.571920658 | Z63: =Multi1*SimulationData!Z38+Multi2*SimulationData!Z1040+Multi3*SimulationData!Z2042+Multi4*SimulationData!Z3044 -> 2.837465111 | AA63: =Multi1*SimulationData!AA38+Multi2*SimulationData!AA1040+Multi3*SimulationData!AA2042+Multi4*SimulationData!AA3044 -> 1.856782856 | AB63: =Multi1*SimulationData!AB38+Multi2*SimulationData!AB1040+Multi3*SimulationData!AB2042+Multi4*SimulationData!AB3044 -> 2.139071937 | AC63: =Multi1*SimulationData!AC38+Multi2*SimulationData!AC1040+Multi3*SimulationData!AC2042+Multi4*SimulationData!AC3044 -> 1.216045568 | AD63: =Multi1*SimulationData!AD38+Multi2*SimulationData!AD1040+Multi3*SimulationData!AD2042+Multi4*SimulationData!AD3044 -> 1.509526463 | AE63: =Multi1*SimulationData!AE38+Multi2*SimulationData!AE1040+Multi3*SimulationData!AE2042+Multi4*SimulationData!AE3044 -> 0.5722685485
B64: Simulation 37 | C64: =Multi1*SimulationData!C39+Multi2*SimulationData!C1041+Multi3*SimulationData!C2043+Multi4*SimulationData!C3045 -> 3.715804598 | D64: =Multi1*SimulationData!D39+Multi2*SimulationData!D1041+Multi3*SimulationData!D2043+Multi4*SimulationData!D3045 -> 4.031619471 | E64: =Multi1*SimulationData!E39+Multi2*SimulationData!E1041+Multi3*SimulationData!E2043+Multi4*SimulationData!E3045 -> 4.089932173 | F64: =Multi1*SimulationData!F39+Multi2*SimulationData!F1041+Multi3*SimulationData!F2043+Multi4*SimulationData!F3045 -> 1.163620829 | G64: =Multi1*SimulationData!G39+Multi2*SimulationData!G1041+Multi3*SimulationData!G2043+Multi4*SimulationData!G3045 -> 1.343022251 | H64: =Multi1*SimulationData!H39+Multi2*SimulationData!H1041+Multi3*SimulationData!H2043+Multi4*SimulationData!H3045 -> 1.755781258 | I64: =Multi1*SimulationData!I39+Multi2*SimulationData!I1041+Multi3*SimulationData!I2043+Multi4*SimulationData!I3045 -> 0.74801304 | J64: =Multi1*SimulationData!J39+Multi2*SimulationData!J1041+Multi3*SimulationData!J2043+Multi4*SimulationData!J3045 -> 2.189803282 | K64: =Multi1*SimulationData!K39+Multi2*SimulationData!K1041+Multi3*SimulationData!K2043+Multi4*SimulationData!K3045 -> 2.670717096 | L64: =Multi1*SimulationData!L39+Multi2*SimulationData!L1041+Multi3*SimulationData!L2043+Multi4*SimulationData!L3045 -> 1.973190262 | M64: =Multi1*SimulationData!M39+Multi2*SimulationData!M1041+Multi3*SimulationData!M2043+Multi4*SimulationData!M3045 -> 1.367386126 | N64: =Multi1*SimulationData!N39+Multi2*SimulationData!N1041+Multi3*SimulationData!N2043+Multi4*SimulationData!N3045 -> 1.828933422 | O64: =Multi1*SimulationData!O39+Multi2*SimulationData!O1041+Multi3*SimulationData!O2043+Multi4*SimulationData!O3045 -> 1.445947095 | P64: =Multi1*SimulationData!P39+Multi2*SimulationData!P1041+Multi3*SimulationData!P2043+Multi4*SimulationData!P3045 -> 1.659921072 | Q64: =Multi1*SimulationData!Q39+Multi2*SimulationData!Q1041+Multi3*SimulationData!Q2043+Multi4*SimulationData!Q3045 -> 1.786602185 | R64: =Multi1*SimulationData!R39+Multi2*SimulationData!R1041+Multi3*SimulationData!R2043+Multi4*SimulationData!R3045 -> 1.421362756 | S64: =Multi1*SimulationData!S39+Multi2*SimulationData!S1041+Multi3*SimulationData!S2043+Multi4*SimulationData!S3045 -> 0.9328471827 | T64: =Multi1*SimulationData!T39+Multi2*SimulationData!T1041+Multi3*SimulationData!T2043+Multi4*SimulationData!T3045 -> 0.5565180659 | U64: =Multi1*SimulationData!U39+Multi2*SimulationData!U1041+Multi3*SimulationData!U2043+Multi4*SimulationData!U3045 -> 0.4439709919 | V64: =Multi1*SimulationData!V39+Multi2*SimulationData!V1041+Multi3*SimulationData!V2043+Multi4*SimulationData!V3045 -> 0.2672408879 | W64: =Multi1*SimulationData!W39+Multi2*SimulationData!W1041+Multi3*SimulationData!W2043+Multi4*SimulationData!W3045 -> 0.01426383506 | X64: =Multi1*SimulationData!X39+Multi2*SimulationData!X1041+Multi3*SimulationData!X2043+Multi4*SimulationData!X3045 -> 0 | Y64: =Multi1*SimulationData!Y39+Multi2*SimulationData!Y1041+Multi3*SimulationData!Y2043+Multi4*SimulationData!Y3045 -> 0 | Z64: =Multi1*SimulationData!Z39+Multi2*SimulationData!Z1041+Multi3*SimulationData!Z2043+Multi4*SimulationData!Z3045 -> 0 | AA64: =Multi1*SimulationData!AA39+Multi2*SimulationData!AA1041+Multi3*SimulationData!AA2043+Multi4*SimulationData!AA3045 -> 0 | AB64: =Multi1*SimulationData!AB39+Multi2*SimulationData!AB1041+Multi3*SimulationData!AB2043+Multi4*SimulationData!AB3045 -> 0 | AC64: =Multi1*SimulationData!AC39+Multi2*SimulationData!AC1041+Multi3*SimulationData!AC2043+Multi4*SimulationData!AC3045 -> 0 | AD64: =Multi1*SimulationData!AD39+Multi2*SimulationData!AD1041+Multi3*SimulationData!AD2043+Multi4*SimulationData!AD3045 -> 0 | AE64: =Multi1*SimulationData!AE39+Multi2*SimulationData!AE1041+Multi3*SimulationData!AE2043+Multi4*SimulationData!AE3045 -> 0
B65: Simulation 38 | C65: =Multi1*SimulationData!C40+Multi2*SimulationData!C1042+Multi3*SimulationData!C2044+Multi4*SimulationData!C3046 -> 3.715804598 | D65: =Multi1*SimulationData!D40+Multi2*SimulationData!D1042+Multi3*SimulationData!D2044+Multi4*SimulationData!D3046 -> 1.92461329 | E65: =Multi1*SimulationData!E40+Multi2*SimulationData!E1042+Multi3*SimulationData!E2044+Multi4*SimulationData!E3046 -> 4.09286775 | F65: =Multi1*SimulationData!F40+Multi2*SimulationData!F1042+Multi3*SimulationData!F2044+Multi4*SimulationData!F3046 -> 2.397420122 | G65: =Multi1*SimulationData!G40+Multi2*SimulationData!G1042+Multi3*SimulationData!G2044+Multi4*SimulationData!G3046 -> 3.181255356 | H65: =Multi1*SimulationData!H40+Multi2*SimulationData!H1042+Multi3*SimulationData!H2044+Multi4*SimulationData!H3046 -> 4.445758125 | I65: =Multi1*SimulationData!I40+Multi2*SimulationData!I1042+Multi3*SimulationData!I2044+Multi4*SimulationData!I3046 -> 5.585017945 | J65: =Multi1*SimulationData!J40+Multi2*SimulationData!J1042+Multi3*SimulationData!J2044+Multi4*SimulationData!J3046 -> 4.318647248 | K65: =Multi1*SimulationData!K40+Multi2*SimulationData!K1042+Multi3*SimulationData!K2044+Multi4*SimulationData!K3046 -> 2.246653218 | L65: =Multi1*SimulationData!L40+Multi2*SimulationData!L1042+Multi3*SimulationData!L2044+Multi4*SimulationData!L3046 -> 1.603493166 | M65: =Multi1*SimulationData!M40+Multi2*SimulationData!M1042+Multi3*SimulationData!M2044+Multi4*SimulationData!M3046 -> 1.382463284 | N65: =Multi1*SimulationData!N40+Multi2*SimulationData!N1042+Multi3*SimulationData!N2044+Multi4*SimulationData!N3046 -> 1.846592723 | O65: =Multi1*SimulationData!O40+Multi2*SimulationData!O1042+Multi3*SimulationData!O2044+Multi4*SimulationData!O3046 -> 2.147134359 | P65: =Multi1*SimulationData!P40+Multi2*SimulationData!P1042+Multi3*SimulationData!P2044+Multi4*SimulationData!P3046 -> 2.304411449 | Q65: =Multi1*SimulationData!Q40+Multi2*SimulationData!Q1042+Multi3*SimulationData!Q2044+Multi4*SimulationData!Q3046 -> 2.70553967 | R65: =Multi1*SimulationData!R40+Multi2*SimulationData!R1042+Multi3*SimulationData!R2044+Multi4*SimulationData!R3046 -> 2.268320563 | S65: =Multi1*SimulationData!S40+Multi2*SimulationData!S1042+Multi3*SimulationData!S2044+Multi4*SimulationData!S3046 -> 2.129722753 | T65: =Multi1*SimulationData!T40+Multi2*SimulationData!T1042+Multi3*SimulationData!T2044+Multi4*SimulationData!T3046 -> 1.971620151 | U65: =Multi1*SimulationData!U40+Multi2*SimulationData!U1042+Multi3*SimulationData!U2044+Multi4*SimulationData!U3046 -> 1.637996394 | V65: =Multi1*SimulationData!V40+Multi2*SimulationData!V1042+Multi3*SimulationData!V2044+Multi4*SimulationData!V3046 -> 1.297928797 | W65: =Multi1*SimulationData!W40+Multi2*SimulationData!W1042+Multi3*SimulationData!W2044+Multi4*SimulationData!W3046 -> 0.750575039 | X65: =Multi1*SimulationData!X40+Multi2*SimulationData!X1042+Multi3*SimulationData!X2044+Multi4*SimulationData!X3046 -> 0 | Y65: =Multi1*SimulationData!Y40+Multi2*SimulationData!Y1042+Multi3*SimulationData!Y2044+Multi4*SimulationData!Y3046 -> 0 | Z65: =Multi1*SimulationData!Z40+Multi2*SimulationData!Z1042+Multi3*SimulationData!Z2044+Multi4*SimulationData!Z3046 -> 0 | AA65: =Multi1*SimulationData!AA40+Multi2*SimulationData!AA1042+Multi3*SimulationData!AA2044+Multi4*SimulationData!AA3046 -> 0 | AB65: =Multi1*SimulationData!AB40+Multi2*SimulationData!AB1042+Multi3*SimulationData!AB2044+Multi4*SimulationData!AB3046 -> 0 | AC65: =Multi1*SimulationData!AC40+Multi2*SimulationData!AC1042+Multi3*SimulationData!AC2044+Multi4*SimulationData!AC3046 -> 0 | AD65: =Multi1*SimulationData!AD40+Multi2*SimulationData!AD1042+Multi3*SimulationData!AD2044+Multi4*SimulationData!AD3046 -> 0 | AE65: =Multi1*SimulationData!AE40+Multi2*SimulationData!AE1042+Multi3*SimulationData!AE2044+Multi4*SimulationData!AE3046 -> 0
B66: Simulation 39 | C66: =Multi1*SimulationData!C41+Multi2*SimulationData!C1043+Multi3*SimulationData!C2045+Multi4*SimulationData!C3047 -> 3.715804598 | D66: =Multi1*SimulationData!D41+Multi2*SimulationData!D1043+Multi3*SimulationData!D2045+Multi4*SimulationData!D3047 -> 5.030124591 | E66: =Multi1*SimulationData!E41+Multi2*SimulationData!E1043+Multi3*SimulationData!E2045+Multi4*SimulationData!E3047 -> 3.910771504 | F66: =Multi1*SimulationData!F41+Multi2*SimulationData!F1043+Multi3*SimulationData!F2045+Multi4*SimulationData!F3047 -> 4.37563184 | G66: =Multi1*SimulationData!G41+Multi2*SimulationData!G1043+Multi3*SimulationData!G2045+Multi4*SimulationData!G3047 -> 5.221874198 | H66: =Multi1*SimulationData!H41+Multi2*SimulationData!H1043+Multi3*SimulationData!H2045+Multi4*SimulationData!H3047 -> 7.61862771 | I66: =Multi1*SimulationData!I41+Multi2*SimulationData!I1043+Multi3*SimulationData!I2045+Multi4*SimulationData!I3047 -> 9.906449918 | J66: =Multi1*SimulationData!J41+Multi2*SimulationData!J1043+Multi3*SimulationData!J2045+Multi4*SimulationData!J3047 -> 8.590268274 | K66: =Multi1*SimulationData!K41+Multi2*SimulationData!K1043+Multi3*SimulationData!K2045+Multi4*SimulationData!K3047 -> 7.735577331 | L66: =Multi1*SimulationData!L41+Multi2*SimulationData!L1043+Multi3*SimulationData!L2045+Multi4*SimulationData!L3047 -> 8.341705366 | M66: =Multi1*SimulationData!M41+Multi2*SimulationData!M1043+Multi3*SimulationData!M2045+Multi4*SimulationData!M3047 -> 8.270479709 | N66: =Multi1*SimulationData!N41+Multi2*SimulationData!N1043+Multi3*SimulationData!N2045+Multi4*SimulationData!N3047 -> 7.131004512 | O66: =Multi1*SimulationData!O41+Multi2*SimulationData!O1043+Multi3*SimulationData!O2045+Multi4*SimulationData!O3047 -> 8.203230775 | P66: =Multi1*SimulationData!P41+Multi2*SimulationData!P1043+Multi3*SimulationData!P2045+Multi4*SimulationData!P3047 -> 8.392922141 | Q66: =Multi1*SimulationData!Q41+Multi2*SimulationData!Q1043+Multi3*SimulationData!Q2045+Multi4*SimulationData!Q3047 -> 8.053846667 | R66: =Multi1*SimulationData!R41+Multi2*SimulationData!R1043+Multi3*SimulationData!R2045+Multi4*SimulationData!R3047 -> 7.242705158 | S66: =Multi1*SimulationData!S41+Multi2*SimulationData!S1043+Multi3*SimulationData!S2045+Multi4*SimulationData!S3047 -> 7.983177618 | T66: =Multi1*SimulationData!T41+Multi2*SimulationData!T1043+Multi3*SimulationData!T2045+Multi4*SimulationData!T3047 -> 7.664018192 | U66: =Multi1*SimulationData!U41+Multi2*SimulationData!U1043+Multi3*SimulationData!U2045+Multi4*SimulationData!U3047 -> 7.540460247 | V66: =Multi1*SimulationData!V41+Multi2*SimulationData!V1043+Multi3*SimulationData!V2045+Multi4*SimulationData!V3047 -> 7.508133554 | W66: =Multi1*SimulationData!W41+Multi2*SimulationData!W1043+Multi3*SimulationData!W2045+Multi4*SimulationData!W3047 -> 7.442206606 | X66: =Multi1*SimulationData!X41+Multi2*SimulationData!X1043+Multi3*SimulationData!X2045+Multi4*SimulationData!X3047 -> 7.572297164 | Y66: =Multi1*SimulationData!Y41+Multi2*SimulationData!Y1043+Multi3*SimulationData!Y2045+Multi4*SimulationData!Y3047 -> 6.689694689 | Z66: =Multi1*SimulationData!Z41+Multi2*SimulationData!Z1043+Multi3*SimulationData!Z2045+Multi4*SimulationData!Z3047 -> 7.0705072 | AA66: =Multi1*SimulationData!AA41+Multi2*SimulationData!AA1043+Multi3*SimulationData!AA2045+Multi4*SimulationData!AA3047 -> 6.177461525 | AB66: =Multi1*SimulationData!AB41+Multi2*SimulationData!AB1043+Multi3*SimulationData!AB2045+Multi4*SimulationData!AB3047 -> 6.471169961 | AC66: =Multi1*SimulationData!AC41+Multi2*SimulationData!AC1043+Multi3*SimulationData!AC2045+Multi4*SimulationData!AC3047 -> 5.563718509 | AD66: =Multi1*SimulationData!AD41+Multi2*SimulationData!AD1043+Multi3*SimulationData!AD2045+Multi4*SimulationData!AD3047 -> 5.81633816 | AE66: =Multi1*SimulationData!AE41+Multi2*SimulationData!AE1043+Multi3*SimulationData!AE2045+Multi4*SimulationData!AE3047 -> 4.816393392
B67: Simulation 40 | C67: =Multi1*SimulationData!C42+Multi2*SimulationData!C1044+Multi3*SimulationData!C2046+Multi4*SimulationData!C3048 -> 3.715804598 | D67: =Multi1*SimulationData!D42+Multi2*SimulationData!D1044+Multi3*SimulationData!D2046+Multi4*SimulationData!D3048 -> 5.160639702 | E67: =Multi1*SimulationData!E42+Multi2*SimulationData!E1044+Multi3*SimulationData!E2046+Multi4*SimulationData!E3048 -> 7.626188052 | F67: =Multi1*SimulationData!F42+Multi2*SimulationData!F1044+Multi3*SimulationData!F2046+Multi4*SimulationData!F3048 -> 9.42494726 | G67: =Multi1*SimulationData!G42+Multi2*SimulationData!G1044+Multi3*SimulationData!G2046+Multi4*SimulationData!G3048 -> 9.989619075 | H67: =Multi1*SimulationData!H42+Multi2*SimulationData!H1044+Multi3*SimulationData!H2046+Multi4*SimulationData!H3048 -> 12.59841656 | I67: =Multi1*SimulationData!I42+Multi2*SimulationData!I1044+Multi3*SimulationData!I2046+Multi4*SimulationData!I3048 -> 10.5057529 | J67: =Multi1*SimulationData!J42+Multi2*SimulationData!J1044+Multi3*SimulationData!J2046+Multi4*SimulationData!J3048 -> 10.40774339 | K67: =Multi1*SimulationData!K42+Multi2*SimulationData!K1044+Multi3*SimulationData!K2046+Multi4*SimulationData!K3048 -> 7.50414341 | L67: =Multi1*SimulationData!L42+Multi2*SimulationData!L1044+Multi3*SimulationData!L2046+Multi4*SimulationData!L3048 -> 9.92318583 | M67: =Multi1*SimulationData!M42+Multi2*SimulationData!M1044+Multi3*SimulationData!M2046+Multi4*SimulationData!M3048 -> 9.543989606 | N67: =Multi1*SimulationData!N42+Multi2*SimulationData!N1044+Multi3*SimulationData!N2046+Multi4*SimulationData!N3048 -> 10.7653709 | O67: =Multi1*SimulationData!O42+Multi2*SimulationData!O1044+Multi3*SimulationData!O2046+Multi4*SimulationData!O3048 -> 9.851749593 | P67: =Multi1*SimulationData!P42+Multi2*SimulationData!P1044+Multi3*SimulationData!P2046+Multi4*SimulationData!P3048 -> 10.05988762 | Q67: =Multi1*SimulationData!Q42+Multi2*SimulationData!Q1044+Multi3*SimulationData!Q2046+Multi4*SimulationData!Q3048 -> 10.27184578 | R67: =Multi1*SimulationData!R42+Multi2*SimulationData!R1044+Multi3*SimulationData!R2046+Multi4*SimulationData!R3048 -> 11.27219923 | S67: =Multi1*SimulationData!S42+Multi2*SimulationData!S1044+Multi3*SimulationData!S2046+Multi4*SimulationData!S3048 -> 11.96105549 | T67: =Multi1*SimulationData!T42+Multi2*SimulationData!T1044+Multi3*SimulationData!T2046+Multi4*SimulationData!T3048 -> 11.88940615 | U67: =Multi1*SimulationData!U42+Multi2*SimulationData!U1044+Multi3*SimulationData!U2046+Multi4*SimulationData!U3048 -> 12.06512402 | V67: =Multi1*SimulationData!V42+Multi2*SimulationData!V1044+Multi3*SimulationData!V2046+Multi4*SimulationData!V3048 -> 12.04609715 | W67: =Multi1*SimulationData!W42+Multi2*SimulationData!W1044+Multi3*SimulationData!W2046+Multi4*SimulationData!W3048 -> 12.33526139 | X67: =Multi1*SimulationData!X42+Multi2*SimulationData!X1044+Multi3*SimulationData!X2046+Multi4*SimulationData!X3048 -> 12.410983 | Y67: =Multi1*SimulationData!Y42+Multi2*SimulationData!Y1044+Multi3*SimulationData!Y2046+Multi4*SimulationData!Y3048 -> 11.12400518 | Z67: =Multi1*SimulationData!Z42+Multi2*SimulationData!Z1044+Multi3*SimulationData!Z2046+Multi4*SimulationData!Z3048 -> 11.10560869 | AA67: =Multi1*SimulationData!AA42+Multi2*SimulationData!AA1044+Multi3*SimulationData!AA2046+Multi4*SimulationData!AA3048 -> 9.782300072 | AB67: =Multi1*SimulationData!AB42+Multi2*SimulationData!AB1044+Multi3*SimulationData!AB2046+Multi4*SimulationData!AB3048 -> 9.695791907 | AC67: =Multi1*SimulationData!AC42+Multi2*SimulationData!AC1044+Multi3*SimulationData!AC2046+Multi4*SimulationData!AC3048 -> 8.424122731 | AD67: =Multi1*SimulationData!AD42+Multi2*SimulationData!AD1044+Multi3*SimulationData!AD2046+Multi4*SimulationData!AD3048 -> 8.327474332 | AE67: =Multi1*SimulationData!AE42+Multi2*SimulationData!AE1044+Multi3*SimulationData!AE2046+Multi4*SimulationData!AE3048 -> 6.972199884
B68: Simulation 41 | C68: =Multi1*SimulationData!C43+Multi2*SimulationData!C1045+Multi3*SimulationData!C2047+Multi4*SimulationData!C3049 -> 3.715804598 | D68: =Multi1*SimulationData!D43+Multi2*SimulationData!D1045+Multi3*SimulationData!D2047+Multi4*SimulationData!D3049 -> 1.441330177 | E68: =Multi1*SimulationData!E43+Multi2*SimulationData!E1045+Multi3*SimulationData!E2047+Multi4*SimulationData!E3049 -> 1.10494074 | F68: =Multi1*SimulationData!F43+Multi2*SimulationData!F1045+Multi3*SimulationData!F2047+Multi4*SimulationData!F3049 -> 1.08120196 | G68: =Multi1*SimulationData!G43+Multi2*SimulationData!G1045+Multi3*SimulationData!G2047+Multi4*SimulationData!G3049 -> 1.454798167 | H68: =Multi1*SimulationData!H43+Multi2*SimulationData!H1045+Multi3*SimulationData!H2047+Multi4*SimulationData!H3049 -> 0.5682207765 | I68: =Multi1*SimulationData!I43+Multi2*SimulationData!I1045+Multi3*SimulationData!I2047+Multi4*SimulationData!I3049 -> 0.0116911908 | J68: =Multi1*SimulationData!J43+Multi2*SimulationData!J1045+Multi3*SimulationData!J2047+Multi4*SimulationData!J3049 -> 0.0004370130878 | K68: =Multi1*SimulationData!K43+Multi2*SimulationData!K1045+Multi3*SimulationData!K2047+Multi4*SimulationData!K3049 -> 0 | L68: =Multi1*SimulationData!L43+Multi2*SimulationData!L1045+Multi3*SimulationData!L2047+Multi4*SimulationData!L3049 -> 0 | M68: =Multi1*SimulationData!M43+Multi2*SimulationData!M1045+Multi3*SimulationData!M2047+Multi4*SimulationData!M3049 -> 0 | N68: =Multi1*SimulationData!N43+Multi2*SimulationData!N1045+Multi3*SimulationData!N2047+Multi4*SimulationData!N3049 -> 0 | O68: =Multi1*SimulationData!O43+Multi2*SimulationData!O1045+Multi3*SimulationData!O2047+Multi4*SimulationData!O3049 -> 0 | P68: =Multi1*SimulationData!P43+Multi2*SimulationData!P1045+Multi3*SimulationData!P2047+Multi4*SimulationData!P3049 -> 0 | Q68: =Multi1*SimulationData!Q43+Multi2*SimulationData!Q1045+Multi3*SimulationData!Q2047+Multi4*SimulationData!Q3049 -> 0 | R68: =Multi1*SimulationData!R43+Multi2*SimulationData!R1045+Multi3*SimulationData!R2047+Multi4*SimulationData!R3049 -> 0 | S68: =Multi1*SimulationData!S43+Multi2*SimulationData!S1045+Multi3*SimulationData!S2047+Multi4*SimulationData!S3049 -> 0 | T68: =Multi1*SimulationData!T43+Multi2*SimulationData!T1045+Multi3*SimulationData!T2047+Multi4*SimulationData!T3049 -> 0 | U68: =Multi1*SimulationData!U43+Multi2*SimulationData!U1045+Multi3*SimulationData!U2047+Multi4*SimulationData!U3049 -> 0 | V68: =Multi1*SimulationData!V43+Multi2*SimulationData!V1045+Multi3*SimulationData!V2047+Multi4*SimulationData!V3049 -> 0 | W68: =Multi1*SimulationData!W43+Multi2*SimulationData!W1045+Multi3*SimulationData!W2047+Multi4*SimulationData!W3049 -> 0 | X68: =Multi1*SimulationData!X43+Multi2*SimulationData!X1045+Multi3*SimulationData!X2047+Multi4*SimulationData!X3049 -> 0 | Y68: =Multi1*SimulationData!Y43+Multi2*SimulationData!Y1045+Multi3*SimulationData!Y2047+Multi4*SimulationData!Y3049 -> 0 | Z68: =Multi1*SimulationData!Z43+Multi2*SimulationData!Z1045+Multi3*SimulationData!Z2047+Multi4*SimulationData!Z3049 -> 0 | AA68: =Multi1*SimulationData!AA43+Multi2*SimulationData!AA1045+Multi3*SimulationData!AA2047+Multi4*SimulationData!AA3049 -> 0 | AB68: =Multi1*SimulationData!AB43+Multi2*SimulationData!AB1045+Multi3*SimulationData!AB2047+Multi4*SimulationData!AB3049 -> 0 | AC68: =Multi1*SimulationData!AC43+Multi2*SimulationData!AC1045+Multi3*SimulationData!AC2047+Multi4*SimulationData!AC3049 -> 0 | AD68: =Multi1*SimulationData!AD43+Multi2*SimulationData!AD1045+Multi3*SimulationData!AD2047+Multi4*SimulationData!AD3049 -> 0 | AE68: =Multi1*SimulationData!AE43+Multi2*SimulationData!AE1045+Multi3*SimulationData!AE2047+Multi4*SimulationData!AE3049 -> 0
B69: Simulation 42 | C69: =Multi1*SimulationData!C44+Multi2*SimulationData!C1046+Multi3*SimulationData!C2048+Multi4*SimulationData!C3050 -> 3.715804598 | D69: =Multi1*SimulationData!D44+Multi2*SimulationData!D1046+Multi3*SimulationData!D2048+Multi4*SimulationData!D3050 -> 2.961657434 | E69: =Multi1*SimulationData!E44+Multi2*SimulationData!E1046+Multi3*SimulationData!E2048+Multi4*SimulationData!E3050 -> 5.412552188 | F69: =Multi1*SimulationData!F44+Multi2*SimulationData!F1046+Multi3*SimulationData!F2048+Multi4*SimulationData!F3050 -> 5.308738005 | G69: =Multi1*SimulationData!G44+Multi2*SimulationData!G1046+Multi3*SimulationData!G2048+Multi4*SimulationData!G3050 -> 8.032515504 | H69: =Multi1*SimulationData!H44+Multi2*SimulationData!H1046+Multi3*SimulationData!H2048+Multi4*SimulationData!H3050 -> 5.244394296 | I69: =Multi1*SimulationData!I44+Multi2*SimulationData!I1046+Multi3*SimulationData!I2048+Multi4*SimulationData!I3050 -> 2.090607184 | J69: =Multi1*SimulationData!J44+Multi2*SimulationData!J1046+Multi3*SimulationData!J2048+Multi4*SimulationData!J3050 -> 1.777642517 | K69: =Multi1*SimulationData!K44+Multi2*SimulationData!K1046+Multi3*SimulationData!K2048+Multi4*SimulationData!K3050 -> 1.244049571 | L69: =Multi1*SimulationData!L44+Multi2*SimulationData!L1046+Multi3*SimulationData!L2048+Multi4*SimulationData!L3050 -> 1.584123489 | M69: =Multi1*SimulationData!M44+Multi2*SimulationData!M1046+Multi3*SimulationData!M2048+Multi4*SimulationData!M3050 -> 3.077194834 | N69: =Multi1*SimulationData!N44+Multi2*SimulationData!N1046+Multi3*SimulationData!N2048+Multi4*SimulationData!N3050 -> 2.91877321 | O69: =Multi1*SimulationData!O44+Multi2*SimulationData!O1046+Multi3*SimulationData!O2048+Multi4*SimulationData!O3050 -> 2.61838868 | P69: =Multi1*SimulationData!P44+Multi2*SimulationData!P1046+Multi3*SimulationData!P2048+Multi4*SimulationData!P3050 -> 2.271361529 | Q69: =Multi1*SimulationData!Q44+Multi2*SimulationData!Q1046+Multi3*SimulationData!Q2048+Multi4*SimulationData!Q3050 -> 1.266722326 | R69: =Multi1*SimulationData!R44+Multi2*SimulationData!R1046+Multi3*SimulationData!R2048+Multi4*SimulationData!R3050 -> 1.154153871 | S69: =Multi1*SimulationData!S44+Multi2*SimulationData!S1046+Multi3*SimulationData!S2048+Multi4*SimulationData!S3050 -> 1.153963454 | T69: =Multi1*SimulationData!T44+Multi2*SimulationData!T1046+Multi3*SimulationData!T2048+Multi4*SimulationData!T3050 -> 1.122046415 | U69: =Multi1*SimulationData!U44+Multi2*SimulationData!U1046+Multi3*SimulationData!U2048+Multi4*SimulationData!U3050 -> 0.9345325253 | V69: =Multi1*SimulationData!V44+Multi2*SimulationData!V1046+Multi3*SimulationData!V2048+Multi4*SimulationData!V3050 -> 0.6882150271 | W69: =Multi1*SimulationData!W44+Multi2*SimulationData!W1046+Multi3*SimulationData!W2048+Multi4*SimulationData!W3050 -> 0.1353750466 | X69: =Multi1*SimulationData!X44+Multi2*SimulationData!X1046+Multi3*SimulationData!X2048+Multi4*SimulationData!X3050 -> 0 | Y69: =Multi1*SimulationData!Y44+Multi2*SimulationData!Y1046+Multi3*SimulationData!Y2048+Multi4*SimulationData!Y3050 -> 0 | Z69: =Multi1*SimulationData!Z44+Multi2*SimulationData!Z1046+Multi3*SimulationData!Z2048+Multi4*SimulationData!Z3050 -> 0 | AA69: =Multi1*SimulationData!AA44+Multi2*SimulationData!AA1046+Multi3*SimulationData!AA2048+Multi4*SimulationData!AA3050 -> 0 | AB69: =Multi1*SimulationData!AB44+Multi2*SimulationData!AB1046+Multi3*SimulationData!AB2048+Multi4*SimulationData!AB3050 -> 0 | AC69: =Multi1*SimulationData!AC44+Multi2*SimulationData!AC1046+Multi3*SimulationData!AC2048+Multi4*SimulationData!AC3050 -> 0 | AD69: =Multi1*SimulationData!AD44+Multi2*SimulationData!AD1046+Multi3*SimulationData!AD2048+Multi4*SimulationData!AD3050 -> 0 | AE69: =Multi1*SimulationData!AE44+Multi2*SimulationData!AE1046+Multi3*SimulationData!AE2048+Multi4*SimulationData!AE3050 -> 0
B70: Simulation 43 | C70: =Multi1*SimulationData!C45+Multi2*SimulationData!C1047+Multi3*SimulationData!C2049+Multi4*SimulationData!C3051 -> 3.715804598 | D70: =Multi1*SimulationData!D45+Multi2*SimulationData!D1047+Multi3*SimulationData!D2049+Multi4*SimulationData!D3051 -> 3.600424504 | E70: =Multi1*SimulationData!E45+Multi2*SimulationData!E1047+Multi3*SimulationData!E2049+Multi4*SimulationData!E3051 -> 1.85005873 | F70: =Multi1*SimulationData!F45+Multi2*SimulationData!F1047+Multi3*SimulationData!F2049+Multi4*SimulationData!F3051 -> 3.61372896 | G70: =Multi1*SimulationData!G45+Multi2*SimulationData!G1047+Multi3*SimulationData!G2049+Multi4*SimulationData!G3051 -> 3.987793136 | H70: =Multi1*SimulationData!H45+Multi2*SimulationData!H1047+Multi3*SimulationData!H2049+Multi4*SimulationData!H3051 -> 4.544644988 | I70: =Multi1*SimulationData!I45+Multi2*SimulationData!I1047+Multi3*SimulationData!I2049+Multi4*SimulationData!I3051 -> 4.305470119 | J70: =Multi1*SimulationData!J45+Multi2*SimulationData!J1047+Multi3*SimulationData!J2049+Multi4*SimulationData!J3051 -> 1.513899861 | K70: =Multi1*SimulationData!K45+Multi2*SimulationData!K1047+Multi3*SimulationData!K2049+Multi4*SimulationData!K3051 -> 0.6139577612 | L70: =Multi1*SimulationData!L45+Multi2*SimulationData!L1047+Multi3*SimulationData!L2049+Multi4*SimulationData!L3051 -> 0.3200779195 | M70: =Multi1*SimulationData!M45+Multi2*SimulationData!M1047+Multi3*SimulationData!M2049+Multi4*SimulationData!M3051 -> 1.517522598 | N70: =Multi1*SimulationData!N45+Multi2*SimulationData!N1047+Multi3*SimulationData!N2049+Multi4*SimulationData!N3051 -> 1.210624995 | O70: =Multi1*SimulationData!O45+Multi2*SimulationData!O1047+Multi3*SimulationData!O2049+Multi4*SimulationData!O3051 -> 1.527674358 | P70: =Multi1*SimulationData!P45+Multi2*SimulationData!P1047+Multi3*SimulationData!P2049+Multi4*SimulationData!P3051 -> 0.6904125237 | Q70: =Multi1*SimulationData!Q45+Multi2*SimulationData!Q1047+Multi3*SimulationData!Q2049+Multi4*SimulationData!Q3051 -> 0.7286428253 | R70: =Multi1*SimulationData!R45+Multi2*SimulationData!R1047+Multi3*SimulationData!R2049+Multi4*SimulationData!R3051 -> 0.321677854 | S70: =Multi1*SimulationData!S45+Multi2*SimulationData!S1047+Multi3*SimulationData!S2049+Multi4*SimulationData!S3051 -> 0.7280776221 | T70: =Multi1*SimulationData!T45+Multi2*SimulationData!T1047+Multi3*SimulationData!T2049+Multi4*SimulationData!T3051 -> 0.6057339201 | U70: =Multi1*SimulationData!U45+Multi2*SimulationData!U1047+Multi3*SimulationData!U2049+Multi4*SimulationData!U3051 -> 0.4626514058 | V70: =Multi1*SimulationData!V45+Multi2*SimulationData!V1047+Multi3*SimulationData!V2049+Multi4*SimulationData!V3051 -> 0.2953807918 | W70: =Multi1*SimulationData!W45+Multi2*SimulationData!W1047+Multi3*SimulationData!W2049+Multi4*SimulationData!W3051 -> 0.02451311748 | X70: =Multi1*SimulationData!X45+Multi2*SimulationData!X1047+Multi3*SimulationData!X2049+Multi4*SimulationData!X3051 -> 0 | Y70: =Multi1*SimulationData!Y45+Multi2*SimulationData!Y1047+Multi3*SimulationData!Y2049+Multi4*SimulationData!Y3051 -> 0 | Z70: =Multi1*SimulationData!Z45+Multi2*SimulationData!Z1047+Multi3*SimulationData!Z2049+Multi4*SimulationData!Z3051 -> 0 | AA70: =Multi1*SimulationData!AA45+Multi2*SimulationData!AA1047+Multi3*SimulationData!AA2049+Multi4*SimulationData!AA3051 -> 0 | AB70: =Multi1*SimulationData!AB45+Multi2*SimulationData!AB1047+Multi3*SimulationData!AB2049+Multi4*SimulationData!AB3051 -> 0 | AC70: =Multi1*SimulationData!AC45+Multi2*SimulationData!AC1047+Multi3*SimulationData!AC2049+Multi4*SimulationData!AC3051 -> 0 | AD70: =Multi1*SimulationData!AD45+Multi2*SimulationData!AD1047+Multi3*SimulationData!AD2049+Multi4*SimulationData!AD3051 -> 0 | AE70: =Multi1*SimulationData!AE45+Multi2*SimulationData!AE1047+Multi3*SimulationData!AE2049+Multi4*SimulationData!AE3051 -> 0
B71: Simulation 44 | C71: =Multi1*SimulationData!C46+Multi2*SimulationData!C1048+Multi3*SimulationData!C2050+Multi4*SimulationData!C3052 -> 3.715804598 | D71: =Multi1*SimulationData!D46+Multi2*SimulationData!D1048+Multi3*SimulationData!D2050+Multi4*SimulationData!D3052 -> 5.575657086 | E71: =Multi1*SimulationData!E46+Multi2*SimulationData!E1048+Multi3*SimulationData!E2050+Multi4*SimulationData!E3052 -> 9.057823097 | F71: =Multi1*SimulationData!F46+Multi2*SimulationData!F1048+Multi3*SimulationData!F2050+Multi4*SimulationData!F3052 -> 7.003725624 | G71: =Multi1*SimulationData!G46+Multi2*SimulationData!G1048+Multi3*SimulationData!G2050+Multi4*SimulationData!G3052 -> 7.897510138 | H71: =Multi1*SimulationData!H46+Multi2*SimulationData!H1048+Multi3*SimulationData!H2050+Multi4*SimulationData!H3052 -> 9.423073333 | I71: =Multi1*SimulationData!I46+Multi2*SimulationData!I1048+Multi3*SimulationData!I2050+Multi4*SimulationData!I3052 -> 8.596819754 | J71: =Multi1*SimulationData!J46+Multi2*SimulationData!J1048+Multi3*SimulationData!J2050+Multi4*SimulationData!J3052 -> 7.811067869 | K71: =Multi1*SimulationData!K46+Multi2*SimulationData!K1048+Multi3*SimulationData!K2050+Multi4*SimulationData!K3052 -> 6.363830049 | L71: =Multi1*SimulationData!L46+Multi2*SimulationData!L1048+Multi3*SimulationData!L2050+Multi4*SimulationData!L3052 -> 5.77329191 | M71: =Multi1*SimulationData!M46+Multi2*SimulationData!M1048+Multi3*SimulationData!M2050+Multi4*SimulationData!M3052 -> 5.650996871 | N71: =Multi1*SimulationData!N46+Multi2*SimulationData!N1048+Multi3*SimulationData!N2050+Multi4*SimulationData!N3052 -> 6.639062595 | O71: =Multi1*SimulationData!O46+Multi2*SimulationData!O1048+Multi3*SimulationData!O2050+Multi4*SimulationData!O3052 -> 7.276679095 | P71: =Multi1*SimulationData!P46+Multi2*SimulationData!P1048+Multi3*SimulationData!P2050+Multi4*SimulationData!P3052 -> 7.129967393 | Q71: =Multi1*SimulationData!Q46+Multi2*SimulationData!Q1048+Multi3*SimulationData!Q2050+Multi4*SimulationData!Q3052 -> 7.041268977 | R71: =Multi1*SimulationData!R46+Multi2*SimulationData!R1048+Multi3*SimulationData!R2050+Multi4*SimulationData!R3052 -> 6.987819249 | S71: =Multi1*SimulationData!S46+Multi2*SimulationData!S1048+Multi3*SimulationData!S2050+Multi4*SimulationData!S3052 -> 6.722136012 | T71: =Multi1*SimulationData!T46+Multi2*SimulationData!T1048+Multi3*SimulationData!T2050+Multi4*SimulationData!T3052 -> 6.503304804 | U71: =Multi1*SimulationData!U46+Multi2*SimulationData!U1048+Multi3*SimulationData!U2050+Multi4*SimulationData!U3052 -> 6.504144702 | V71: =Multi1*SimulationData!V46+Multi2*SimulationData!V1048+Multi3*SimulationData!V2050+Multi4*SimulationData!V3052 -> 6.342399885 | W71: =Multi1*SimulationData!W46+Multi2*SimulationData!W1048+Multi3*SimulationData!W2050+Multi4*SimulationData!W3052 -> 6.062743178 | X71: =Multi1*SimulationData!X46+Multi2*SimulationData!X1048+Multi3*SimulationData!X2050+Multi4*SimulationData!X3052 -> 6.208208458 | Y71: =Multi1*SimulationData!Y46+Multi2*SimulationData!Y1048+Multi3*SimulationData!Y2050+Multi4*SimulationData!Y3052 -> 5.348689323 | Z71: =Multi1*SimulationData!Z46+Multi2*SimulationData!Z1048+Multi3*SimulationData!Z2050+Multi4*SimulationData!Z3052 -> 5.716855556 | AA71: =Multi1*SimulationData!AA46+Multi2*SimulationData!AA1048+Multi3*SimulationData!AA2050+Multi4*SimulationData!AA3052 -> 4.80123806 | AB71: =Multi1*SimulationData!AB46+Multi2*SimulationData!AB1048+Multi3*SimulationData!AB2050+Multi4*SimulationData!AB3052 -> 5.126969147 | AC71: =Multi1*SimulationData!AC46+Multi2*SimulationData!AC1048+Multi3*SimulationData!AC2050+Multi4*SimulationData!AC3052 -> 4.247882594 | AD71: =Multi1*SimulationData!AD46+Multi2*SimulationData!AD1048+Multi3*SimulationData!AD2050+Multi4*SimulationData!AD3052 -> 4.531939545 | AE71: =Multi1*SimulationData!AE46+Multi2*SimulationData!AE1048+Multi3*SimulationData!AE2050+Multi4*SimulationData!AE3052 -> 3.575343651
B72: Simulation 45 | C72: =Multi1*SimulationData!C47+Multi2*SimulationData!C1049+Multi3*SimulationData!C2051+Multi4*SimulationData!C3053 -> 3.715804598 | D72: =Multi1*SimulationData!D47+Multi2*SimulationData!D1049+Multi3*SimulationData!D2051+Multi4*SimulationData!D3053 -> 4.606883236 | E72: =Multi1*SimulationData!E47+Multi2*SimulationData!E1049+Multi3*SimulationData!E2051+Multi4*SimulationData!E3053 -> 4.666698423 | F72: =Multi1*SimulationData!F47+Multi2*SimulationData!F1049+Multi3*SimulationData!F2051+Multi4*SimulationData!F3053 -> 4.453912373 | G72: =Multi1*SimulationData!G47+Multi2*SimulationData!G1049+Multi3*SimulationData!G2051+Multi4*SimulationData!G3053 -> 2.36157427 | H72: =Multi1*SimulationData!H47+Multi2*SimulationData!H1049+Multi3*SimulationData!H2051+Multi4*SimulationData!H3053 -> 2.382724479 | I72: =Multi1*SimulationData!I47+Multi2*SimulationData!I1049+Multi3*SimulationData!I2051+Multi4*SimulationData!I3053 -> 2.646638521 | J72: =Multi1*SimulationData!J47+Multi2*SimulationData!J1049+Multi3*SimulationData!J2051+Multi4*SimulationData!J3053 -> 2.985538387 | K72: =Multi1*SimulationData!K47+Multi2*SimulationData!K1049+Multi3*SimulationData!K2051+Multi4*SimulationData!K3053 -> 1.777687456 | L72: =Multi1*SimulationData!L47+Multi2*SimulationData!L1049+Multi3*SimulationData!L2051+Multi4*SimulationData!L3053 -> 2.519599905 | M72: =Multi1*SimulationData!M47+Multi2*SimulationData!M1049+Multi3*SimulationData!M2051+Multi4*SimulationData!M3053 -> 4.304331164 | N72: =Multi1*SimulationData!N47+Multi2*SimulationData!N1049+Multi3*SimulationData!N2051+Multi4*SimulationData!N3053 -> 5.279078969 | O72: =Multi1*SimulationData!O47+Multi2*SimulationData!O1049+Multi3*SimulationData!O2051+Multi4*SimulationData!O3053 -> 4.365646323 | P72: =Multi1*SimulationData!P47+Multi2*SimulationData!P1049+Multi3*SimulationData!P2051+Multi4*SimulationData!P3053 -> 3.615088247 | Q72: =Multi1*SimulationData!Q47+Multi2*SimulationData!Q1049+Multi3*SimulationData!Q2051+Multi4*SimulationData!Q3053 -> 2.667491418 | R72: =Multi1*SimulationData!R47+Multi2*SimulationData!R1049+Multi3*SimulationData!R2051+Multi4*SimulationData!R3053 -> 2.617727575 | S72: =Multi1*SimulationData!S47+Multi2*SimulationData!S1049+Multi3*SimulationData!S2051+Multi4*SimulationData!S3053 -> 1.808698401 | T72: =Multi1*SimulationData!T47+Multi2*SimulationData!T1049+Multi3*SimulationData!T2051+Multi4*SimulationData!T3053 -> 1.715179249 | U72: =Multi1*SimulationData!U47+Multi2*SimulationData!U1049+Multi3*SimulationData!U2051+Multi4*SimulationData!U3053 -> 1.427184862 | V72: =Multi1*SimulationData!V47+Multi2*SimulationData!V1049+Multi3*SimulationData!V2051+Multi4*SimulationData!V3053 -> 1.095815638 | W72: =Multi1*SimulationData!W47+Multi2*SimulationData!W1049+Multi3*SimulationData!W2051+Multi4*SimulationData!W3053 -> 0.3779786056 | X72: =Multi1*SimulationData!X47+Multi2*SimulationData!X1049+Multi3*SimulationData!X2051+Multi4*SimulationData!X3053 -> 0 | Y72: =Multi1*SimulationData!Y47+Multi2*SimulationData!Y1049+Multi3*SimulationData!Y2051+Multi4*SimulationData!Y3053 -> 0 | Z72: =Multi1*SimulationData!Z47+Multi2*SimulationData!Z1049+Multi3*SimulationData!Z2051+Multi4*SimulationData!Z3053 -> 0 | AA72: =Multi1*SimulationData!AA47+Multi2*SimulationData!AA1049+Multi3*SimulationData!AA2051+Multi4*SimulationData!AA3053 -> 0 | AB72: =Multi1*SimulationData!AB47+Multi2*SimulationData!AB1049+Multi3*SimulationData!AB2051+Multi4*SimulationData!AB3053 -> 0 | AC72: =Multi1*SimulationData!AC47+Multi2*SimulationData!AC1049+Multi3*SimulationData!AC2051+Multi4*SimulationData!AC3053 -> 0 | AD72: =Multi1*SimulationData!AD47+Multi2*SimulationData!AD1049+Multi3*SimulationData!AD2051+Multi4*SimulationData!AD3053 -> 0 | AE72: =Multi1*SimulationData!AE47+Multi2*SimulationData!AE1049+Multi3*SimulationData!AE2051+Multi4*SimulationData!AE3053 -> 0
B73: Simulation 46 | C73: =Multi1*SimulationData!C48+Multi2*SimulationData!C1050+Multi3*SimulationData!C2052+Multi4*SimulationData!C3054 -> 3.715804598 | D73: =Multi1*SimulationData!D48+Multi2*SimulationData!D1050+Multi3*SimulationData!D2052+Multi4*SimulationData!D3054 -> 1.427104789 | E73: =Multi1*SimulationData!E48+Multi2*SimulationData!E1050+Multi3*SimulationData!E2052+Multi4*SimulationData!E3054 -> 1.823098966 | F73: =Multi1*SimulationData!F48+Multi2*SimulationData!F1050+Multi3*SimulationData!F2052+Multi4*SimulationData!F3054 -> 1.483581347 | G73: =Multi1*SimulationData!G48+Multi2*SimulationData!G1050+Multi3*SimulationData!G2052+Multi4*SimulationData!G3054 -> 1.684036057 | H73: =Multi1*SimulationData!H48+Multi2*SimulationData!H1050+Multi3*SimulationData!H2052+Multi4*SimulationData!H3054 -> 1.248907497 | I73: =Multi1*SimulationData!I48+Multi2*SimulationData!I1050+Multi3*SimulationData!I2052+Multi4*SimulationData!I3054 -> 1.126311043 | J73: =Multi1*SimulationData!J48+Multi2*SimulationData!J1050+Multi3*SimulationData!J2052+Multi4*SimulationData!J3054 -> 0.6216716664 | K73: =Multi1*SimulationData!K48+Multi2*SimulationData!K1050+Multi3*SimulationData!K2052+Multi4*SimulationData!K3054 -> 0.6513086476 | L73: =Multi1*SimulationData!L48+Multi2*SimulationData!L1050+Multi3*SimulationData!L2052+Multi4*SimulationData!L3054 -> 0.8629695321 | M73: =Multi1*SimulationData!M48+Multi2*SimulationData!M1050+Multi3*SimulationData!M2052+Multi4*SimulationData!M3054 -> 1.136847563 | N73: =Multi1*SimulationData!N48+Multi2*SimulationData!N1050+Multi3*SimulationData!N2052+Multi4*SimulationData!N3054 -> 0.4050899483 | O73: =Multi1*SimulationData!O48+Multi2*SimulationData!O1050+Multi3*SimulationData!O2052+Multi4*SimulationData!O3054 -> 0.4662974126 | P73: =Multi1*SimulationData!P48+Multi2*SimulationData!P1050+Multi3*SimulationData!P2052+Multi4*SimulationData!P3054 -> 0.1758081155 | Q73: =Multi1*SimulationData!Q48+Multi2*SimulationData!Q1050+Multi3*SimulationData!Q2052+Multi4*SimulationData!Q3054 -> 0.129715443 | R73: =Multi1*SimulationData!R48+Multi2*SimulationData!R1050+Multi3*SimulationData!R2052+Multi4*SimulationData!R3054 -> 0.1899847605 | S73: =Multi1*SimulationData!S48+Multi2*SimulationData!S1050+Multi3*SimulationData!S2052+Multi4*SimulationData!S3054 -> 0.09643694712 | T73: =Multi1*SimulationData!T48+Multi2*SimulationData!T1050+Multi3*SimulationData!T2052+Multi4*SimulationData!T3054 -> 0.03339976825 | U73: =Multi1*SimulationData!U48+Multi2*SimulationData!U1050+Multi3*SimulationData!U2052+Multi4*SimulationData!U3054 -> 0.01416340379 | V73: =Multi1*SimulationData!V48+Multi2*SimulationData!V1050+Multi3*SimulationData!V2052+Multi4*SimulationData!V3054 -> 0.002604265077 | W73: =Multi1*SimulationData!W48+Multi2*SimulationData!W1050+Multi3*SimulationData!W2052+Multi4*SimulationData!W3054 -> 2.843956442e-08 | X73: =Multi1*SimulationData!X48+Multi2*SimulationData!X1050+Multi3*SimulationData!X2052+Multi4*SimulationData!X3054 -> 0 | Y73: =Multi1*SimulationData!Y48+Multi2*SimulationData!Y1050+Multi3*SimulationData!Y2052+Multi4*SimulationData!Y3054 -> 0 | Z73: =Multi1*SimulationData!Z48+Multi2*SimulationData!Z1050+Multi3*SimulationData!Z2052+Multi4*SimulationData!Z3054 -> 0 | AA73: =Multi1*SimulationData!AA48+Multi2*SimulationData!AA1050+Multi3*SimulationData!AA2052+Multi4*SimulationData!AA3054 -> 0 | AB73: =Multi1*SimulationData!AB48+Multi2*SimulationData!AB1050+Multi3*SimulationData!AB2052+Multi4*SimulationData!AB3054 -> 0 | AC73: =Multi1*SimulationData!AC48+Multi2*SimulationData!AC1050+Multi3*SimulationData!AC2052+Multi4*SimulationData!AC3054 -> 0 | AD73: =Multi1*SimulationData!AD48+Multi2*SimulationData!AD1050+Multi3*SimulationData!AD2052+Multi4*SimulationData!AD3054 -> 0 | AE73: =Multi1*SimulationData!AE48+Multi2*SimulationData!AE1050+Multi3*SimulationData!AE2052+Multi4*SimulationData!AE3054 -> 0
B74: Simulation 47 | C74: =Multi1*SimulationData!C49+Multi2*SimulationData!C1051+Multi3*SimulationData!C2053+Multi4*SimulationData!C3055 -> 3.715804598 | D74: =Multi1*SimulationData!D49+Multi2*SimulationData!D1051+Multi3*SimulationData!D2053+Multi4*SimulationData!D3055 -> 3.985217857 | E74: =Multi1*SimulationData!E49+Multi2*SimulationData!E1051+Multi3*SimulationData!E2053+Multi4*SimulationData!E3055 -> 7.425305213 | F74: =Multi1*SimulationData!F49+Multi2*SimulationData!F1051+Multi3*SimulationData!F2053+Multi4*SimulationData!F3055 -> 8.035290533 | G74: =Multi1*SimulationData!G49+Multi2*SimulationData!G1051+Multi3*SimulationData!G2053+Multi4*SimulationData!G3055 -> 8.577683522 | H74: =Multi1*SimulationData!H49+Multi2*SimulationData!H1051+Multi3*SimulationData!H2053+Multi4*SimulationData!H3055 -> 8.438301106 | I74: =Multi1*SimulationData!I49+Multi2*SimulationData!I1051+Multi3*SimulationData!I2053+Multi4*SimulationData!I3055 -> 7.754481761 | J74: =Multi1*SimulationData!J49+Multi2*SimulationData!J1051+Multi3*SimulationData!J2053+Multi4*SimulationData!J3055 -> 8.435814252 | K74: =Multi1*SimulationData!K49+Multi2*SimulationData!K1051+Multi3*SimulationData!K2053+Multi4*SimulationData!K3055 -> 9.732435849 | L74: =Multi1*SimulationData!L49+Multi2*SimulationData!L1051+Multi3*SimulationData!L2053+Multi4*SimulationData!L3055 -> 10.35294052 | M74: =Multi1*SimulationData!M49+Multi2*SimulationData!M1051+Multi3*SimulationData!M2053+Multi4*SimulationData!M3055 -> 9.771462152 | N74: =Multi1*SimulationData!N49+Multi2*SimulationData!N1051+Multi3*SimulationData!N2053+Multi4*SimulationData!N3055 -> 9.066766583 | O74: =Multi1*SimulationData!O49+Multi2*SimulationData!O1051+Multi3*SimulationData!O2053+Multi4*SimulationData!O3055 -> 10.26798651 | P74: =Multi1*SimulationData!P49+Multi2*SimulationData!P1051+Multi3*SimulationData!P2053+Multi4*SimulationData!P3055 -> 9.039173043 | Q74: =Multi1*SimulationData!Q49+Multi2*SimulationData!Q1051+Multi3*SimulationData!Q2053+Multi4*SimulationData!Q3055 -> 8.517637069 | R74: =Multi1*SimulationData!R49+Multi2*SimulationData!R1051+Multi3*SimulationData!R2053+Multi4*SimulationData!R3055 -> 8.155931182 | S74: =Multi1*SimulationData!S49+Multi2*SimulationData!S1051+Multi3*SimulationData!S2053+Multi4*SimulationData!S3055 -> 8.406821416 | T74: =Multi1*SimulationData!T49+Multi2*SimulationData!T1051+Multi3*SimulationData!T2053+Multi4*SimulationData!T3055 -> 8.329778516 | U74: =Multi1*SimulationData!U49+Multi2*SimulationData!U1051+Multi3*SimulationData!U2053+Multi4*SimulationData!U3055 -> 8.290238625 | V74: =Multi1*SimulationData!V49+Multi2*SimulationData!V1051+Multi3*SimulationData!V2053+Multi4*SimulationData!V3055 -> 8.369660544 | W74: =Multi1*SimulationData!W49+Multi2*SimulationData!W1051+Multi3*SimulationData!W2053+Multi4*SimulationData!W3055 -> 8.519840911 | X74: =Multi1*SimulationData!X49+Multi2*SimulationData!X1051+Multi3*SimulationData!X2053+Multi4*SimulationData!X3055 -> 8.625108432 | Y74: =Multi1*SimulationData!Y49+Multi2*SimulationData!Y1051+Multi3*SimulationData!Y2053+Multi4*SimulationData!Y3055 -> 7.824859823 | Z74: =Multi1*SimulationData!Z49+Multi2*SimulationData!Z1051+Multi3*SimulationData!Z2053+Multi4*SimulationData!Z3055 -> 8.206045672 | AA74: =Multi1*SimulationData!AA49+Multi2*SimulationData!AA1051+Multi3*SimulationData!AA2053+Multi4*SimulationData!AA3055 -> 7.340972245 | AB74: =Multi1*SimulationData!AB49+Multi2*SimulationData!AB1051+Multi3*SimulationData!AB2053+Multi4*SimulationData!AB3055 -> 7.677817359 | AC74: =Multi1*SimulationData!AC49+Multi2*SimulationData!AC1051+Multi3*SimulationData!AC2053+Multi4*SimulationData!AC3055 -> 6.799294314 | AD74: =Multi1*SimulationData!AD49+Multi2*SimulationData!AD1051+Multi3*SimulationData!AD2053+Multi4*SimulationData!AD3055 -> 7.073453635 | AE74: =Multi1*SimulationData!AE49+Multi2*SimulationData!AE1051+Multi3*SimulationData!AE2053+Multi4*SimulationData!AE3055 -> 6.074816378
B75: Simulation 48 | C75: =Multi1*SimulationData!C50+Multi2*SimulationData!C1052+Multi3*SimulationData!C2054+Multi4*SimulationData!C3056 -> 3.715804598 | D75: =Multi1*SimulationData!D50+Multi2*SimulationData!D1052+Multi3*SimulationData!D2054+Multi4*SimulationData!D3056 -> 5.631895089 | E75: =Multi1*SimulationData!E50+Multi2*SimulationData!E1052+Multi3*SimulationData!E2054+Multi4*SimulationData!E3056 -> 6.608885336 | F75: =Multi1*SimulationData!F50+Multi2*SimulationData!F1052+Multi3*SimulationData!F2054+Multi4*SimulationData!F3056 -> 6.676093891 | G75: =Multi1*SimulationData!G50+Multi2*SimulationData!G1052+Multi3*SimulationData!G2054+Multi4*SimulationData!G3056 -> 5.676316486 | H75: =Multi1*SimulationData!H50+Multi2*SimulationData!H1052+Multi3*SimulationData!H2054+Multi4*SimulationData!H3056 -> 5.77196544 | I75: =Multi1*SimulationData!I50+Multi2*SimulationData!I1052+Multi3*SimulationData!I2054+Multi4*SimulationData!I3056 -> 7.671288897 | J75: =Multi1*SimulationData!J50+Multi2*SimulationData!J1052+Multi3*SimulationData!J2054+Multi4*SimulationData!J3056 -> 8.703756994 | K75: =Multi1*SimulationData!K50+Multi2*SimulationData!K1052+Multi3*SimulationData!K2054+Multi4*SimulationData!K3056 -> 7.300402098 | L75: =Multi1*SimulationData!L50+Multi2*SimulationData!L1052+Multi3*SimulationData!L2054+Multi4*SimulationData!L3056 -> 6.983043929 | M75: =Multi1*SimulationData!M50+Multi2*SimulationData!M1052+Multi3*SimulationData!M2054+Multi4*SimulationData!M3056 -> 9.079873846 | N75: =Multi1*SimulationData!N50+Multi2*SimulationData!N1052+Multi3*SimulationData!N2054+Multi4*SimulationData!N3056 -> 9.994704377 | O75: =Multi1*SimulationData!O50+Multi2*SimulationData!O1052+Multi3*SimulationData!O2054+Multi4*SimulationData!O3056 -> 10.1927779 | P75: =Multi1*SimulationData!P50+Multi2*SimulationData!P1052+Multi3*SimulationData!P2054+Multi4*SimulationData!P3056 -> 12.70253738 | Q75: =Multi1*SimulationData!Q50+Multi2*SimulationData!Q1052+Multi3*SimulationData!Q2054+Multi4*SimulationData!Q3056 -> 13.29318794 | R75: =Multi1*SimulationData!R50+Multi2*SimulationData!R1052+Multi3*SimulationData!R2054+Multi4*SimulationData!R3056 -> 13.57636008 | S75: =Multi1*SimulationData!S50+Multi2*SimulationData!S1052+Multi3*SimulationData!S2054+Multi4*SimulationData!S3056 -> 12.99946343 | T75: =Multi1*SimulationData!T50+Multi2*SimulationData!T1052+Multi3*SimulationData!T2054+Multi4*SimulationData!T3056 -> 13.10579307 | U75: =Multi1*SimulationData!U50+Multi2*SimulationData!U1052+Multi3*SimulationData!U2054+Multi4*SimulationData!U3056 -> 13.24836178 | V75: =Multi1*SimulationData!V50+Multi2*SimulationData!V1052+Multi3*SimulationData!V2054+Multi4*SimulationData!V3056 -> 13.53365516 | W75: =Multi1*SimulationData!W50+Multi2*SimulationData!W1052+Multi3*SimulationData!W2054+Multi4*SimulationData!W3056 -> 13.48242391 | X75: =Multi1*SimulationData!X50+Multi2*SimulationData!X1052+Multi3*SimulationData!X2054+Multi4*SimulationData!X3056 -> 13.60880027 | Y75: =Multi1*SimulationData!Y50+Multi2*SimulationData!Y1052+Multi3*SimulationData!Y2054+Multi4*SimulationData!Y3056 -> 12.68947631 | Z75: =Multi1*SimulationData!Z50+Multi2*SimulationData!Z1052+Multi3*SimulationData!Z2054+Multi4*SimulationData!Z3056 -> 12.91419391 | AA75: =Multi1*SimulationData!AA50+Multi2*SimulationData!AA1052+Multi3*SimulationData!AA2054+Multi4*SimulationData!AA3056 -> 11.88048573 | AB75: =Multi1*SimulationData!AB50+Multi2*SimulationData!AB1052+Multi3*SimulationData!AB2054+Multi4*SimulationData!AB3056 -> 12.03951436 | AC75: =Multi1*SimulationData!AC50+Multi2*SimulationData!AC1052+Multi3*SimulationData!AC2054+Multi4*SimulationData!AC3056 -> 10.97535527 | AD75: =Multi1*SimulationData!AD50+Multi2*SimulationData!AD1052+Multi3*SimulationData!AD2054+Multi4*SimulationData!AD3056 -> 11.04708588 | AE75: =Multi1*SimulationData!AE50+Multi2*SimulationData!AE1052+Multi3*SimulationData!AE2054+Multi4*SimulationData!AE3056 -> 9.829642103
B76: Simulation 49 | C76: =Multi1*SimulationData!C51+Multi2*SimulationData!C1053+Multi3*SimulationData!C2055+Multi4*SimulationData!C3057 -> 3.715804598 | D76: =Multi1*SimulationData!D51+Multi2*SimulationData!D1053+Multi3*SimulationData!D2055+Multi4*SimulationData!D3057 -> 2.402392053 | E76: =Multi1*SimulationData!E51+Multi2*SimulationData!E1053+Multi3*SimulationData!E2055+Multi4*SimulationData!E3057 -> 1.559128311 | F76: =Multi1*SimulationData!F51+Multi2*SimulationData!F1053+Multi3*SimulationData!F2055+Multi4*SimulationData!F3057 -> 1.402397141 | G76: =Multi1*SimulationData!G51+Multi2*SimulationData!G1053+Multi3*SimulationData!G2055+Multi4*SimulationData!G3057 -> 0.9167816465 | H76: =Multi1*SimulationData!H51+Multi2*SimulationData!H1053+Multi3*SimulationData!H2055+Multi4*SimulationData!H3057 -> 0.8639967475 | I76: =Multi1*SimulationData!I51+Multi2*SimulationData!I1053+Multi3*SimulationData!I2055+Multi4*SimulationData!I3057 -> 1.488380911 | J76: =Multi1*SimulationData!J51+Multi2*SimulationData!J1053+Multi3*SimulationData!J2055+Multi4*SimulationData!J3057 -> 2.166390742 | K76: =Multi1*SimulationData!K51+Multi2*SimulationData!K1053+Multi3*SimulationData!K2055+Multi4*SimulationData!K3057 -> 3.798465111 | L76: =Multi1*SimulationData!L51+Multi2*SimulationData!L1053+Multi3*SimulationData!L2055+Multi4*SimulationData!L3057 -> 2.705565131 | M76: =Multi1*SimulationData!M51+Multi2*SimulationData!M1053+Multi3*SimulationData!M2055+Multi4*SimulationData!M3057 -> 2.664776575 | N76: =Multi1*SimulationData!N51+Multi2*SimulationData!N1053+Multi3*SimulationData!N2055+Multi4*SimulationData!N3057 -> 2.161242005 | O76: =Multi1*SimulationData!O51+Multi2*SimulationData!O1053+Multi3*SimulationData!O2055+Multi4*SimulationData!O3057 -> 2.201886599 | P76: =Multi1*SimulationData!P51+Multi2*SimulationData!P1053+Multi3*SimulationData!P2055+Multi4*SimulationData!P3057 -> 2.498837559 | Q76: =Multi1*SimulationData!Q51+Multi2*SimulationData!Q1053+Multi3*SimulationData!Q2055+Multi4*SimulationData!Q3057 -> 2.029373301 | R76: =Multi1*SimulationData!R51+Multi2*SimulationData!R1053+Multi3*SimulationData!R2055+Multi4*SimulationData!R3057 -> 1.930898335 | S76: =Multi1*SimulationData!S51+Multi2*SimulationData!S1053+Multi3*SimulationData!S2055+Multi4*SimulationData!S3057 -> 1.750075539 | T76: =Multi1*SimulationData!T51+Multi2*SimulationData!T1053+Multi3*SimulationData!T2055+Multi4*SimulationData!T3057 -> 1.737827424 | U76: =Multi1*SimulationData!U51+Multi2*SimulationData!U1053+Multi3*SimulationData!U2055+Multi4*SimulationData!U3057 -> 1.524476131 | V76: =Multi1*SimulationData!V51+Multi2*SimulationData!V1053+Multi3*SimulationData!V2055+Multi4*SimulationData!V3057 -> 1.136658529 | W76: =Multi1*SimulationData!W51+Multi2*SimulationData!W1053+Multi3*SimulationData!W2055+Multi4*SimulationData!W3057 -> 0.4784264014 | X76: =Multi1*SimulationData!X51+Multi2*SimulationData!X1053+Multi3*SimulationData!X2055+Multi4*SimulationData!X3057 -> 0 | Y76: =Multi1*SimulationData!Y51+Multi2*SimulationData!Y1053+Multi3*SimulationData!Y2055+Multi4*SimulationData!Y3057 -> 0 | Z76: =Multi1*SimulationData!Z51+Multi2*SimulationData!Z1053+Multi3*SimulationData!Z2055+Multi4*SimulationData!Z3057 -> 0 | AA76: =Multi1*SimulationData!AA51+Multi2*SimulationData!AA1053+Multi3*SimulationData!AA2055+Multi4*SimulationData!AA3057 -> 0 | AB76: =Multi1*SimulationData!AB51+Multi2*SimulationData!AB1053+Multi3*SimulationData!AB2055+Multi4*SimulationData!AB3057 -> 0 | AC76: =Multi1*SimulationData!AC51+Multi2*SimulationData!AC1053+Multi3*SimulationData!AC2055+Multi4*SimulationData!AC3057 -> 0 | AD76: =Multi1*SimulationData!AD51+Multi2*SimulationData!AD1053+Multi3*SimulationData!AD2055+Multi4*SimulationData!AD3057 -> 0 | AE76: =Multi1*SimulationData!AE51+Multi2*SimulationData!AE1053+Multi3*SimulationData!AE2055+Multi4*SimulationData!AE3057 -> 0
B77: Simulation 50 | C77: =Multi1*SimulationData!C52+Multi2*SimulationData!C1054+Multi3*SimulationData!C2056+Multi4*SimulationData!C3058 -> 3.715804598 | D77: =Multi1*SimulationData!D52+Multi2*SimulationData!D1054+Multi3*SimulationData!D2056+Multi4*SimulationData!D3058 -> 4.932948541 | E77: =Multi1*SimulationData!E52+Multi2*SimulationData!E1054+Multi3*SimulationData!E2056+Multi4*SimulationData!E3058 -> 8.456186798 | F77: =Multi1*SimulationData!F52+Multi2*SimulationData!F1054+Multi3*SimulationData!F2056+Multi4*SimulationData!F3058 -> 11.57112715 | G77: =Multi1*SimulationData!G52+Multi2*SimulationData!G1054+Multi3*SimulationData!G2056+Multi4*SimulationData!G3058 -> 9.876758085 | H77: =Multi1*SimulationData!H52+Multi2*SimulationData!H1054+Multi3*SimulationData!H2056+Multi4*SimulationData!H3058 -> 9.897498076 | I77: =Multi1*SimulationData!I52+Multi2*SimulationData!I1054+Multi3*SimulationData!I2056+Multi4*SimulationData!I3058 -> 9.557989964 | J77: =Multi1*SimulationData!J52+Multi2*SimulationData!J1054+Multi3*SimulationData!J2056+Multi4*SimulationData!J3058 -> 9.051467497 | K77: =Multi1*SimulationData!K52+Multi2*SimulationData!K1054+Multi3*SimulationData!K2056+Multi4*SimulationData!K3058 -> 6.012105035 | L77: =Multi1*SimulationData!L52+Multi2*SimulationData!L1054+Multi3*SimulationData!L2056+Multi4*SimulationData!L3058 -> 5.628408301 | M77: =Multi1*SimulationData!M52+Multi2*SimulationData!M1054+Multi3*SimulationData!M2056+Multi4*SimulationData!M3058 -> 4.721075892 | N77: =Multi1*SimulationData!N52+Multi2*SimulationData!N1054+Multi3*SimulationData!N2056+Multi4*SimulationData!N3058 -> 3.620406036 | O77: =Multi1*SimulationData!O52+Multi2*SimulationData!O1054+Multi3*SimulationData!O2056+Multi4*SimulationData!O3058 -> 3.177127912 | P77: =Multi1*SimulationData!P52+Multi2*SimulationData!P1054+Multi3*SimulationData!P2056+Multi4*SimulationData!P3058 -> 1.702309775 | Q77: =Multi1*SimulationData!Q52+Multi2*SimulationData!Q1054+Multi3*SimulationData!Q2056+Multi4*SimulationData!Q3058 -> 1.827266938 | R77: =Multi1*SimulationData!R52+Multi2*SimulationData!R1054+Multi3*SimulationData!R2056+Multi4*SimulationData!R3058 -> 1.449243281 | S77: =Multi1*SimulationData!S52+Multi2*SimulationData!S1054+Multi3*SimulationData!S2056+Multi4*SimulationData!S3058 -> 1.77686105 | T77: =Multi1*SimulationData!T52+Multi2*SimulationData!T1054+Multi3*SimulationData!T2056+Multi4*SimulationData!T3058 -> 1.596762215 | U77: =Multi1*SimulationData!U52+Multi2*SimulationData!U1054+Multi3*SimulationData!U2056+Multi4*SimulationData!U3058 -> 1.237888312 | V77: =Multi1*SimulationData!V52+Multi2*SimulationData!V1054+Multi3*SimulationData!V2056+Multi4*SimulationData!V3058 -> 0.8543162412 | W77: =Multi1*SimulationData!W52+Multi2*SimulationData!W1054+Multi3*SimulationData!W2056+Multi4*SimulationData!W3058 -> 0.26133482 | X77: =Multi1*SimulationData!X52+Multi2*SimulationData!X1054+Multi3*SimulationData!X2056+Multi4*SimulationData!X3058 -> 0 | Y77: =Multi1*SimulationData!Y52+Multi2*SimulationData!Y1054+Multi3*SimulationData!Y2056+Multi4*SimulationData!Y3058 -> 0 | Z77: =Multi1*SimulationData!Z52+Multi2*SimulationData!Z1054+Multi3*SimulationData!Z2056+Multi4*SimulationData!Z3058 -> 0 | AA77: =Multi1*SimulationData!AA52+Multi2*SimulationData!AA1054+Multi3*SimulationData!AA2056+Multi4*SimulationData!AA3058 -> 0 | AB77: =Multi1*SimulationData!AB52+Multi2*SimulationData!AB1054+Multi3*SimulationData!AB2056+Multi4*SimulationData!AB3058 -> 0 | AC77: =Multi1*SimulationData!AC52+Multi2*SimulationData!AC1054+Multi3*SimulationData!AC2056+Multi4*SimulationData!AC3058 -> 0 | AD77: =Multi1*SimulationData!AD52+Multi2*SimulationData!AD1054+Multi3*SimulationData!AD2056+Multi4*SimulationData!AD3058 -> 0 | AE77: =Multi1*SimulationData!AE52+Multi2*SimulationData!AE1054+Multi3*SimulationData!AE2056+Multi4*SimulationData!AE3058 -> 0
B78: Simulation 51 | C78: =Multi1*SimulationData!C53+Multi2*SimulationData!C1055+Multi3*SimulationData!C2057+Multi4*SimulationData!C3059 -> 3.715804598 | D78: =Multi1*SimulationData!D53+Multi2*SimulationData!D1055+Multi3*SimulationData!D2057+Multi4*SimulationData!D3059 -> 6.128271794 | E78: =Multi1*SimulationData!E53+Multi2*SimulationData!E1055+Multi3*SimulationData!E2057+Multi4*SimulationData!E3059 -> 8.129834533 | F78: =Multi1*SimulationData!F53+Multi2*SimulationData!F1055+Multi3*SimulationData!F2057+Multi4*SimulationData!F3059 -> 7.830101487 | G78: =Multi1*SimulationData!G53+Multi2*SimulationData!G1055+Multi3*SimulationData!G2057+Multi4*SimulationData!G3059 -> 9.344061808 | H78: =Multi1*SimulationData!H53+Multi2*SimulationData!H1055+Multi3*SimulationData!H2057+Multi4*SimulationData!H3059 -> 8.920412969 | I78: =Multi1*SimulationData!I53+Multi2*SimulationData!I1055+Multi3*SimulationData!I2057+Multi4*SimulationData!I3059 -> 10.05742479 | J78: =Multi1*SimulationData!J53+Multi2*SimulationData!J1055+Multi3*SimulationData!J2057+Multi4*SimulationData!J3059 -> 8.620955302 | K78: =Multi1*SimulationData!K53+Multi2*SimulationData!K1055+Multi3*SimulationData!K2057+Multi4*SimulationData!K3059 -> 8.450804399 | L78: =Multi1*SimulationData!L53+Multi2*SimulationData!L1055+Multi3*SimulationData!L2057+Multi4*SimulationData!L3059 -> 8.300828956 | M78: =Multi1*SimulationData!M53+Multi2*SimulationData!M1055+Multi3*SimulationData!M2057+Multi4*SimulationData!M3059 -> 7.344872821 | N78: =Multi1*SimulationData!N53+Multi2*SimulationData!N1055+Multi3*SimulationData!N2057+Multi4*SimulationData!N3059 -> 6.443505372 | O78: =Multi1*SimulationData!O53+Multi2*SimulationData!O1055+Multi3*SimulationData!O2057+Multi4*SimulationData!O3059 -> 4.780345218 | P78: =Multi1*SimulationData!P53+Multi2*SimulationData!P1055+Multi3*SimulationData!P2057+Multi4*SimulationData!P3059 -> 4.791367444 | Q78: =Multi1*SimulationData!Q53+Multi2*SimulationData!Q1055+Multi3*SimulationData!Q2057+Multi4*SimulationData!Q3059 -> 5.419536098 | R78: =Multi1*SimulationData!R53+Multi2*SimulationData!R1055+Multi3*SimulationData!R2057+Multi4*SimulationData!R3059 -> 5.362962596 | S78: =Multi1*SimulationData!S53+Multi2*SimulationData!S1055+Multi3*SimulationData!S2057+Multi4*SimulationData!S3059 -> 5.382484843 | T78: =Multi1*SimulationData!T53+Multi2*SimulationData!T1055+Multi3*SimulationData!T2057+Multi4*SimulationData!T3059 -> 5.546056217 | U78: =Multi1*SimulationData!U53+Multi2*SimulationData!U1055+Multi3*SimulationData!U2057+Multi4*SimulationData!U3059 -> 5.420629537 | V78: =Multi1*SimulationData!V53+Multi2*SimulationData!V1055+Multi3*SimulationData!V2057+Multi4*SimulationData!V3059 -> 5.171226592 | W78: =Multi1*SimulationData!W53+Multi2*SimulationData!W1055+Multi3*SimulationData!W2057+Multi4*SimulationData!W3059 -> 5.081775031 | X78: =Multi1*SimulationData!X53+Multi2*SimulationData!X1055+Multi3*SimulationData!X2057+Multi4*SimulationData!X3059 -> 5.103795428 | Y78: =Multi1*SimulationData!Y53+Multi2*SimulationData!Y1055+Multi3*SimulationData!Y2057+Multi4*SimulationData!Y3059 -> 4.448965934 | Z78: =Multi1*SimulationData!Z53+Multi2*SimulationData!Z1055+Multi3*SimulationData!Z2057+Multi4*SimulationData!Z3059 -> 4.994234561 | AA78: =Multi1*SimulationData!AA53+Multi2*SimulationData!AA1055+Multi3*SimulationData!AA2057+Multi4*SimulationData!AA3059 -> 4.277465651 | AB78: =Multi1*SimulationData!AB53+Multi2*SimulationData!AB1055+Multi3*SimulationData!AB2057+Multi4*SimulationData!AB3059 -> 4.801191429 | AC78: =Multi1*SimulationData!AC53+Multi2*SimulationData!AC1055+Multi3*SimulationData!AC2057+Multi4*SimulationData!AC3059 -> 4.096000611 | AD78: =Multi1*SimulationData!AD53+Multi2*SimulationData!AD1055+Multi3*SimulationData!AD2057+Multi4*SimulationData!AD3059 -> 4.554596574 | AE78: =Multi1*SimulationData!AE53+Multi2*SimulationData!AE1055+Multi3*SimulationData!AE2057+Multi4*SimulationData!AE3059 -> 3.7571637
B79: Simulation 52 | C79: =Multi1*SimulationData!C54+Multi2*SimulationData!C1056+Multi3*SimulationData!C2058+Multi4*SimulationData!C3060 -> 3.715804598 | D79: =Multi1*SimulationData!D54+Multi2*SimulationData!D1056+Multi3*SimulationData!D2058+Multi4*SimulationData!D3060 -> 4.927072954 | E79: =Multi1*SimulationData!E54+Multi2*SimulationData!E1056+Multi3*SimulationData!E2058+Multi4*SimulationData!E3060 -> 3.115780188 | F79: =Multi1*SimulationData!F54+Multi2*SimulationData!F1056+Multi3*SimulationData!F2058+Multi4*SimulationData!F3060 -> 2.762074932 | G79: =Multi1*SimulationData!G54+Multi2*SimulationData!G1056+Multi3*SimulationData!G2058+Multi4*SimulationData!G3060 -> 3.468538737 | H79: =Multi1*SimulationData!H54+Multi2*SimulationData!H1056+Multi3*SimulationData!H2058+Multi4*SimulationData!H3060 -> 3.912213807 | I79: =Multi1*SimulationData!I54+Multi2*SimulationData!I1056+Multi3*SimulationData!I2058+Multi4*SimulationData!I3060 -> 4.034015335 | J79: =Multi1*SimulationData!J54+Multi2*SimulationData!J1056+Multi3*SimulationData!J2058+Multi4*SimulationData!J3060 -> 4.491786868 | K79: =Multi1*SimulationData!K54+Multi2*SimulationData!K1056+Multi3*SimulationData!K2058+Multi4*SimulationData!K3060 -> 4.967040055 | L79: =Multi1*SimulationData!L54+Multi2*SimulationData!L1056+Multi3*SimulationData!L2058+Multi4*SimulationData!L3060 -> 4.245865637 | M79: =Multi1*SimulationData!M54+Multi2*SimulationData!M1056+Multi3*SimulationData!M2058+Multi4*SimulationData!M3060 -> 4.25741165 | N79: =Multi1*SimulationData!N54+Multi2*SimulationData!N1056+Multi3*SimulationData!N2058+Multi4*SimulationData!N3060 -> 2.953266464 | O79: =Multi1*SimulationData!O54+Multi2*SimulationData!O1056+Multi3*SimulationData!O2058+Multi4*SimulationData!O3060 -> 2.584889409 | P79: =Multi1*SimulationData!P54+Multi2*SimulationData!P1056+Multi3*SimulationData!P2058+Multi4*SimulationData!P3060 -> 2.765710995 | Q79: =Multi1*SimulationData!Q54+Multi2*SimulationData!Q1056+Multi3*SimulationData!Q2058+Multi4*SimulationData!Q3060 -> 3.473535933 | R79: =Multi1*SimulationData!R54+Multi2*SimulationData!R1056+Multi3*SimulationData!R2058+Multi4*SimulationData!R3060 -> 3.405493708 | S79: =Multi1*SimulationData!S54+Multi2*SimulationData!S1056+Multi3*SimulationData!S2058+Multi4*SimulationData!S3060 -> 3.662541222 | T79: =Multi1*SimulationData!T54+Multi2*SimulationData!T1056+Multi3*SimulationData!T2058+Multi4*SimulationData!T3060 -> 3.149259872 | U79: =Multi1*SimulationData!U54+Multi2*SimulationData!U1056+Multi3*SimulationData!U2058+Multi4*SimulationData!U3060 -> 2.977460766 | V79: =Multi1*SimulationData!V54+Multi2*SimulationData!V1056+Multi3*SimulationData!V2058+Multi4*SimulationData!V3060 -> 2.572154642 | W79: =Multi1*SimulationData!W54+Multi2*SimulationData!W1056+Multi3*SimulationData!W2058+Multi4*SimulationData!W3060 -> 1.781797597 | X79: =Multi1*SimulationData!X54+Multi2*SimulationData!X1056+Multi3*SimulationData!X2058+Multi4*SimulationData!X3060 -> 1.494816077 | Y79: =Multi1*SimulationData!Y54+Multi2*SimulationData!Y1056+Multi3*SimulationData!Y2058+Multi4*SimulationData!Y3060 -> 1.020630442 | Z79: =Multi1*SimulationData!Z54+Multi2*SimulationData!Z1056+Multi3*SimulationData!Z2058+Multi4*SimulationData!Z3060 -> 1.735302158 | AA79: =Multi1*SimulationData!AA54+Multi2*SimulationData!AA1056+Multi3*SimulationData!AA2058+Multi4*SimulationData!AA3060 -> 1.202871393 | AB79: =Multi1*SimulationData!AB54+Multi2*SimulationData!AB1056+Multi3*SimulationData!AB2058+Multi4*SimulationData!AB3060 -> 1.891987648 | AC79: =Multi1*SimulationData!AC54+Multi2*SimulationData!AC1056+Multi3*SimulationData!AC2058+Multi4*SimulationData!AC3060 -> 1.349218837 | AD79: =Multi1*SimulationData!AD54+Multi2*SimulationData!AD1056+Multi3*SimulationData!AD2058+Multi4*SimulationData!AD3060 -> 1.968287196 | AE79: =Multi1*SimulationData!AE54+Multi2*SimulationData!AE1056+Multi3*SimulationData!AE2058+Multi4*SimulationData!AE3060 -> 1.344135043
B80: Simulation 53 | C80: =Multi1*SimulationData!C55+Multi2*SimulationData!C1057+Multi3*SimulationData!C2059+Multi4*SimulationData!C3061 -> 3.715804598 | D80: =Multi1*SimulationData!D55+Multi2*SimulationData!D1057+Multi3*SimulationData!D2059+Multi4*SimulationData!D3061 -> 3.958958652 | E80: =Multi1*SimulationData!E55+Multi2*SimulationData!E1057+Multi3*SimulationData!E2059+Multi4*SimulationData!E3061 -> 2.200144822 | F80: =Multi1*SimulationData!F55+Multi2*SimulationData!F1057+Multi3*SimulationData!F2059+Multi4*SimulationData!F3061 -> 3.916474707 | G80: =Multi1*SimulationData!G55+Multi2*SimulationData!G1057+Multi3*SimulationData!G2059+Multi4*SimulationData!G3061 -> 2.964926518 | H80: =Multi1*SimulationData!H55+Multi2*SimulationData!H1057+Multi3*SimulationData!H2059+Multi4*SimulationData!H3061 -> 1.217187181 | I80: =Multi1*SimulationData!I55+Multi2*SimulationData!I1057+Multi3*SimulationData!I2059+Multi4*SimulationData!I3061 -> 2.378452942 | J80: =Multi1*SimulationData!J55+Multi2*SimulationData!J1057+Multi3*SimulationData!J2059+Multi4*SimulationData!J3061 -> 1.735973119 | K80: =Multi1*SimulationData!K55+Multi2*SimulationData!K1057+Multi3*SimulationData!K2059+Multi4*SimulationData!K3061 -> 1.407139388 | L80: =Multi1*SimulationData!L55+Multi2*SimulationData!L1057+Multi3*SimulationData!L2059+Multi4*SimulationData!L3061 -> 1.769215472 | M80: =Multi1*SimulationData!M55+Multi2*SimulationData!M1057+Multi3*SimulationData!M2059+Multi4*SimulationData!M3061 -> 2.337368968 | N80: =Multi1*SimulationData!N55+Multi2*SimulationData!N1057+Multi3*SimulationData!N2059+Multi4*SimulationData!N3061 -> 1.539789805 | O80: =Multi1*SimulationData!O55+Multi2*SimulationData!O1057+Multi3*SimulationData!O2059+Multi4*SimulationData!O3061 -> 0.9640305293 | P80: =Multi1*SimulationData!P55+Multi2*SimulationData!P1057+Multi3*SimulationData!P2059+Multi4*SimulationData!P3061 -> 0.3953572853 | Q80: =Multi1*SimulationData!Q55+Multi2*SimulationData!Q1057+Multi3*SimulationData!Q2059+Multi4*SimulationData!Q3061 -> 0.2146819224 | R80: =Multi1*SimulationData!R55+Multi2*SimulationData!R1057+Multi3*SimulationData!R2059+Multi4*SimulationData!R3061 -> 0.06570165684 | S80: =Multi1*SimulationData!S55+Multi2*SimulationData!S1057+Multi3*SimulationData!S2059+Multi4*SimulationData!S3061 -> 0.03944745475 | T80: =Multi1*SimulationData!T55+Multi2*SimulationData!T1057+Multi3*SimulationData!T2059+Multi4*SimulationData!T3061 -> 0.04657419382 | U80: =Multi1*SimulationData!U55+Multi2*SimulationData!U1057+Multi3*SimulationData!U2059+Multi4*SimulationData!U3061 -> 0.008807549808 | V80: =Multi1*SimulationData!V55+Multi2*SimulationData!V1057+Multi3*SimulationData!V2059+Multi4*SimulationData!V3061 -> 0.00157418993 | W80: =Multi1*SimulationData!W55+Multi2*SimulationData!W1057+Multi3*SimulationData!W2059+Multi4*SimulationData!W3061 -> 1.582533844e-08 | X80: =Multi1*SimulationData!X55+Multi2*SimulationData!X1057+Multi3*SimulationData!X2059+Multi4*SimulationData!X3061 -> 0 | Y80: =Multi1*SimulationData!Y55+Multi2*SimulationData!Y1057+Multi3*SimulationData!Y2059+Multi4*SimulationData!Y3061 -> 0 | Z80: =Multi1*SimulationData!Z55+Multi2*SimulationData!Z1057+Multi3*SimulationData!Z2059+Multi4*SimulationData!Z3061 -> 0 | AA80: =Multi1*SimulationData!AA55+Multi2*SimulationData!AA1057+Multi3*SimulationData!AA2059+Multi4*SimulationData!AA3061 -> 0 | AB80: =Multi1*SimulationData!AB55+Multi2*SimulationData!AB1057+Multi3*SimulationData!AB2059+Multi4*SimulationData!AB3061 -> 0 | AC80: =Multi1*SimulationData!AC55+Multi2*SimulationData!AC1057+Multi3*SimulationData!AC2059+Multi4*SimulationData!AC3061 -> 0 | AD80: =Multi1*SimulationData!AD55+Multi2*SimulationData!AD1057+Multi3*SimulationData!AD2059+Multi4*SimulationData!AD3061 -> 0 | AE80: =Multi1*SimulationData!AE55+Multi2*SimulationData!AE1057+Multi3*SimulationData!AE2059+Multi4*SimulationData!AE3061 -> 0
B81: Simulation 54 | C81: =Multi1*SimulationData!C56+Multi2*SimulationData!C1058+Multi3*SimulationData!C2060+Multi4*SimulationData!C3062 -> 3.715804598 | D81: =Multi1*SimulationData!D56+Multi2*SimulationData!D1058+Multi3*SimulationData!D2060+Multi4*SimulationData!D3062 -> 6.028197877 | E81: =Multi1*SimulationData!E56+Multi2*SimulationData!E1058+Multi3*SimulationData!E2060+Multi4*SimulationData!E3062 -> 5.418157902 | F81: =Multi1*SimulationData!F56+Multi2*SimulationData!F1058+Multi3*SimulationData!F2060+Multi4*SimulationData!F3062 -> 3.433298209 | G81: =Multi1*SimulationData!G56+Multi2*SimulationData!G1058+Multi3*SimulationData!G2060+Multi4*SimulationData!G3062 -> 0.3067342542 | H81: =Multi1*SimulationData!H56+Multi2*SimulationData!H1058+Multi3*SimulationData!H2060+Multi4*SimulationData!H3062 -> 1.512840898 | I81: =Multi1*SimulationData!I56+Multi2*SimulationData!I1058+Multi3*SimulationData!I2060+Multi4*SimulationData!I3062 -> 0.6589057383 | J81: =Multi1*SimulationData!J56+Multi2*SimulationData!J1058+Multi3*SimulationData!J2060+Multi4*SimulationData!J3062 -> 1.79588442 | K81: =Multi1*SimulationData!K56+Multi2*SimulationData!K1058+Multi3*SimulationData!K2060+Multi4*SimulationData!K3062 -> 1.810115041 | L81: =Multi1*SimulationData!L56+Multi2*SimulationData!L1058+Multi3*SimulationData!L2060+Multi4*SimulationData!L3062 -> 2.699511625 | M81: =Multi1*SimulationData!M56+Multi2*SimulationData!M1058+Multi3*SimulationData!M2060+Multi4*SimulationData!M3062 -> 4.768260945 | N81: =Multi1*SimulationData!N56+Multi2*SimulationData!N1058+Multi3*SimulationData!N2060+Multi4*SimulationData!N3062 -> 5.637647825 | O81: =Multi1*SimulationData!O56+Multi2*SimulationData!O1058+Multi3*SimulationData!O2060+Multi4*SimulationData!O3062 -> 4.585377462 | P81: =Multi1*SimulationData!P56+Multi2*SimulationData!P1058+Multi3*SimulationData!P2060+Multi4*SimulationData!P3062 -> 4.531993061 | Q81: =Multi1*SimulationData!Q56+Multi2*SimulationData!Q1058+Multi3*SimulationData!Q2060+Multi4*SimulationData!Q3062 -> 5.41394571 | R81: =Multi1*SimulationData!R56+Multi2*SimulationData!R1058+Multi3*SimulationData!R2060+Multi4*SimulationData!R3062 -> 5.521244961 | S81: =Multi1*SimulationData!S56+Multi2*SimulationData!S1058+Multi3*SimulationData!S2060+Multi4*SimulationData!S3062 -> 5.784724085 | T81: =Multi1*SimulationData!T56+Multi2*SimulationData!T1058+Multi3*SimulationData!T2060+Multi4*SimulationData!T3062 -> 5.59928782 | U81: =Multi1*SimulationData!U56+Multi2*SimulationData!U1058+Multi3*SimulationData!U2060+Multi4*SimulationData!U3062 -> 5.799673366 | V81: =Multi1*SimulationData!V56+Multi2*SimulationData!V1058+Multi3*SimulationData!V2060+Multi4*SimulationData!V3062 -> 5.669303382 | W81: =Multi1*SimulationData!W56+Multi2*SimulationData!W1058+Multi3*SimulationData!W2060+Multi4*SimulationData!W3062 -> 5.087140997 | X81: =Multi1*SimulationData!X56+Multi2*SimulationData!X1058+Multi3*SimulationData!X2060+Multi4*SimulationData!X3062 -> 5.027733518 | Y81: =Multi1*SimulationData!Y56+Multi2*SimulationData!Y1058+Multi3*SimulationData!Y2060+Multi4*SimulationData!Y3062 -> 4.255946603 | Z81: =Multi1*SimulationData!Z56+Multi2*SimulationData!Z1058+Multi3*SimulationData!Z2060+Multi4*SimulationData!Z3062 -> 4.717390793 | AA81: =Multi1*SimulationData!AA56+Multi2*SimulationData!AA1058+Multi3*SimulationData!AA2060+Multi4*SimulationData!AA3062 -> 3.873362395 | AB81: =Multi1*SimulationData!AB56+Multi2*SimulationData!AB1058+Multi3*SimulationData!AB2060+Multi4*SimulationData!AB3062 -> 4.25382764 | AC81: =Multi1*SimulationData!AC56+Multi2*SimulationData!AC1058+Multi3*SimulationData!AC2060+Multi4*SimulationData!AC3062 -> 3.416996842 | AD81: =Multi1*SimulationData!AD56+Multi2*SimulationData!AD1058+Multi3*SimulationData!AD2060+Multi4*SimulationData!AD3062 -> 3.75589241 | AE81: =Multi1*SimulationData!AE56+Multi2*SimulationData!AE1058+Multi3*SimulationData!AE2060+Multi4*SimulationData!AE3062 -> 2.841696174
B82: Simulation 55 | C82: =Multi1*SimulationData!C57+Multi2*SimulationData!C1059+Multi3*SimulationData!C2061+Multi4*SimulationData!C3063 -> 3.715804598 | D82: =Multi1*SimulationData!D57+Multi2*SimulationData!D1059+Multi3*SimulationData!D2061+Multi4*SimulationData!D3063 -> 2.336916356 | E82: =Multi1*SimulationData!E57+Multi2*SimulationData!E1059+Multi3*SimulationData!E2061+Multi4*SimulationData!E3063 -> 3.017140511 | F82: =Multi1*SimulationData!F57+Multi2*SimulationData!F1059+Multi3*SimulationData!F2061+Multi4*SimulationData!F3063 -> 2.049864762 | G82: =Multi1*SimulationData!G57+Multi2*SimulationData!G1059+Multi3*SimulationData!G2061+Multi4*SimulationData!G3063 -> 3.913674343 | H82: =Multi1*SimulationData!H57+Multi2*SimulationData!H1059+Multi3*SimulationData!H2061+Multi4*SimulationData!H3063 -> 4.591489718 | I82: =Multi1*SimulationData!I57+Multi2*SimulationData!I1059+Multi3*SimulationData!I2061+Multi4*SimulationData!I3063 -> 5.638058731 | J82: =Multi1*SimulationData!J57+Multi2*SimulationData!J1059+Multi3*SimulationData!J2061+Multi4*SimulationData!J3063 -> 5.632477898 | K82: =Multi1*SimulationData!K57+Multi2*SimulationData!K1059+Multi3*SimulationData!K2061+Multi4*SimulationData!K3063 -> 6.020078319 | L82: =Multi1*SimulationData!L57+Multi2*SimulationData!L1059+Multi3*SimulationData!L2061+Multi4*SimulationData!L3063 -> 6.8491531 | M82: =Multi1*SimulationData!M57+Multi2*SimulationData!M1059+Multi3*SimulationData!M2061+Multi4*SimulationData!M3063 -> 7.340796582 | N82: =Multi1*SimulationData!N57+Multi2*SimulationData!N1059+Multi3*SimulationData!N2061+Multi4*SimulationData!N3063 -> 8.659420956 | O82: =Multi1*SimulationData!O57+Multi2*SimulationData!O1059+Multi3*SimulationData!O2061+Multi4*SimulationData!O3063 -> 9.125038093 | P82: =Multi1*SimulationData!P57+Multi2*SimulationData!P1059+Multi3*SimulationData!P2061+Multi4*SimulationData!P3063 -> 9.983990611 | Q82: =Multi1*SimulationData!Q57+Multi2*SimulationData!Q1059+Multi3*SimulationData!Q2061+Multi4*SimulationData!Q3063 -> 10.1223441 | R82: =Multi1*SimulationData!R57+Multi2*SimulationData!R1059+Multi3*SimulationData!R2061+Multi4*SimulationData!R3063 -> 9.584644957 | S82: =Multi1*SimulationData!S57+Multi2*SimulationData!S1059+Multi3*SimulationData!S2061+Multi4*SimulationData!S3063 -> 7.870888929 | T82: =Multi1*SimulationData!T57+Multi2*SimulationData!T1059+Multi3*SimulationData!T2061+Multi4*SimulationData!T3063 -> 7.64597094 | U82: =Multi1*SimulationData!U57+Multi2*SimulationData!U1059+Multi3*SimulationData!U2061+Multi4*SimulationData!U3063 -> 7.689361103 | V82: =Multi1*SimulationData!V57+Multi2*SimulationData!V1059+Multi3*SimulationData!V2061+Multi4*SimulationData!V3063 -> 7.783637364 | W82: =Multi1*SimulationData!W57+Multi2*SimulationData!W1059+Multi3*SimulationData!W2061+Multi4*SimulationData!W3063 -> 7.557590455 | X82: =Multi1*SimulationData!X57+Multi2*SimulationData!X1059+Multi3*SimulationData!X2061+Multi4*SimulationData!X3063 -> 7.613247428 | Y82: =Multi1*SimulationData!Y57+Multi2*SimulationData!Y1059+Multi3*SimulationData!Y2061+Multi4*SimulationData!Y3063 -> 6.705299872 | Z82: =Multi1*SimulationData!Z57+Multi2*SimulationData!Z1059+Multi3*SimulationData!Z2061+Multi4*SimulationData!Z3063 -> 7.031162185 | AA82: =Multi1*SimulationData!AA57+Multi2*SimulationData!AA1059+Multi3*SimulationData!AA2061+Multi4*SimulationData!AA3063 -> 6.113756176 | AB82: =Multi1*SimulationData!AB57+Multi2*SimulationData!AB1059+Multi3*SimulationData!AB2061+Multi4*SimulationData!AB3063 -> 6.413351375 | AC82: =Multi1*SimulationData!AC57+Multi2*SimulationData!AC1059+Multi3*SimulationData!AC2061+Multi4*SimulationData!AC3063 -> 5.485648255 | AD82: =Multi1*SimulationData!AD57+Multi2*SimulationData!AD1059+Multi3*SimulationData!AD2061+Multi4*SimulationData!AD3063 -> 5.739037545 | AE82: =Multi1*SimulationData!AE57+Multi2*SimulationData!AE1059+Multi3*SimulationData!AE2061+Multi4*SimulationData!AE3063 -> 4.740966313
B83: Simulation 56 | C83: =Multi1*SimulationData!C58+Multi2*SimulationData!C1060+Multi3*SimulationData!C2062+Multi4*SimulationData!C3064 -> 3.715804598 | D83: =Multi1*SimulationData!D58+Multi2*SimulationData!D1060+Multi3*SimulationData!D2062+Multi4*SimulationData!D3064 -> 1.302192957 | E83: =Multi1*SimulationData!E58+Multi2*SimulationData!E1060+Multi3*SimulationData!E2062+Multi4*SimulationData!E3064 -> 0.348533228 | F83: =Multi1*SimulationData!F58+Multi2*SimulationData!F1060+Multi3*SimulationData!F2062+Multi4*SimulationData!F3064 -> 0.2078561333 | G83: =Multi1*SimulationData!G58+Multi2*SimulationData!G1060+Multi3*SimulationData!G2062+Multi4*SimulationData!G3064 -> 0.1401232285 | H83: =Multi1*SimulationData!H58+Multi2*SimulationData!H1060+Multi3*SimulationData!H2062+Multi4*SimulationData!H3064 -> 0.9573204751 | I83: =Multi1*SimulationData!I58+Multi2*SimulationData!I1060+Multi3*SimulationData!I2062+Multi4*SimulationData!I3064 -> 2.94120555 | J83: =Multi1*SimulationData!J58+Multi2*SimulationData!J1060+Multi3*SimulationData!J2062+Multi4*SimulationData!J3064 -> 4.724519264 | K83: =Multi1*SimulationData!K58+Multi2*SimulationData!K1060+Multi3*SimulationData!K2062+Multi4*SimulationData!K3064 -> 3.88153758 | L83: =Multi1*SimulationData!L58+Multi2*SimulationData!L1060+Multi3*SimulationData!L2062+Multi4*SimulationData!L3064 -> 3.743305487 | M83: =Multi1*SimulationData!M58+Multi2*SimulationData!M1060+Multi3*SimulationData!M2062+Multi4*SimulationData!M3064 -> 3.449319026 | N83: =Multi1*SimulationData!N58+Multi2*SimulationData!N1060+Multi3*SimulationData!N2062+Multi4*SimulationData!N3064 -> 3.113480615 | O83: =Multi1*SimulationData!O58+Multi2*SimulationData!O1060+Multi3*SimulationData!O2062+Multi4*SimulationData!O3064 -> 3.645802644 | P83: =Multi1*SimulationData!P58+Multi2*SimulationData!P1060+Multi3*SimulationData!P2062+Multi4*SimulationData!P3064 -> 3.966729272 | Q83: =Multi1*SimulationData!Q58+Multi2*SimulationData!Q1060+Multi3*SimulationData!Q2062+Multi4*SimulationData!Q3064 -> 3.90313816 | R83: =Multi1*SimulationData!R58+Multi2*SimulationData!R1060+Multi3*SimulationData!R2062+Multi4*SimulationData!R3064 -> 4.472929828 | S83: =Multi1*SimulationData!S58+Multi2*SimulationData!S1060+Multi3*SimulationData!S2062+Multi4*SimulationData!S3064 -> 4.607168018 | T83: =Multi1*SimulationData!T58+Multi2*SimulationData!T1060+Multi3*SimulationData!T2062+Multi4*SimulationData!T3064 -> 5.103962808 | U83: =Multi1*SimulationData!U58+Multi2*SimulationData!U1060+Multi3*SimulationData!U2062+Multi4*SimulationData!U3064 -> 4.851780373 | V83: =Multi1*SimulationData!V58+Multi2*SimulationData!V1060+Multi3*SimulationData!V2062+Multi4*SimulationData!V3064 -> 4.536201332 | W83: =Multi1*SimulationData!W58+Multi2*SimulationData!W1060+Multi3*SimulationData!W2062+Multi4*SimulationData!W3064 -> 4.207235335 | X83: =Multi1*SimulationData!X58+Multi2*SimulationData!X1060+Multi3*SimulationData!X2062+Multi4*SimulationData!X3064 -> 4.085374322 | Y83: =Multi1*SimulationData!Y58+Multi2*SimulationData!Y1060+Multi3*SimulationData!Y2062+Multi4*SimulationData!Y3064 -> 3.584877485 | Z83: =Multi1*SimulationData!Z58+Multi2*SimulationData!Z1060+Multi3*SimulationData!Z2062+Multi4*SimulationData!Z3064 -> 4.266630675 | AA83: =Multi1*SimulationData!AA58+Multi2*SimulationData!AA1060+Multi3*SimulationData!AA2062+Multi4*SimulationData!AA3064 -> 3.66862296 | AB83: =Multi1*SimulationData!AB58+Multi2*SimulationData!AB1060+Multi3*SimulationData!AB2062+Multi4*SimulationData!AB3064 -> 4.274841142 | AC83: =Multi1*SimulationData!AC58+Multi2*SimulationData!AC1060+Multi3*SimulationData!AC2062+Multi4*SimulationData!AC3064 -> 3.63038324 | AD83: =Multi1*SimulationData!AD58+Multi2*SimulationData!AD1060+Multi3*SimulationData!AD2062+Multi4*SimulationData!AD3064 -> 4.143589024 | AE83: =Multi1*SimulationData!AE58+Multi2*SimulationData!AE1060+Multi3*SimulationData!AE2062+Multi4*SimulationData!AE3064 -> 3.399001253
B84: Simulation 57 | C84: =Multi1*SimulationData!C59+Multi2*SimulationData!C1061+Multi3*SimulationData!C2063+Multi4*SimulationData!C3065 -> 3.715804598 | D84: =Multi1*SimulationData!D59+Multi2*SimulationData!D1061+Multi3*SimulationData!D2063+Multi4*SimulationData!D3065 -> 3.121581193 | E84: =Multi1*SimulationData!E59+Multi2*SimulationData!E1061+Multi3*SimulationData!E2063+Multi4*SimulationData!E3065 -> 2.122299357 | F84: =Multi1*SimulationData!F59+Multi2*SimulationData!F1061+Multi3*SimulationData!F2063+Multi4*SimulationData!F3065 -> 3.040245675 | G84: =Multi1*SimulationData!G59+Multi2*SimulationData!G1061+Multi3*SimulationData!G2063+Multi4*SimulationData!G3065 -> 3.146625136 | H84: =Multi1*SimulationData!H59+Multi2*SimulationData!H1061+Multi3*SimulationData!H2063+Multi4*SimulationData!H3065 -> 2.585316968 | I84: =Multi1*SimulationData!I59+Multi2*SimulationData!I1061+Multi3*SimulationData!I2063+Multi4*SimulationData!I3065 -> 2.822402346 | J84: =Multi1*SimulationData!J59+Multi2*SimulationData!J1061+Multi3*SimulationData!J2063+Multi4*SimulationData!J3065 -> 1.867745129 | K84: =Multi1*SimulationData!K59+Multi2*SimulationData!K1061+Multi3*SimulationData!K2063+Multi4*SimulationData!K3065 -> 0.3234522417 | L84: =Multi1*SimulationData!L59+Multi2*SimulationData!L1061+Multi3*SimulationData!L2063+Multi4*SimulationData!L3065 -> 0.3978225576 | M84: =Multi1*SimulationData!M59+Multi2*SimulationData!M1061+Multi3*SimulationData!M2063+Multi4*SimulationData!M3065 -> 0.09347768108 | N84: =Multi1*SimulationData!N59+Multi2*SimulationData!N1061+Multi3*SimulationData!N2063+Multi4*SimulationData!N3065 -> 0.0001878329524 | O84: =Multi1*SimulationData!O59+Multi2*SimulationData!O1061+Multi3*SimulationData!O2063+Multi4*SimulationData!O3065 -> 3.559591863e-09 | P84: =Multi1*SimulationData!P59+Multi2*SimulationData!P1061+Multi3*SimulationData!P2063+Multi4*SimulationData!P3065 -> 3.834381512e-21 | Q84: =Multi1*SimulationData!Q59+Multi2*SimulationData!Q1061+Multi3*SimulationData!Q2063+Multi4*SimulationData!Q3065 -> 0 | R84: =Multi1*SimulationData!R59+Multi2*SimulationData!R1061+Multi3*SimulationData!R2063+Multi4*SimulationData!R3065 -> 0 | S84: =Multi1*SimulationData!S59+Multi2*SimulationData!S1061+Multi3*SimulationData!S2063+Multi4*SimulationData!S3065 -> 1.175247434e-20 | T84: =Multi1*SimulationData!T59+Multi2*SimulationData!T1061+Multi3*SimulationData!T2063+Multi4*SimulationData!T3065 -> 3.641441924e-15 | U84: =Multi1*SimulationData!U59+Multi2*SimulationData!U1061+Multi3*SimulationData!U2063+Multi4*SimulationData!U3065 -> 1.151603316e-23 | V84: =Multi1*SimulationData!V59+Multi2*SimulationData!V1061+Multi3*SimulationData!V2063+Multi4*SimulationData!V3065 -> 5.950205883e-23 | W84: =Multi1*SimulationData!W59+Multi2*SimulationData!W1061+Multi3*SimulationData!W2063+Multi4*SimulationData!W3065 -> 4.56217151e-64 | X84: =Multi1*SimulationData!X59+Multi2*SimulationData!X1061+Multi3*SimulationData!X2063+Multi4*SimulationData!X3065 -> 0 | Y84: =Multi1*SimulationData!Y59+Multi2*SimulationData!Y1061+Multi3*SimulationData!Y2063+Multi4*SimulationData!Y3065 -> 0 | Z84: =Multi1*SimulationData!Z59+Multi2*SimulationData!Z1061+Multi3*SimulationData!Z2063+Multi4*SimulationData!Z3065 -> 0 | AA84: =Multi1*SimulationData!AA59+Multi2*SimulationData!AA1061+Multi3*SimulationData!AA2063+Multi4*SimulationData!AA3065 -> 0 | AB84: =Multi1*SimulationData!AB59+Multi2*SimulationData!AB1061+Multi3*SimulationData!AB2063+Multi4*SimulationData!AB3065 -> 0 | AC84: =Multi1*SimulationData!AC59+Multi2*SimulationData!AC1061+Multi3*SimulationData!AC2063+Multi4*SimulationData!AC3065 -> 0 | AD84: =Multi1*SimulationData!AD59+Multi2*SimulationData!AD1061+Multi3*SimulationData!AD2063+Multi4*SimulationData!AD3065 -> 0 | AE84: =Multi1*SimulationData!AE59+Multi2*SimulationData!AE1061+Multi3*SimulationData!AE2063+Multi4*SimulationData!AE3065 -> 0
B85: Simulation 58 | C85: =Multi1*SimulationData!C60+Multi2*SimulationData!C1062+Multi3*SimulationData!C2064+Multi4*SimulationData!C3066 -> 3.715804598 | D85: =Multi1*SimulationData!D60+Multi2*SimulationData!D1062+Multi3*SimulationData!D2064+Multi4*SimulationData!D3066 -> 1.367397882 | E85: =Multi1*SimulationData!E60+Multi2*SimulationData!E1062+Multi3*SimulationData!E2064+Multi4*SimulationData!E3066 -> 1.270487441 | F85: =Multi1*SimulationData!F60+Multi2*SimulationData!F1062+Multi3*SimulationData!F2064+Multi4*SimulationData!F3066 -> 0.09555453673 | G85: =Multi1*SimulationData!G60+Multi2*SimulationData!G1062+Multi3*SimulationData!G2064+Multi4*SimulationData!G3066 -> 0.008047415791 | H85: =Multi1*SimulationData!H60+Multi2*SimulationData!H1062+Multi3*SimulationData!H2064+Multi4*SimulationData!H3066 -> 0.4332607269 | I85: =Multi1*SimulationData!I60+Multi2*SimulationData!I1062+Multi3*SimulationData!I2064+Multi4*SimulationData!I3066 -> 0.0906757679 | J85: =Multi1*SimulationData!J60+Multi2*SimulationData!J1062+Multi3*SimulationData!J2064+Multi4*SimulationData!J3066 -> 0.1061036351 | K85: =Multi1*SimulationData!K60+Multi2*SimulationData!K1062+Multi3*SimulationData!K2064+Multi4*SimulationData!K3066 -> 0.8427141194 | L85: =Multi1*SimulationData!L60+Multi2*SimulationData!L1062+Multi3*SimulationData!L2064+Multi4*SimulationData!L3066 -> 0.3812646439 | M85: =Multi1*SimulationData!M60+Multi2*SimulationData!M1062+Multi3*SimulationData!M2064+Multi4*SimulationData!M3066 -> 0.5532211057 | N85: =Multi1*SimulationData!N60+Multi2*SimulationData!N1062+Multi3*SimulationData!N2064+Multi4*SimulationData!N3066 -> 0.09943283128 | O85: =Multi1*SimulationData!O60+Multi2*SimulationData!O1062+Multi3*SimulationData!O2064+Multi4*SimulationData!O3066 -> 0.0493859077 | P85: =Multi1*SimulationData!P60+Multi2*SimulationData!P1062+Multi3*SimulationData!P2064+Multi4*SimulationData!P3066 -> 0.1100339951 | Q85: =Multi1*SimulationData!Q60+Multi2*SimulationData!Q1062+Multi3*SimulationData!Q2064+Multi4*SimulationData!Q3066 -> 0.06519355246 | R85: =Multi1*SimulationData!R60+Multi2*SimulationData!R1062+Multi3*SimulationData!R2064+Multi4*SimulationData!R3066 -> 0.0151857748 | S85: =Multi1*SimulationData!S60+Multi2*SimulationData!S1062+Multi3*SimulationData!S2064+Multi4*SimulationData!S3066 -> 0.001305706493 | T85: =Multi1*SimulationData!T60+Multi2*SimulationData!T1062+Multi3*SimulationData!T2064+Multi4*SimulationData!T3066 -> 0.0002550749272 | U85: =Multi1*SimulationData!U60+Multi2*SimulationData!U1062+Multi3*SimulationData!U2064+Multi4*SimulationData!U3066 -> 6.29830885e-05 | V85: =Multi1*SimulationData!V60+Multi2*SimulationData!V1062+Multi3*SimulationData!V2064+Multi4*SimulationData!V3066 -> 1.592351234e-06 | W85: =Multi1*SimulationData!W60+Multi2*SimulationData!W1062+Multi3*SimulationData!W2064+Multi4*SimulationData!W3066 -> 6.549139469e-19 | X85: =Multi1*SimulationData!X60+Multi2*SimulationData!X1062+Multi3*SimulationData!X2064+Multi4*SimulationData!X3066 -> 0 | Y85: =Multi1*SimulationData!Y60+Multi2*SimulationData!Y1062+Multi3*SimulationData!Y2064+Multi4*SimulationData!Y3066 -> 0 | Z85: =Multi1*SimulationData!Z60+Multi2*SimulationData!Z1062+Multi3*SimulationData!Z2064+Multi4*SimulationData!Z3066 -> 0 | AA85: =Multi1*SimulationData!AA60+Multi2*SimulationData!AA1062+Multi3*SimulationData!AA2064+Multi4*SimulationData!AA3066 -> 0 | AB85: =Multi1*SimulationData!AB60+Multi2*SimulationData!AB1062+Multi3*SimulationData!AB2064+Multi4*SimulationData!AB3066 -> 0 | AC85: =Multi1*SimulationData!AC60+Multi2*SimulationData!AC1062+Multi3*SimulationData!AC2064+Multi4*SimulationData!AC3066 -> 0 | AD85: =Multi1*SimulationData!AD60+Multi2*SimulationData!AD1062+Multi3*SimulationData!AD2064+Multi4*SimulationData!AD3066 -> 0 | AE85: =Multi1*SimulationData!AE60+Multi2*SimulationData!AE1062+Multi3*SimulationData!AE2064+Multi4*SimulationData!AE3066 -> 0
B86: Simulation 59 | C86: =Multi1*SimulationData!C61+Multi2*SimulationData!C1063+Multi3*SimulationData!C2065+Multi4*SimulationData!C3067 -> 3.715804598 | D86: =Multi1*SimulationData!D61+Multi2*SimulationData!D1063+Multi3*SimulationData!D2065+Multi4*SimulationData!D3067 -> 5.44308066 | E86: =Multi1*SimulationData!E61+Multi2*SimulationData!E1063+Multi3*SimulationData!E2065+Multi4*SimulationData!E3067 -> 3.993662231 | F86: =Multi1*SimulationData!F61+Multi2*SimulationData!F1063+Multi3*SimulationData!F2065+Multi4*SimulationData!F3067 -> 5.155542232 | G86: =Multi1*SimulationData!G61+Multi2*SimulationData!G1063+Multi3*SimulationData!G2065+Multi4*SimulationData!G3067 -> 4.185986715 | H86: =Multi1*SimulationData!H61+Multi2*SimulationData!H1063+Multi3*SimulationData!H2065+Multi4*SimulationData!H3067 -> 2.702175213 | I86: =Multi1*SimulationData!I61+Multi2*SimulationData!I1063+Multi3*SimulationData!I2065+Multi4*SimulationData!I3067 -> 1.707780784 | J86: =Multi1*SimulationData!J61+Multi2*SimulationData!J1063+Multi3*SimulationData!J2065+Multi4*SimulationData!J3067 -> 3.110798649 | K86: =Multi1*SimulationData!K61+Multi2*SimulationData!K1063+Multi3*SimulationData!K2065+Multi4*SimulationData!K3067 -> 1.381042575 | L86: =Multi1*SimulationData!L61+Multi2*SimulationData!L1063+Multi3*SimulationData!L2065+Multi4*SimulationData!L3067 -> 1.281887086 | M86: =Multi1*SimulationData!M61+Multi2*SimulationData!M1063+Multi3*SimulationData!M2065+Multi4*SimulationData!M3067 -> 0.8007805539 | N86: =Multi1*SimulationData!N61+Multi2*SimulationData!N1063+Multi3*SimulationData!N2065+Multi4*SimulationData!N3067 -> 0.7042129641 | O86: =Multi1*SimulationData!O61+Multi2*SimulationData!O1063+Multi3*SimulationData!O2065+Multi4*SimulationData!O3067 -> 0.3250910576 | P86: =Multi1*SimulationData!P61+Multi2*SimulationData!P1063+Multi3*SimulationData!P2065+Multi4*SimulationData!P3067 -> 0.1444435041 | Q86: =Multi1*SimulationData!Q61+Multi2*SimulationData!Q1063+Multi3*SimulationData!Q2065+Multi4*SimulationData!Q3067 -> 0.06386461877 | R86: =Multi1*SimulationData!R61+Multi2*SimulationData!R1063+Multi3*SimulationData!R2065+Multi4*SimulationData!R3067 -> 0.06163239727 | S86: =Multi1*SimulationData!S61+Multi2*SimulationData!S1063+Multi3*SimulationData!S2065+Multi4*SimulationData!S3067 -> 0.03938773336 | T86: =Multi1*SimulationData!T61+Multi2*SimulationData!T1063+Multi3*SimulationData!T2065+Multi4*SimulationData!T3067 -> 0.01179232628 | U86: =Multi1*SimulationData!U61+Multi2*SimulationData!U1063+Multi3*SimulationData!U2065+Multi4*SimulationData!U3067 -> 0.005855667975 | V86: =Multi1*SimulationData!V61+Multi2*SimulationData!V1063+Multi3*SimulationData!V2065+Multi4*SimulationData!V3067 -> 0.001360405063 | W86: =Multi1*SimulationData!W61+Multi2*SimulationData!W1063+Multi3*SimulationData!W2065+Multi4*SimulationData!W3067 -> 1.130666471e-09 | X86: =Multi1*SimulationData!X61+Multi2*SimulationData!X1063+Multi3*SimulationData!X2065+Multi4*SimulationData!X3067 -> 0 | Y86: =Multi1*SimulationData!Y61+Multi2*SimulationData!Y1063+Multi3*SimulationData!Y2065+Multi4*SimulationData!Y3067 -> 0 | Z86: =Multi1*SimulationData!Z61+Multi2*SimulationData!Z1063+Multi3*SimulationData!Z2065+Multi4*SimulationData!Z3067 -> 0 | AA86: =Multi1*SimulationData!AA61+Multi2*SimulationData!AA1063+Multi3*SimulationData!AA2065+Multi4*SimulationData!AA3067 -> 0 | AB86: =Multi1*SimulationData!AB61+Multi2*SimulationData!AB1063+Multi3*SimulationData!AB2065+Multi4*SimulationData!AB3067 -> 0 | AC86: =Multi1*SimulationData!AC61+Multi2*SimulationData!AC1063+Multi3*SimulationData!AC2065+Multi4*SimulationData!AC3067 -> 0 | AD86: =Multi1*SimulationData!AD61+Multi2*SimulationData!AD1063+Multi3*SimulationData!AD2065+Multi4*SimulationData!AD3067 -> 0 | AE86: =Multi1*SimulationData!AE61+Multi2*SimulationData!AE1063+Multi3*SimulationData!AE2065+Multi4*SimulationData!AE3067 -> 0
B87: Simulation 60 | C87: =Multi1*SimulationData!C62+Multi2*SimulationData!C1064+Multi3*SimulationData!C2066+Multi4*SimulationData!C3068 -> 3.715804598 | D87: =Multi1*SimulationData!D62+Multi2*SimulationData!D1064+Multi3*SimulationData!D2066+Multi4*SimulationData!D3068 -> 3.652674577 | E87: =Multi1*SimulationData!E62+Multi2*SimulationData!E1064+Multi3*SimulationData!E2066+Multi4*SimulationData!E3068 -> 1.244645705 | F87: =Multi1*SimulationData!F62+Multi2*SimulationData!F1064+Multi3*SimulationData!F2066+Multi4*SimulationData!F3068 -> 1.258800219 | G87: =Multi1*SimulationData!G62+Multi2*SimulationData!G1064+Multi3*SimulationData!G2066+Multi4*SimulationData!G3068 -> 0.5664599159 | H87: =Multi1*SimulationData!H62+Multi2*SimulationData!H1064+Multi3*SimulationData!H2066+Multi4*SimulationData!H3068 -> 0.02682381932 | I87: =Multi1*SimulationData!I62+Multi2*SimulationData!I1064+Multi3*SimulationData!I2066+Multi4*SimulationData!I3068 -> 0.4050136274 | J87: =Multi1*SimulationData!J62+Multi2*SimulationData!J1064+Multi3*SimulationData!J2066+Multi4*SimulationData!J3068 -> 0.2706968458 | K87: =Multi1*SimulationData!K62+Multi2*SimulationData!K1064+Multi3*SimulationData!K2066+Multi4*SimulationData!K3068 -> 0.6558269717 | L87: =Multi1*SimulationData!L62+Multi2*SimulationData!L1064+Multi3*SimulationData!L2066+Multi4*SimulationData!L3068 -> 0.2723007313 | M87: =Multi1*SimulationData!M62+Multi2*SimulationData!M1064+Multi3*SimulationData!M2066+Multi4*SimulationData!M3068 -> 0.739980298 | N87: =Multi1*SimulationData!N62+Multi2*SimulationData!N1064+Multi3*SimulationData!N2066+Multi4*SimulationData!N3068 -> 0.3989833771 | O87: =Multi1*SimulationData!O62+Multi2*SimulationData!O1064+Multi3*SimulationData!O2066+Multi4*SimulationData!O3068 -> 1.494463053 | P87: =Multi1*SimulationData!P62+Multi2*SimulationData!P1064+Multi3*SimulationData!P2066+Multi4*SimulationData!P3068 -> 1.814536965 | Q87: =Multi1*SimulationData!Q62+Multi2*SimulationData!Q1064+Multi3*SimulationData!Q2066+Multi4*SimulationData!Q3068 -> 2.078197898 | R87: =Multi1*SimulationData!R62+Multi2*SimulationData!R1064+Multi3*SimulationData!R2066+Multi4*SimulationData!R3068 -> 1.349759658 | S87: =Multi1*SimulationData!S62+Multi2*SimulationData!S1064+Multi3*SimulationData!S2066+Multi4*SimulationData!S3068 -> 1.008099527 | T87: =Multi1*SimulationData!T62+Multi2*SimulationData!T1064+Multi3*SimulationData!T2066+Multi4*SimulationData!T3068 -> 0.7875361126 | U87: =Multi1*SimulationData!U62+Multi2*SimulationData!U1064+Multi3*SimulationData!U2066+Multi4*SimulationData!U3068 -> 0.7121265736 | V87: =Multi1*SimulationData!V62+Multi2*SimulationData!V1064+Multi3*SimulationData!V2066+Multi4*SimulationData!V3068 -> 0.3924767921 | W87: =Multi1*SimulationData!W62+Multi2*SimulationData!W1064+Multi3*SimulationData!W2066+Multi4*SimulationData!W3068 -> 0.0679018353 | X87: =Multi1*SimulationData!X62+Multi2*SimulationData!X1064+Multi3*SimulationData!X2066+Multi4*SimulationData!X3068 -> 0 | Y87: =Multi1*SimulationData!Y62+Multi2*SimulationData!Y1064+Multi3*SimulationData!Y2066+Multi4*SimulationData!Y3068 -> 0 | Z87: =Multi1*SimulationData!Z62+Multi2*SimulationData!Z1064+Multi3*SimulationData!Z2066+Multi4*SimulationData!Z3068 -> 0 | AA87: =Multi1*SimulationData!AA62+Multi2*SimulationData!AA1064+Multi3*SimulationData!AA2066+Multi4*SimulationData!AA3068 -> 0 | AB87: =Multi1*SimulationData!AB62+Multi2*SimulationData!AB1064+Multi3*SimulationData!AB2066+Multi4*SimulationData!AB3068 -> 0 | AC87: =Multi1*SimulationData!AC62+Multi2*SimulationData!AC1064+Multi3*SimulationData!AC2066+Multi4*SimulationData!AC3068 -> 0 | AD87: =Multi1*SimulationData!AD62+Multi2*SimulationData!AD1064+Multi3*SimulationData!AD2066+Multi4*SimulationData!AD3068 -> 0 | AE87: =Multi1*SimulationData!AE62+Multi2*SimulationData!AE1064+Multi3*SimulationData!AE2066+Multi4*SimulationData!AE3068 -> 0
B88: Simulation 61 | C88: =Multi1*SimulationData!C63+Multi2*SimulationData!C1065+Multi3*SimulationData!C2067+Multi4*SimulationData!C3069 -> 3.715804598 | D88: =Multi1*SimulationData!D63+Multi2*SimulationData!D1065+Multi3*SimulationData!D2067+Multi4*SimulationData!D3069 -> 4.809203692 | E88: =Multi1*SimulationData!E63+Multi2*SimulationData!E1065+Multi3*SimulationData!E2067+Multi4*SimulationData!E3069 -> 4.434787539 | F88: =Multi1*SimulationData!F63+Multi2*SimulationData!F1065+Multi3*SimulationData!F2067+Multi4*SimulationData!F3069 -> 3.963188198 | G88: =Multi1*SimulationData!G63+Multi2*SimulationData!G1065+Multi3*SimulationData!G2067+Multi4*SimulationData!G3069 -> 5.008139547 | H88: =Multi1*SimulationData!H63+Multi2*SimulationData!H1065+Multi3*SimulationData!H2067+Multi4*SimulationData!H3069 -> 5.591832539 | I88: =Multi1*SimulationData!I63+Multi2*SimulationData!I1065+Multi3*SimulationData!I2067+Multi4*SimulationData!I3069 -> 5.068469494 | J88: =Multi1*SimulationData!J63+Multi2*SimulationData!J1065+Multi3*SimulationData!J2067+Multi4*SimulationData!J3069 -> 6.199024617 | K88: =Multi1*SimulationData!K63+Multi2*SimulationData!K1065+Multi3*SimulationData!K2067+Multi4*SimulationData!K3069 -> 5.562238274 | L88: =Multi1*SimulationData!L63+Multi2*SimulationData!L1065+Multi3*SimulationData!L2067+Multi4*SimulationData!L3069 -> 5.404378527 | M88: =Multi1*SimulationData!M63+Multi2*SimulationData!M1065+Multi3*SimulationData!M2067+Multi4*SimulationData!M3069 -> 6.072875288 | N88: =Multi1*SimulationData!N63+Multi2*SimulationData!N1065+Multi3*SimulationData!N2067+Multi4*SimulationData!N3069 -> 5.264208878 | O88: =Multi1*SimulationData!O63+Multi2*SimulationData!O1065+Multi3*SimulationData!O2067+Multi4*SimulationData!O3069 -> 4.784521863 | P88: =Multi1*SimulationData!P63+Multi2*SimulationData!P1065+Multi3*SimulationData!P2067+Multi4*SimulationData!P3069 -> 3.968613158 | Q88: =Multi1*SimulationData!Q63+Multi2*SimulationData!Q1065+Multi3*SimulationData!Q2067+Multi4*SimulationData!Q3069 -> 4.769355689 | R88: =Multi1*SimulationData!R63+Multi2*SimulationData!R1065+Multi3*SimulationData!R2067+Multi4*SimulationData!R3069 -> 4.088030509 | S88: =Multi1*SimulationData!S63+Multi2*SimulationData!S1065+Multi3*SimulationData!S2067+Multi4*SimulationData!S3069 -> 3.20675832 | T88: =Multi1*SimulationData!T63+Multi2*SimulationData!T1065+Multi3*SimulationData!T2067+Multi4*SimulationData!T3069 -> 3.585055229 | U88: =Multi1*SimulationData!U63+Multi2*SimulationData!U1065+Multi3*SimulationData!U2067+Multi4*SimulationData!U3069 -> 3.489222466 | V88: =Multi1*SimulationData!V63+Multi2*SimulationData!V1065+Multi3*SimulationData!V2067+Multi4*SimulationData!V3069 -> 2.960355807 | W88: =Multi1*SimulationData!W63+Multi2*SimulationData!W1065+Multi3*SimulationData!W2067+Multi4*SimulationData!W3069 -> 2.357721676 | X88: =Multi1*SimulationData!X63+Multi2*SimulationData!X1065+Multi3*SimulationData!X2067+Multi4*SimulationData!X3069 -> 2.237340911 | Y88: =Multi1*SimulationData!Y63+Multi2*SimulationData!Y1065+Multi3*SimulationData!Y2067+Multi4*SimulationData!Y3069 -> 1.781039396 | Z88: =Multi1*SimulationData!Z63+Multi2*SimulationData!Z1065+Multi3*SimulationData!Z2067+Multi4*SimulationData!Z3069 -> 2.526919087 | AA88: =Multi1*SimulationData!AA63+Multi2*SimulationData!AA1065+Multi3*SimulationData!AA2067+Multi4*SimulationData!AA3069 -> 1.988614894 | AB88: =Multi1*SimulationData!AB63+Multi2*SimulationData!AB1065+Multi3*SimulationData!AB2067+Multi4*SimulationData!AB3069 -> 2.712595452 | AC88: =Multi1*SimulationData!AC63+Multi2*SimulationData!AC1065+Multi3*SimulationData!AC2067+Multi4*SimulationData!AC3069 -> 2.177018321 | AD88: =Multi1*SimulationData!AD63+Multi2*SimulationData!AD1065+Multi3*SimulationData!AD2067+Multi4*SimulationData!AD3069 -> 2.796019052 | AE88: =Multi1*SimulationData!AE63+Multi2*SimulationData!AE1065+Multi3*SimulationData!AE2067+Multi4*SimulationData!AE3069 -> 2.16865518
B89: Simulation 62 | C89: =Multi1*SimulationData!C64+Multi2*SimulationData!C1066+Multi3*SimulationData!C2068+Multi4*SimulationData!C3070 -> 3.715804598 | D89: =Multi1*SimulationData!D64+Multi2*SimulationData!D1066+Multi3*SimulationData!D2068+Multi4*SimulationData!D3070 -> 3.025703137 | E89: =Multi1*SimulationData!E64+Multi2*SimulationData!E1066+Multi3*SimulationData!E2068+Multi4*SimulationData!E3070 -> 2.495327298 | F89: =Multi1*SimulationData!F64+Multi2*SimulationData!F1066+Multi3*SimulationData!F2068+Multi4*SimulationData!F3070 -> 1.698126133 | G89: =Multi1*SimulationData!G64+Multi2*SimulationData!G1066+Multi3*SimulationData!G2068+Multi4*SimulationData!G3070 -> 1.196451787 | H89: =Multi1*SimulationData!H64+Multi2*SimulationData!H1066+Multi3*SimulationData!H2068+Multi4*SimulationData!H3070 -> 1.969701017 | I89: =Multi1*SimulationData!I64+Multi2*SimulationData!I1066+Multi3*SimulationData!I2068+Multi4*SimulationData!I3070 -> 1.204329662 | J89: =Multi1*SimulationData!J64+Multi2*SimulationData!J1066+Multi3*SimulationData!J2068+Multi4*SimulationData!J3070 -> 1.980135635 | K89: =Multi1*SimulationData!K64+Multi2*SimulationData!K1066+Multi3*SimulationData!K2068+Multi4*SimulationData!K3070 -> 0.8646657726 | L89: =Multi1*SimulationData!L64+Multi2*SimulationData!L1066+Multi3*SimulationData!L2068+Multi4*SimulationData!L3070 -> 0.4726204403 | M89: =Multi1*SimulationData!M64+Multi2*SimulationData!M1066+Multi3*SimulationData!M2068+Multi4*SimulationData!M3070 -> 1.313154279 | N89: =Multi1*SimulationData!N64+Multi2*SimulationData!N1066+Multi3*SimulationData!N2068+Multi4*SimulationData!N3070 -> 1.162141967 | O89: =Multi1*SimulationData!O64+Multi2*SimulationData!O1066+Multi3*SimulationData!O2068+Multi4*SimulationData!O3070 -> 1.423429879 | P89: =Multi1*SimulationData!P64+Multi2*SimulationData!P1066+Multi3*SimulationData!P2068+Multi4*SimulationData!P3070 -> 1.696012745 | Q89: =Multi1*SimulationData!Q64+Multi2*SimulationData!Q1066+Multi3*SimulationData!Q2068+Multi4*SimulationData!Q3070 -> 2.461503957 | R89: =Multi1*SimulationData!R64+Multi2*SimulationData!R1066+Multi3*SimulationData!R2068+Multi4*SimulationData!R3070 -> 1.924320834 | S89: =Multi1*SimulationData!S64+Multi2*SimulationData!S1066+Multi3*SimulationData!S2068+Multi4*SimulationData!S3070 -> 1.929040022 | T89: =Multi1*SimulationData!T64+Multi2*SimulationData!T1066+Multi3*SimulationData!T2068+Multi4*SimulationData!T3070 -> 1.672055774 | U89: =Multi1*SimulationData!U64+Multi2*SimulationData!U1066+Multi3*SimulationData!U2068+Multi4*SimulationData!U3070 -> 1.425908195 | V89: =Multi1*SimulationData!V64+Multi2*SimulationData!V1066+Multi3*SimulationData!V2068+Multi4*SimulationData!V3070 -> 1.203526172 | W89: =Multi1*SimulationData!W64+Multi2*SimulationData!W1066+Multi3*SimulationData!W2068+Multi4*SimulationData!W3070 -> 0.5277625921 | X89: =Multi1*SimulationData!X64+Multi2*SimulationData!X1066+Multi3*SimulationData!X2068+Multi4*SimulationData!X3070 -> 0 | Y89: =Multi1*SimulationData!Y64+Multi2*SimulationData!Y1066+Multi3*SimulationData!Y2068+Multi4*SimulationData!Y3070 -> 0 | Z89: =Multi1*SimulationData!Z64+Multi2*SimulationData!Z1066+Multi3*SimulationData!Z2068+Multi4*SimulationData!Z3070 -> 0 | AA89: =Multi1*SimulationData!AA64+Multi2*SimulationData!AA1066+Multi3*SimulationData!AA2068+Multi4*SimulationData!AA3070 -> 0 | AB89: =Multi1*SimulationData!AB64+Multi2*SimulationData!AB1066+Multi3*SimulationData!AB2068+Multi4*SimulationData!AB3070 -> 0 | AC89: =Multi1*SimulationData!AC64+Multi2*SimulationData!AC1066+Multi3*SimulationData!AC2068+Multi4*SimulationData!AC3070 -> 0 | AD89: =Multi1*SimulationData!AD64+Multi2*SimulationData!AD1066+Multi3*SimulationData!AD2068+Multi4*SimulationData!AD3070 -> 0 | AE89: =Multi1*SimulationData!AE64+Multi2*SimulationData!AE1066+Multi3*SimulationData!AE2068+Multi4*SimulationData!AE3070 -> 0
B90: Simulation 63 | C90: =Multi1*SimulationData!C65+Multi2*SimulationData!C1067+Multi3*SimulationData!C2069+Multi4*SimulationData!C3071 -> 3.715804598 | D90: =Multi1*SimulationData!D65+Multi2*SimulationData!D1067+Multi3*SimulationData!D2069+Multi4*SimulationData!D3071 -> 1.671111454 | E90: =Multi1*SimulationData!E65+Multi2*SimulationData!E1067+Multi3*SimulationData!E2069+Multi4*SimulationData!E3071 -> 1.108606344 | F90: =Multi1*SimulationData!F65+Multi2*SimulationData!F1067+Multi3*SimulationData!F2069+Multi4*SimulationData!F3071 -> 0.9637806635 | G90: =Multi1*SimulationData!G65+Multi2*SimulationData!G1067+Multi3*SimulationData!G2069+Multi4*SimulationData!G3071 -> 3.359311984 | H90: =Multi1*SimulationData!H65+Multi2*SimulationData!H1067+Multi3*SimulationData!H2069+Multi4*SimulationData!H3071 -> 2.063904797 | I90: =Multi1*SimulationData!I65+Multi2*SimulationData!I1067+Multi3*SimulationData!I2069+Multi4*SimulationData!I3071 -> 1.676970521 | J90: =Multi1*SimulationData!J65+Multi2*SimulationData!J1067+Multi3*SimulationData!J2069+Multi4*SimulationData!J3071 -> 3.812728481 | K90: =Multi1*SimulationData!K65+Multi2*SimulationData!K1067+Multi3*SimulationData!K2069+Multi4*SimulationData!K3071 -> 5.633600745 | L90: =Multi1*SimulationData!L65+Multi2*SimulationData!L1067+Multi3*SimulationData!L2069+Multi4*SimulationData!L3071 -> 5.969113426 | M90: =Multi1*SimulationData!M65+Multi2*SimulationData!M1067+Multi3*SimulationData!M2069+Multi4*SimulationData!M3071 -> 3.484198455 | N90: =Multi1*SimulationData!N65+Multi2*SimulationData!N1067+Multi3*SimulationData!N2069+Multi4*SimulationData!N3071 -> 3.938329607 | O90: =Multi1*SimulationData!O65+Multi2*SimulationData!O1067+Multi3*SimulationData!O2069+Multi4*SimulationData!O3071 -> 3.604672569 | P90: =Multi1*SimulationData!P65+Multi2*SimulationData!P1067+Multi3*SimulationData!P2069+Multi4*SimulationData!P3071 -> 4.167154699 | Q90: =Multi1*SimulationData!Q65+Multi2*SimulationData!Q1067+Multi3*SimulationData!Q2069+Multi4*SimulationData!Q3071 -> 3.824446205 | R90: =Multi1*SimulationData!R65+Multi2*SimulationData!R1067+Multi3*SimulationData!R2069+Multi4*SimulationData!R3071 -> 3.011013209 | S90: =Multi1*SimulationData!S65+Multi2*SimulationData!S1067+Multi3*SimulationData!S2069+Multi4*SimulationData!S3071 -> 3.102478425 | T90: =Multi1*SimulationData!T65+Multi2*SimulationData!T1067+Multi3*SimulationData!T2069+Multi4*SimulationData!T3071 -> 2.863705177 | U90: =Multi1*SimulationData!U65+Multi2*SimulationData!U1067+Multi3*SimulationData!U2069+Multi4*SimulationData!U3071 -> 2.488216891 | V90: =Multi1*SimulationData!V65+Multi2*SimulationData!V1067+Multi3*SimulationData!V2069+Multi4*SimulationData!V3071 -> 2.047385137 | W90: =Multi1*SimulationData!W65+Multi2*SimulationData!W1067+Multi3*SimulationData!W2069+Multi4*SimulationData!W3071 -> 1.475167439 | X90: =Multi1*SimulationData!X65+Multi2*SimulationData!X1067+Multi3*SimulationData!X2069+Multi4*SimulationData!X3071 -> 1.230353832 | Y90: =Multi1*SimulationData!Y65+Multi2*SimulationData!Y1067+Multi3*SimulationData!Y2069+Multi4*SimulationData!Y3071 -> 0.7738011523 | Z90: =Multi1*SimulationData!Z65+Multi2*SimulationData!Z1067+Multi3*SimulationData!Z2069+Multi4*SimulationData!Z3071 -> 1.530819706 | AA90: =Multi1*SimulationData!AA65+Multi2*SimulationData!AA1067+Multi3*SimulationData!AA2069+Multi4*SimulationData!AA3071 -> 1.037343163 | AB90: =Multi1*SimulationData!AB65+Multi2*SimulationData!AB1067+Multi3*SimulationData!AB2069+Multi4*SimulationData!AB3071 -> 1.789314276 | AC90: =Multi1*SimulationData!AC65+Multi2*SimulationData!AC1067+Multi3*SimulationData!AC2069+Multi4*SimulationData!AC3071 -> 1.264983822 | AD90: =Multi1*SimulationData!AD65+Multi2*SimulationData!AD1067+Multi3*SimulationData!AD2069+Multi4*SimulationData!AD3071 -> 1.93541408 | AE90: =Multi1*SimulationData!AE65+Multi2*SimulationData!AE1067+Multi3*SimulationData!AE2069+Multi4*SimulationData!AE3071 -> 1.33858394
B91: Simulation 64 | C91: =Multi1*SimulationData!C66+Multi2*SimulationData!C1068+Multi3*SimulationData!C2070+Multi4*SimulationData!C3072 -> 3.715804598 | D91: =Multi1*SimulationData!D66+Multi2*SimulationData!D1068+Multi3*SimulationData!D2070+Multi4*SimulationData!D3072 -> 4.880982307 | E91: =Multi1*SimulationData!E66+Multi2*SimulationData!E1068+Multi3*SimulationData!E2070+Multi4*SimulationData!E3072 -> 4.618184018 | F91: =Multi1*SimulationData!F66+Multi2*SimulationData!F1068+Multi3*SimulationData!F2070+Multi4*SimulationData!F3072 -> 5.268652084 | G91: =Multi1*SimulationData!G66+Multi2*SimulationData!G1068+Multi3*SimulationData!G2070+Multi4*SimulationData!G3072 -> 5.396076696 | H91: =Multi1*SimulationData!H66+Multi2*SimulationData!H1068+Multi3*SimulationData!H2070+Multi4*SimulationData!H3072 -> 9.000411978 | I91: =Multi1*SimulationData!I66+Multi2*SimulationData!I1068+Multi3*SimulationData!I2070+Multi4*SimulationData!I3072 -> 7.463282649 | J91: =Multi1*SimulationData!J66+Multi2*SimulationData!J1068+Multi3*SimulationData!J2070+Multi4*SimulationData!J3072 -> 8.828821019 | K91: =Multi1*SimulationData!K66+Multi2*SimulationData!K1068+Multi3*SimulationData!K2070+Multi4*SimulationData!K3072 -> 7.828450251 | L91: =Multi1*SimulationData!L66+Multi2*SimulationData!L1068+Multi3*SimulationData!L2070+Multi4*SimulationData!L3072 -> 6.577478405 | M91: =Multi1*SimulationData!M66+Multi2*SimulationData!M1068+Multi3*SimulationData!M2070+Multi4*SimulationData!M3072 -> 7.505778403 | N91: =Multi1*SimulationData!N66+Multi2*SimulationData!N1068+Multi3*SimulationData!N2070+Multi4*SimulationData!N3072 -> 7.082932262 | O91: =Multi1*SimulationData!O66+Multi2*SimulationData!O1068+Multi3*SimulationData!O2070+Multi4*SimulationData!O3072 -> 6.770325152 | P91: =Multi1*SimulationData!P66+Multi2*SimulationData!P1068+Multi3*SimulationData!P2070+Multi4*SimulationData!P3072 -> 6.924162887 | Q91: =Multi1*SimulationData!Q66+Multi2*SimulationData!Q1068+Multi3*SimulationData!Q2070+Multi4*SimulationData!Q3072 -> 6.445360373 | R91: =Multi1*SimulationData!R66+Multi2*SimulationData!R1068+Multi3*SimulationData!R2070+Multi4*SimulationData!R3072 -> 6.555348762 | S91: =Multi1*SimulationData!S66+Multi2*SimulationData!S1068+Multi3*SimulationData!S2070+Multi4*SimulationData!S3072 -> 6.458706639 | T91: =Multi1*SimulationData!T66+Multi2*SimulationData!T1068+Multi3*SimulationData!T2070+Multi4*SimulationData!T3072 -> 6.674545831 | U91: =Multi1*SimulationData!U66+Multi2*SimulationData!U1068+Multi3*SimulationData!U2070+Multi4*SimulationData!U3072 -> 6.558700326 | V91: =Multi1*SimulationData!V66+Multi2*SimulationData!V1068+Multi3*SimulationData!V2070+Multi4*SimulationData!V3072 -> 6.403409561 | W91: =Multi1*SimulationData!W66+Multi2*SimulationData!W1068+Multi3*SimulationData!W2070+Multi4*SimulationData!W3072 -> 6.346325961 | X91: =Multi1*SimulationData!X66+Multi2*SimulationData!X1068+Multi3*SimulationData!X2070+Multi4*SimulationData!X3072 -> 6.349823953 | Y91: =Multi1*SimulationData!Y66+Multi2*SimulationData!Y1068+Multi3*SimulationData!Y2070+Multi4*SimulationData!Y3072 -> 5.388539009 | Z91: =Multi1*SimulationData!Z66+Multi2*SimulationData!Z1068+Multi3*SimulationData!Z2070+Multi4*SimulationData!Z3072 -> 5.693203171 | AA91: =Multi1*SimulationData!AA66+Multi2*SimulationData!AA1068+Multi3*SimulationData!AA2070+Multi4*SimulationData!AA3072 -> 4.731244852 | AB91: =Multi1*SimulationData!AB66+Multi2*SimulationData!AB1068+Multi3*SimulationData!AB2070+Multi4*SimulationData!AB3072 -> 4.997723527 | AC91: =Multi1*SimulationData!AC66+Multi2*SimulationData!AC1068+Multi3*SimulationData!AC2070+Multi4*SimulationData!AC3072 -> 4.06989083 | AD91: =Multi1*SimulationData!AD66+Multi2*SimulationData!AD1068+Multi3*SimulationData!AD2070+Multi4*SimulationData!AD3072 -> 4.320777741 | AE91: =Multi1*SimulationData!AE66+Multi2*SimulationData!AE1068+Multi3*SimulationData!AE2070+Multi4*SimulationData!AE3072 -> 3.309915643
B92: Simulation 65 | C92: =Multi1*SimulationData!C67+Multi2*SimulationData!C1069+Multi3*SimulationData!C2071+Multi4*SimulationData!C3073 -> 3.715804598 | D92: =Multi1*SimulationData!D67+Multi2*SimulationData!D1069+Multi3*SimulationData!D2071+Multi4*SimulationData!D3073 -> 1.147887722 | E92: =Multi1*SimulationData!E67+Multi2*SimulationData!E1069+Multi3*SimulationData!E2071+Multi4*SimulationData!E3073 -> 3.295775834 | F92: =Multi1*SimulationData!F67+Multi2*SimulationData!F1069+Multi3*SimulationData!F2071+Multi4*SimulationData!F3073 -> 3.363135315 | G92: =Multi1*SimulationData!G67+Multi2*SimulationData!G1069+Multi3*SimulationData!G2071+Multi4*SimulationData!G3073 -> 3.483906338 | H92: =Multi1*SimulationData!H67+Multi2*SimulationData!H1069+Multi3*SimulationData!H2071+Multi4*SimulationData!H3073 -> 3.948210479 | I92: =Multi1*SimulationData!I67+Multi2*SimulationData!I1069+Multi3*SimulationData!I2071+Multi4*SimulationData!I3073 -> 5.26139616 | J92: =Multi1*SimulationData!J67+Multi2*SimulationData!J1069+Multi3*SimulationData!J2071+Multi4*SimulationData!J3073 -> 4.329943181 | K92: =Multi1*SimulationData!K67+Multi2*SimulationData!K1069+Multi3*SimulationData!K2071+Multi4*SimulationData!K3073 -> 4.193852111 | L92: =Multi1*SimulationData!L67+Multi2*SimulationData!L1069+Multi3*SimulationData!L2071+Multi4*SimulationData!L3073 -> 4.108029907 | M92: =Multi1*SimulationData!M67+Multi2*SimulationData!M1069+Multi3*SimulationData!M2071+Multi4*SimulationData!M3073 -> 4.393542416 | N92: =Multi1*SimulationData!N67+Multi2*SimulationData!N1069+Multi3*SimulationData!N2071+Multi4*SimulationData!N3073 -> 3.55402958 | O92: =Multi1*SimulationData!O67+Multi2*SimulationData!O1069+Multi3*SimulationData!O2071+Multi4*SimulationData!O3073 -> 2.496480216 | P92: =Multi1*SimulationData!P67+Multi2*SimulationData!P1069+Multi3*SimulationData!P2071+Multi4*SimulationData!P3073 -> 2.111119158 | Q92: =Multi1*SimulationData!Q67+Multi2*SimulationData!Q1069+Multi3*SimulationData!Q2071+Multi4*SimulationData!Q3073 -> 1.852897813 | R92: =Multi1*SimulationData!R67+Multi2*SimulationData!R1069+Multi3*SimulationData!R2071+Multi4*SimulationData!R3073 -> 1.336805539 | S92: =Multi1*SimulationData!S67+Multi2*SimulationData!S1069+Multi3*SimulationData!S2071+Multi4*SimulationData!S3073 -> 1.61613822 | T92: =Multi1*SimulationData!T67+Multi2*SimulationData!T1069+Multi3*SimulationData!T2071+Multi4*SimulationData!T3073 -> 1.475744812 | U92: =Multi1*SimulationData!U67+Multi2*SimulationData!U1069+Multi3*SimulationData!U2071+Multi4*SimulationData!U3073 -> 1.31579881 | V92: =Multi1*SimulationData!V67+Multi2*SimulationData!V1069+Multi3*SimulationData!V2071+Multi4*SimulationData!V3073 -> 0.9827462142 | W92: =Multi1*SimulationData!W67+Multi2*SimulationData!W1069+Multi3*SimulationData!W2071+Multi4*SimulationData!W3073 -> 0.3887262325 | X92: =Multi1*SimulationData!X67+Multi2*SimulationData!X1069+Multi3*SimulationData!X2071+Multi4*SimulationData!X3073 -> 0 | Y92: =Multi1*SimulationData!Y67+Multi2*SimulationData!Y1069+Multi3*SimulationData!Y2071+Multi4*SimulationData!Y3073 -> 0 | Z92: =Multi1*SimulationData!Z67+Multi2*SimulationData!Z1069+Multi3*SimulationData!Z2071+Multi4*SimulationData!Z3073 -> 0 | AA92: =Multi1*SimulationData!AA67+Multi2*SimulationData!AA1069+Multi3*SimulationData!AA2071+Multi4*SimulationData!AA3073 -> 0 | AB92: =Multi1*SimulationData!AB67+Multi2*SimulationData!AB1069+Multi3*SimulationData!AB2071+Multi4*SimulationData!AB3073 -> 0 | AC92: =Multi1*SimulationData!AC67+Multi2*SimulationData!AC1069+Multi3*SimulationData!AC2071+Multi4*SimulationData!AC3073 -> 0 | AD92: =Multi1*SimulationData!AD67+Multi2*SimulationData!AD1069+Multi3*SimulationData!AD2071+Multi4*SimulationData!AD3073 -> 0 | AE92: =Multi1*SimulationData!AE67+Multi2*SimulationData!AE1069+Multi3*SimulationData!AE2071+Multi4*SimulationData!AE3073 -> 0
B93: Simulation 66 | C93: =Multi1*SimulationData!C68+Multi2*SimulationData!C1070+Multi3*SimulationData!C2072+Multi4*SimulationData!C3074 -> 3.715804598 | D93: =Multi1*SimulationData!D68+Multi2*SimulationData!D1070+Multi3*SimulationData!D2072+Multi4*SimulationData!D3074 -> 3.697483291 | E93: =Multi1*SimulationData!E68+Multi2*SimulationData!E1070+Multi3*SimulationData!E2072+Multi4*SimulationData!E3074 -> 4.330420358 | F93: =Multi1*SimulationData!F68+Multi2*SimulationData!F1070+Multi3*SimulationData!F2072+Multi4*SimulationData!F3074 -> 4.006683098 | G93: =Multi1*SimulationData!G68+Multi2*SimulationData!G1070+Multi3*SimulationData!G2072+Multi4*SimulationData!G3074 -> 6.28046859 | H93: =Multi1*SimulationData!H68+Multi2*SimulationData!H1070+Multi3*SimulationData!H2072+Multi4*SimulationData!H3074 -> 7.02700652 | I93: =Multi1*SimulationData!I68+Multi2*SimulationData!I1070+Multi3*SimulationData!I2072+Multi4*SimulationData!I3074 -> 7.893316815 | J93: =Multi1*SimulationData!J68+Multi2*SimulationData!J1070+Multi3*SimulationData!J2072+Multi4*SimulationData!J3074 -> 8.257831758 | K93: =Multi1*SimulationData!K68+Multi2*SimulationData!K1070+Multi3*SimulationData!K2072+Multi4*SimulationData!K3074 -> 7.507884561 | L93: =Multi1*SimulationData!L68+Multi2*SimulationData!L1070+Multi3*SimulationData!L2072+Multi4*SimulationData!L3074 -> 6.541963038 | M93: =Multi1*SimulationData!M68+Multi2*SimulationData!M1070+Multi3*SimulationData!M2072+Multi4*SimulationData!M3074 -> 5.619996042 | N93: =Multi1*SimulationData!N68+Multi2*SimulationData!N1070+Multi3*SimulationData!N2072+Multi4*SimulationData!N3074 -> 5.547925571 | O93: =Multi1*SimulationData!O68+Multi2*SimulationData!O1070+Multi3*SimulationData!O2072+Multi4*SimulationData!O3074 -> 6.104249568 | P93: =Multi1*SimulationData!P68+Multi2*SimulationData!P1070+Multi3*SimulationData!P2072+Multi4*SimulationData!P3074 -> 5.954314916 | Q93: =Multi1*SimulationData!Q68+Multi2*SimulationData!Q1070+Multi3*SimulationData!Q2072+Multi4*SimulationData!Q3074 -> 6.512359855 | R93: =Multi1*SimulationData!R68+Multi2*SimulationData!R1070+Multi3*SimulationData!R2072+Multi4*SimulationData!R3074 -> 7.11841159 | S93: =Multi1*SimulationData!S68+Multi2*SimulationData!S1070+Multi3*SimulationData!S2072+Multi4*SimulationData!S3074 -> 8.236306525 | T93: =Multi1*SimulationData!T68+Multi2*SimulationData!T1070+Multi3*SimulationData!T2072+Multi4*SimulationData!T3074 -> 8.583544407 | U93: =Multi1*SimulationData!U68+Multi2*SimulationData!U1070+Multi3*SimulationData!U2072+Multi4*SimulationData!U3074 -> 8.455608987 | V93: =Multi1*SimulationData!V68+Multi2*SimulationData!V1070+Multi3*SimulationData!V2072+Multi4*SimulationData!V3074 -> 8.285788488 | W93: =Multi1*SimulationData!W68+Multi2*SimulationData!W1070+Multi3*SimulationData!W2072+Multi4*SimulationData!W3074 -> 8.175013321 | X93: =Multi1*SimulationData!X68+Multi2*SimulationData!X1070+Multi3*SimulationData!X2072+Multi4*SimulationData!X3074 -> 8.282902355 | Y93: =Multi1*SimulationData!Y68+Multi2*SimulationData!Y1070+Multi3*SimulationData!Y2072+Multi4*SimulationData!Y3074 -> 7.330356524 | Z93: =Multi1*SimulationData!Z68+Multi2*SimulationData!Z1070+Multi3*SimulationData!Z2072+Multi4*SimulationData!Z3074 -> 7.581559162 | AA93: =Multi1*SimulationData!AA68+Multi2*SimulationData!AA1070+Multi3*SimulationData!AA2072+Multi4*SimulationData!AA3074 -> 6.588774933 | AB93: =Multi1*SimulationData!AB68+Multi2*SimulationData!AB1070+Multi3*SimulationData!AB2072+Multi4*SimulationData!AB3074 -> 6.796752642 | AC93: =Multi1*SimulationData!AC68+Multi2*SimulationData!AC1070+Multi3*SimulationData!AC2072+Multi4*SimulationData!AC3074 -> 5.797055713 | AD93: =Multi1*SimulationData!AD68+Multi2*SimulationData!AD1070+Multi3*SimulationData!AD2072+Multi4*SimulationData!AD3074 -> 5.969587831 | AE93: =Multi1*SimulationData!AE68+Multi2*SimulationData!AE1070+Multi3*SimulationData!AE2072+Multi4*SimulationData!AE3074 -> 4.876773153
B94: Simulation 67 | C94: =Multi1*SimulationData!C69+Multi2*SimulationData!C1071+Multi3*SimulationData!C2073+Multi4*SimulationData!C3075 -> 3.715804598 | D94: =Multi1*SimulationData!D69+Multi2*SimulationData!D1071+Multi3*SimulationData!D2073+Multi4*SimulationData!D3075 -> 5.021361889 | E94: =Multi1*SimulationData!E69+Multi2*SimulationData!E1071+Multi3*SimulationData!E2073+Multi4*SimulationData!E3075 -> 6.32314063 | F94: =Multi1*SimulationData!F69+Multi2*SimulationData!F1071+Multi3*SimulationData!F2073+Multi4*SimulationData!F3075 -> 5.238607991 | G94: =Multi1*SimulationData!G69+Multi2*SimulationData!G1071+Multi3*SimulationData!G2073+Multi4*SimulationData!G3075 -> 6.471194334 | H94: =Multi1*SimulationData!H69+Multi2*SimulationData!H1071+Multi3*SimulationData!H2073+Multi4*SimulationData!H3075 -> 3.572814628 | I94: =Multi1*SimulationData!I69+Multi2*SimulationData!I1071+Multi3*SimulationData!I2073+Multi4*SimulationData!I3075 -> 4.192306846 | J94: =Multi1*SimulationData!J69+Multi2*SimulationData!J1071+Multi3*SimulationData!J2073+Multi4*SimulationData!J3075 -> 2.26397782 | K94: =Multi1*SimulationData!K69+Multi2*SimulationData!K1071+Multi3*SimulationData!K2073+Multi4*SimulationData!K3075 -> 2.200931559 | L94: =Multi1*SimulationData!L69+Multi2*SimulationData!L1071+Multi3*SimulationData!L2073+Multi4*SimulationData!L3075 -> 2.712724546 | M94: =Multi1*SimulationData!M69+Multi2*SimulationData!M1071+Multi3*SimulationData!M2073+Multi4*SimulationData!M3075 -> 2.655816843 | N94: =Multi1*SimulationData!N69+Multi2*SimulationData!N1071+Multi3*SimulationData!N2073+Multi4*SimulationData!N3075 -> 2.992189577 | O94: =Multi1*SimulationData!O69+Multi2*SimulationData!O1071+Multi3*SimulationData!O2073+Multi4*SimulationData!O3075 -> 3.210653536 | P94: =Multi1*SimulationData!P69+Multi2*SimulationData!P1071+Multi3*SimulationData!P2073+Multi4*SimulationData!P3075 -> 3.98249055 | Q94: =Multi1*SimulationData!Q69+Multi2*SimulationData!Q1071+Multi3*SimulationData!Q2073+Multi4*SimulationData!Q3075 -> 3.419933481 | R94: =Multi1*SimulationData!R69+Multi2*SimulationData!R1071+Multi3*SimulationData!R2073+Multi4*SimulationData!R3075 -> 2.925481965 | S94: =Multi1*SimulationData!S69+Multi2*SimulationData!S1071+Multi3*SimulationData!S2073+Multi4*SimulationData!S3075 -> 2.11878616 | T94: =Multi1*SimulationData!T69+Multi2*SimulationData!T1071+Multi3*SimulationData!T2073+Multi4*SimulationData!T3075 -> 2.039782365 | U94: =Multi1*SimulationData!U69+Multi2*SimulationData!U1071+Multi3*SimulationData!U2073+Multi4*SimulationData!U3075 -> 1.767752014 | V94: =Multi1*SimulationData!V69+Multi2*SimulationData!V1071+Multi3*SimulationData!V2073+Multi4*SimulationData!V3075 -> 1.416748353 | W94: =Multi1*SimulationData!W69+Multi2*SimulationData!W1071+Multi3*SimulationData!W2073+Multi4*SimulationData!W3075 -> 0.6704631871 | X94: =Multi1*SimulationData!X69+Multi2*SimulationData!X1071+Multi3*SimulationData!X2073+Multi4*SimulationData!X3075 -> 0 | Y94: =Multi1*SimulationData!Y69+Multi2*SimulationData!Y1071+Multi3*SimulationData!Y2073+Multi4*SimulationData!Y3075 -> 0 | Z94: =Multi1*SimulationData!Z69+Multi2*SimulationData!Z1071+Multi3*SimulationData!Z2073+Multi4*SimulationData!Z3075 -> 0 | AA94: =Multi1*SimulationData!AA69+Multi2*SimulationData!AA1071+Multi3*SimulationData!AA2073+Multi4*SimulationData!AA3075 -> 0 | AB94: =Multi1*SimulationData!AB69+Multi2*SimulationData!AB1071+Multi3*SimulationData!AB2073+Multi4*SimulationData!AB3075 -> 0 | AC94: =Multi1*SimulationData!AC69+Multi2*SimulationData!AC1071+Multi3*SimulationData!AC2073+Multi4*SimulationData!AC3075 -> 0 | AD94: =Multi1*SimulationData!AD69+Multi2*SimulationData!AD1071+Multi3*SimulationData!AD2073+Multi4*SimulationData!AD3075 -> 0 | AE94: =Multi1*SimulationData!AE69+Multi2*SimulationData!AE1071+Multi3*SimulationData!AE2073+Multi4*SimulationData!AE3075 -> 0
B95: Simulation 68 | C95: =Multi1*SimulationData!C70+Multi2*SimulationData!C1072+Multi3*SimulationData!C2074+Multi4*SimulationData!C3076 -> 3.715804598 | D95: =Multi1*SimulationData!D70+Multi2*SimulationData!D1072+Multi3*SimulationData!D2074+Multi4*SimulationData!D3076 -> 4.566679707 | E95: =Multi1*SimulationData!E70+Multi2*SimulationData!E1072+Multi3*SimulationData!E2074+Multi4*SimulationData!E3076 -> 2.687425238 | F95: =Multi1*SimulationData!F70+Multi2*SimulationData!F1072+Multi3*SimulationData!F2074+Multi4*SimulationData!F3076 -> 1.527754692 | G95: =Multi1*SimulationData!G70+Multi2*SimulationData!G1072+Multi3*SimulationData!G2074+Multi4*SimulationData!G3076 -> 1.127759081 | H95: =Multi1*SimulationData!H70+Multi2*SimulationData!H1072+Multi3*SimulationData!H2074+Multi4*SimulationData!H3076 -> 3.770618844 | I95: =Multi1*SimulationData!I70+Multi2*SimulationData!I1072+Multi3*SimulationData!I2074+Multi4*SimulationData!I3076 -> 2.513585961 | J95: =Multi1*SimulationData!J70+Multi2*SimulationData!J1072+Multi3*SimulationData!J2074+Multi4*SimulationData!J3076 -> 1.184390626 | K95: =Multi1*SimulationData!K70+Multi2*SimulationData!K1072+Multi3*SimulationData!K2074+Multi4*SimulationData!K3076 -> 1.36640026 | L95: =Multi1*SimulationData!L70+Multi2*SimulationData!L1072+Multi3*SimulationData!L2074+Multi4*SimulationData!L3076 -> 1.379109947 | M95: =Multi1*SimulationData!M70+Multi2*SimulationData!M1072+Multi3*SimulationData!M2074+Multi4*SimulationData!M3076 -> 2.293517839 | N95: =Multi1*SimulationData!N70+Multi2*SimulationData!N1072+Multi3*SimulationData!N2074+Multi4*SimulationData!N3076 -> 3.940483989 | O95: =Multi1*SimulationData!O70+Multi2*SimulationData!O1072+Multi3*SimulationData!O2074+Multi4*SimulationData!O3076 -> 4.329473306 | P95: =Multi1*SimulationData!P70+Multi2*SimulationData!P1072+Multi3*SimulationData!P2074+Multi4*SimulationData!P3076 -> 4.444282286 | Q95: =Multi1*SimulationData!Q70+Multi2*SimulationData!Q1072+Multi3*SimulationData!Q2074+Multi4*SimulationData!Q3076 -> 4.172969063 | R95: =Multi1*SimulationData!R70+Multi2*SimulationData!R1072+Multi3*SimulationData!R2074+Multi4*SimulationData!R3076 -> 3.815418677 | S95: =Multi1*SimulationData!S70+Multi2*SimulationData!S1072+Multi3*SimulationData!S2074+Multi4*SimulationData!S3076 -> 3.396323972 | T95: =Multi1*SimulationData!T70+Multi2*SimulationData!T1072+Multi3*SimulationData!T2074+Multi4*SimulationData!T3076 -> 3.038590683 | U95: =Multi1*SimulationData!U70+Multi2*SimulationData!U1072+Multi3*SimulationData!U2074+Multi4*SimulationData!U3076 -> 3.062666142 | V95: =Multi1*SimulationData!V70+Multi2*SimulationData!V1072+Multi3*SimulationData!V2074+Multi4*SimulationData!V3076 -> 2.733181763 | W95: =Multi1*SimulationData!W70+Multi2*SimulationData!W1072+Multi3*SimulationData!W2074+Multi4*SimulationData!W3076 -> 2.18773827 | X95: =Multi1*SimulationData!X70+Multi2*SimulationData!X1072+Multi3*SimulationData!X2074+Multi4*SimulationData!X3076 -> 2.079195484 | Y95: =Multi1*SimulationData!Y70+Multi2*SimulationData!Y1072+Multi3*SimulationData!Y2074+Multi4*SimulationData!Y3076 -> 1.46788717 | Z95: =Multi1*SimulationData!Z70+Multi2*SimulationData!Z1072+Multi3*SimulationData!Z2074+Multi4*SimulationData!Z3076 -> 2.077147391 | AA95: =Multi1*SimulationData!AA70+Multi2*SimulationData!AA1072+Multi3*SimulationData!AA2074+Multi4*SimulationData!AA3076 -> 1.412887816 | AB95: =Multi1*SimulationData!AB70+Multi2*SimulationData!AB1072+Multi3*SimulationData!AB2074+Multi4*SimulationData!AB3076 -> 2.007931095 | AC95: =Multi1*SimulationData!AC70+Multi2*SimulationData!AC1072+Multi3*SimulationData!AC2074+Multi4*SimulationData!AC3076 -> 1.373340565 | AD95: =Multi1*SimulationData!AD70+Multi2*SimulationData!AD1072+Multi3*SimulationData!AD2074+Multi4*SimulationData!AD3076 -> 1.905425705 | AE95: =Multi1*SimulationData!AE70+Multi2*SimulationData!AE1072+Multi3*SimulationData!AE2074+Multi4*SimulationData!AE3076 -> 1.194722737
B96: Simulation 69 | C96: =Multi1*SimulationData!C71+Multi2*SimulationData!C1073+Multi3*SimulationData!C2075+Multi4*SimulationData!C3077 -> 3.715804598 | D96: =Multi1*SimulationData!D71+Multi2*SimulationData!D1073+Multi3*SimulationData!D2075+Multi4*SimulationData!D3077 -> 5.847717914 | E96: =Multi1*SimulationData!E71+Multi2*SimulationData!E1073+Multi3*SimulationData!E2075+Multi4*SimulationData!E3077 -> 5.522170421 | F96: =Multi1*SimulationData!F71+Multi2*SimulationData!F1073+Multi3*SimulationData!F2075+Multi4*SimulationData!F3077 -> 5.73884885 | G96: =Multi1*SimulationData!G71+Multi2*SimulationData!G1073+Multi3*SimulationData!G2075+Multi4*SimulationData!G3077 -> 5.552079906 | H96: =Multi1*SimulationData!H71+Multi2*SimulationData!H1073+Multi3*SimulationData!H2075+Multi4*SimulationData!H3077 -> 5.630706159 | I96: =Multi1*SimulationData!I71+Multi2*SimulationData!I1073+Multi3*SimulationData!I2075+Multi4*SimulationData!I3077 -> 7.732235725 | J96: =Multi1*SimulationData!J71+Multi2*SimulationData!J1073+Multi3*SimulationData!J2075+Multi4*SimulationData!J3077 -> 9.093804495 | K96: =Multi1*SimulationData!K71+Multi2*SimulationData!K1073+Multi3*SimulationData!K2075+Multi4*SimulationData!K3077 -> 7.893414402 | L96: =Multi1*SimulationData!L71+Multi2*SimulationData!L1073+Multi3*SimulationData!L2075+Multi4*SimulationData!L3077 -> 6.953788374 | M96: =Multi1*SimulationData!M71+Multi2*SimulationData!M1073+Multi3*SimulationData!M2075+Multi4*SimulationData!M3077 -> 5.697213888 | N96: =Multi1*SimulationData!N71+Multi2*SimulationData!N1073+Multi3*SimulationData!N2075+Multi4*SimulationData!N3077 -> 5.624446661 | O96: =Multi1*SimulationData!O71+Multi2*SimulationData!O1073+Multi3*SimulationData!O2075+Multi4*SimulationData!O3077 -> 4.264383525 | P96: =Multi1*SimulationData!P71+Multi2*SimulationData!P1073+Multi3*SimulationData!P2075+Multi4*SimulationData!P3077 -> 4.078809111 | Q96: =Multi1*SimulationData!Q71+Multi2*SimulationData!Q1073+Multi3*SimulationData!Q2075+Multi4*SimulationData!Q3077 -> 3.618637347 | R96: =Multi1*SimulationData!R71+Multi2*SimulationData!R1073+Multi3*SimulationData!R2075+Multi4*SimulationData!R3077 -> 3.325734165 | S96: =Multi1*SimulationData!S71+Multi2*SimulationData!S1073+Multi3*SimulationData!S2075+Multi4*SimulationData!S3077 -> 2.632657867 | T96: =Multi1*SimulationData!T71+Multi2*SimulationData!T1073+Multi3*SimulationData!T2075+Multi4*SimulationData!T3077 -> 2.519247264 | U96: =Multi1*SimulationData!U71+Multi2*SimulationData!U1073+Multi3*SimulationData!U2075+Multi4*SimulationData!U3077 -> 2.361858507 | V96: =Multi1*SimulationData!V71+Multi2*SimulationData!V1073+Multi3*SimulationData!V2075+Multi4*SimulationData!V3077 -> 1.886490024 | W96: =Multi1*SimulationData!W71+Multi2*SimulationData!W1073+Multi3*SimulationData!W2075+Multi4*SimulationData!W3077 -> 1.195473129 | X96: =Multi1*SimulationData!X71+Multi2*SimulationData!X1073+Multi3*SimulationData!X2075+Multi4*SimulationData!X3077 -> 0.685499154 | Y96: =Multi1*SimulationData!Y71+Multi2*SimulationData!Y1073+Multi3*SimulationData!Y2075+Multi4*SimulationData!Y3077 -> -0.09067381691 | Z96: =Multi1*SimulationData!Z71+Multi2*SimulationData!Z1073+Multi3*SimulationData!Z2075+Multi4*SimulationData!Z3077 -> 0.3631995726 | AA96: =Multi1*SimulationData!AA71+Multi2*SimulationData!AA1073+Multi3*SimulationData!AA2075+Multi4*SimulationData!AA3077 -> -0.413130376 | AB96: =Multi1*SimulationData!AB71+Multi2*SimulationData!AB1073+Multi3*SimulationData!AB2075+Multi4*SimulationData!AB3077 -> 0.0562835652 | AC96: =Multi1*SimulationData!AC71+Multi2*SimulationData!AC1073+Multi3*SimulationData!AC2075+Multi4*SimulationData!AC3077 -> -0.6566867551 | AD96: =Multi1*SimulationData!AD71+Multi2*SimulationData!AD1073+Multi3*SimulationData!AD2075+Multi4*SimulationData!AD3077 -> -0.1695063314 | AE96: =Multi1*SimulationData!AE71+Multi2*SimulationData!AE1073+Multi3*SimulationData!AE2075+Multi4*SimulationData!AE3077 -> -0.9197071717
B97: Simulation 70 | C97: =Multi1*SimulationData!C72+Multi2*SimulationData!C1074+Multi3*SimulationData!C2076+Multi4*SimulationData!C3078 -> 3.715804598 | D97: =Multi1*SimulationData!D72+Multi2*SimulationData!D1074+Multi3*SimulationData!D2076+Multi4*SimulationData!D3078 -> 2.217322732 | E97: =Multi1*SimulationData!E72+Multi2*SimulationData!E1074+Multi3*SimulationData!E2076+Multi4*SimulationData!E3078 -> 2.540366525 | F97: =Multi1*SimulationData!F72+Multi2*SimulationData!F1074+Multi3*SimulationData!F2076+Multi4*SimulationData!F3078 -> 1.265573288 | G97: =Multi1*SimulationData!G72+Multi2*SimulationData!G1074+Multi3*SimulationData!G2076+Multi4*SimulationData!G3078 -> 1.898917356 | H97: =Multi1*SimulationData!H72+Multi2*SimulationData!H1074+Multi3*SimulationData!H2076+Multi4*SimulationData!H3078 -> 3.133961767 | I97: =Multi1*SimulationData!I72+Multi2*SimulationData!I1074+Multi3*SimulationData!I2076+Multi4*SimulationData!I3078 -> 3.610075279 | J97: =Multi1*SimulationData!J72+Multi2*SimulationData!J1074+Multi3*SimulationData!J2076+Multi4*SimulationData!J3078 -> 4.205732724 | K97: =Multi1*SimulationData!K72+Multi2*SimulationData!K1074+Multi3*SimulationData!K2076+Multi4*SimulationData!K3078 -> 4.419403465 | L97: =Multi1*SimulationData!L72+Multi2*SimulationData!L1074+Multi3*SimulationData!L2076+Multi4*SimulationData!L3078 -> 5.105657303 | M97: =Multi1*SimulationData!M72+Multi2*SimulationData!M1074+Multi3*SimulationData!M2076+Multi4*SimulationData!M3078 -> 5.968840552 | N97: =Multi1*SimulationData!N72+Multi2*SimulationData!N1074+Multi3*SimulationData!N2076+Multi4*SimulationData!N3078 -> 7.024125577 | O97: =Multi1*SimulationData!O72+Multi2*SimulationData!O1074+Multi3*SimulationData!O2076+Multi4*SimulationData!O3078 -> 7.060883882 | P97: =Multi1*SimulationData!P72+Multi2*SimulationData!P1074+Multi3*SimulationData!P2076+Multi4*SimulationData!P3078 -> 5.895878767 | Q97: =Multi1*SimulationData!Q72+Multi2*SimulationData!Q1074+Multi3*SimulationData!Q2076+Multi4*SimulationData!Q3078 -> 6.365534115 | R97: =Multi1*SimulationData!R72+Multi2*SimulationData!R1074+Multi3*SimulationData!R2076+Multi4*SimulationData!R3078 -> 6.900840717 | S97: =Multi1*SimulationData!S72+Multi2*SimulationData!S1074+Multi3*SimulationData!S2076+Multi4*SimulationData!S3078 -> 6.183212527 | T97: =Multi1*SimulationData!T72+Multi2*SimulationData!T1074+Multi3*SimulationData!T2076+Multi4*SimulationData!T3078 -> 5.926958527 | U97: =Multi1*SimulationData!U72+Multi2*SimulationData!U1074+Multi3*SimulationData!U2076+Multi4*SimulationData!U3078 -> 5.767622217 | V97: =Multi1*SimulationData!V72+Multi2*SimulationData!V1074+Multi3*SimulationData!V2076+Multi4*SimulationData!V3078 -> 5.545008062 | W97: =Multi1*SimulationData!W72+Multi2*SimulationData!W1074+Multi3*SimulationData!W2076+Multi4*SimulationData!W3078 -> 5.366049489 | X97: =Multi1*SimulationData!X72+Multi2*SimulationData!X1074+Multi3*SimulationData!X2076+Multi4*SimulationData!X3078 -> 5.379151121 | Y97: =Multi1*SimulationData!Y72+Multi2*SimulationData!Y1074+Multi3*SimulationData!Y2076+Multi4*SimulationData!Y3078 -> 4.538761775 | Z97: =Multi1*SimulationData!Z72+Multi2*SimulationData!Z1074+Multi3*SimulationData!Z2076+Multi4*SimulationData!Z3078 -> 4.870838338 | AA97: =Multi1*SimulationData!AA72+Multi2*SimulationData!AA1074+Multi3*SimulationData!AA2076+Multi4*SimulationData!AA3078 -> 3.941552952 | AB97: =Multi1*SimulationData!AB72+Multi2*SimulationData!AB1074+Multi3*SimulationData!AB2076+Multi4*SimulationData!AB3078 -> 4.238142958 | AC97: =Multi1*SimulationData!AC72+Multi2*SimulationData!AC1074+Multi3*SimulationData!AC2076+Multi4*SimulationData!AC3078 -> 3.352430379 | AD97: =Multi1*SimulationData!AD72+Multi2*SimulationData!AD1074+Multi3*SimulationData!AD2076+Multi4*SimulationData!AD3078 -> 3.634539229 | AE97: =Multi1*SimulationData!AE72+Multi2*SimulationData!AE1074+Multi3*SimulationData!AE2076+Multi4*SimulationData!AE3078 -> 2.683033258
B98: Simulation 71 | C98: =Multi1*SimulationData!C73+Multi2*SimulationData!C1075+Multi3*SimulationData!C2077+Multi4*SimulationData!C3079 -> 3.715804598 | D98: =Multi1*SimulationData!D73+Multi2*SimulationData!D1075+Multi3*SimulationData!D2077+Multi4*SimulationData!D3079 -> 3.865017726 | E98: =Multi1*SimulationData!E73+Multi2*SimulationData!E1075+Multi3*SimulationData!E2077+Multi4*SimulationData!E3079 -> 3.596613134 | F98: =Multi1*SimulationData!F73+Multi2*SimulationData!F1075+Multi3*SimulationData!F2077+Multi4*SimulationData!F3079 -> 3.388657636 | G98: =Multi1*SimulationData!G73+Multi2*SimulationData!G1075+Multi3*SimulationData!G2077+Multi4*SimulationData!G3079 -> 3.579170704 | H98: =Multi1*SimulationData!H73+Multi2*SimulationData!H1075+Multi3*SimulationData!H2077+Multi4*SimulationData!H3079 -> 2.890214332 | I98: =Multi1*SimulationData!I73+Multi2*SimulationData!I1075+Multi3*SimulationData!I2077+Multi4*SimulationData!I3079 -> 2.002172131 | J98: =Multi1*SimulationData!J73+Multi2*SimulationData!J1075+Multi3*SimulationData!J2077+Multi4*SimulationData!J3079 -> 2.463247359 | K98: =Multi1*SimulationData!K73+Multi2*SimulationData!K1075+Multi3*SimulationData!K2077+Multi4*SimulationData!K3079 -> 0.8300398349 | L98: =Multi1*SimulationData!L73+Multi2*SimulationData!L1075+Multi3*SimulationData!L2077+Multi4*SimulationData!L3079 -> 0.6131199928 | M98: =Multi1*SimulationData!M73+Multi2*SimulationData!M1075+Multi3*SimulationData!M2077+Multi4*SimulationData!M3079 -> 0.3354993054 | N98: =Multi1*SimulationData!N73+Multi2*SimulationData!N1075+Multi3*SimulationData!N2077+Multi4*SimulationData!N3079 -> 0.0227912664 | O98: =Multi1*SimulationData!O73+Multi2*SimulationData!O1075+Multi3*SimulationData!O2077+Multi4*SimulationData!O3079 -> 0.08755811021 | P98: =Multi1*SimulationData!P73+Multi2*SimulationData!P1075+Multi3*SimulationData!P2077+Multi4*SimulationData!P3079 -> 0.1911336022 | Q98: =Multi1*SimulationData!Q73+Multi2*SimulationData!Q1075+Multi3*SimulationData!Q2077+Multi4*SimulationData!Q3079 -> 0.1797170373 | R98: =Multi1*SimulationData!R73+Multi2*SimulationData!R1075+Multi3*SimulationData!R2077+Multi4*SimulationData!R3079 -> 0.2183445523 | S98: =Multi1*SimulationData!S73+Multi2*SimulationData!S1075+Multi3*SimulationData!S2077+Multi4*SimulationData!S3079 -> 0.1824220691 | T98: =Multi1*SimulationData!T73+Multi2*SimulationData!T1075+Multi3*SimulationData!T2077+Multi4*SimulationData!T3079 -> 0.09139196129 | U98: =Multi1*SimulationData!U73+Multi2*SimulationData!U1075+Multi3*SimulationData!U2077+Multi4*SimulationData!U3079 -> 0.05656849424 | V98: =Multi1*SimulationData!V73+Multi2*SimulationData!V1075+Multi3*SimulationData!V2077+Multi4*SimulationData!V3079 -> 0.01466577725 | W98: =Multi1*SimulationData!W73+Multi2*SimulationData!W1075+Multi3*SimulationData!W2077+Multi4*SimulationData!W3079 -> 5.453704957e-07 | X98: =Multi1*SimulationData!X73+Multi2*SimulationData!X1075+Multi3*SimulationData!X2077+Multi4*SimulationData!X3079 -> 0 | Y98: =Multi1*SimulationData!Y73+Multi2*SimulationData!Y1075+Multi3*SimulationData!Y2077+Multi4*SimulationData!Y3079 -> 0 | Z98: =Multi1*SimulationData!Z73+Multi2*SimulationData!Z1075+Multi3*SimulationData!Z2077+Multi4*SimulationData!Z3079 -> 0 | AA98: =Multi1*SimulationData!AA73+Multi2*SimulationData!AA1075+Multi3*SimulationData!AA2077+Multi4*SimulationData!AA3079 -> 0 | AB98: =Multi1*SimulationData!AB73+Multi2*SimulationData!AB1075+Multi3*SimulationData!AB2077+Multi4*SimulationData!AB3079 -> 0 | AC98: =Multi1*SimulationData!AC73+Multi2*SimulationData!AC1075+Multi3*SimulationData!AC2077+Multi4*SimulationData!AC3079 -> 0 | AD98: =Multi1*SimulationData!AD73+Multi2*SimulationData!AD1075+Multi3*SimulationData!AD2077+Multi4*SimulationData!AD3079 -> 0 | AE98: =Multi1*SimulationData!AE73+Multi2*SimulationData!AE1075+Multi3*SimulationData!AE2077+Multi4*SimulationData!AE3079 -> 0
B99: Simulation 72 | C99: =Multi1*SimulationData!C74+Multi2*SimulationData!C1076+Multi3*SimulationData!C2078+Multi4*SimulationData!C3080 -> 3.715804598 | D99: =Multi1*SimulationData!D74+Multi2*SimulationData!D1076+Multi3*SimulationData!D2078+Multi4*SimulationData!D3080 -> 3.402657032 | E99: =Multi1*SimulationData!E74+Multi2*SimulationData!E1076+Multi3*SimulationData!E2078+Multi4*SimulationData!E3080 -> 5.099224033 | F99: =Multi1*SimulationData!F74+Multi2*SimulationData!F1076+Multi3*SimulationData!F2078+Multi4*SimulationData!F3080 -> 3.840654601 | G99: =Multi1*SimulationData!G74+Multi2*SimulationData!G1076+Multi3*SimulationData!G2078+Multi4*SimulationData!G3080 -> 6.141330605 | H99: =Multi1*SimulationData!H74+Multi2*SimulationData!H1076+Multi3*SimulationData!H2078+Multi4*SimulationData!H3080 -> 5.490321016 | I99: =Multi1*SimulationData!I74+Multi2*SimulationData!I1076+Multi3*SimulationData!I2078+Multi4*SimulationData!I3080 -> 4.244117974 | J99: =Multi1*SimulationData!J74+Multi2*SimulationData!J1076+Multi3*SimulationData!J2078+Multi4*SimulationData!J3080 -> 4.646760437 | K99: =Multi1*SimulationData!K74+Multi2*SimulationData!K1076+Multi3*SimulationData!K2078+Multi4*SimulationData!K3080 -> 5.099808452 | L99: =Multi1*SimulationData!L74+Multi2*SimulationData!L1076+Multi3*SimulationData!L2078+Multi4*SimulationData!L3080 -> 4.616486868 | M99: =Multi1*SimulationData!M74+Multi2*SimulationData!M1076+Multi3*SimulationData!M2078+Multi4*SimulationData!M3080 -> 6.968295686 | N99: =Multi1*SimulationData!N74+Multi2*SimulationData!N1076+Multi3*SimulationData!N2078+Multi4*SimulationData!N3080 -> 6.875349969 | O99: =Multi1*SimulationData!O74+Multi2*SimulationData!O1076+Multi3*SimulationData!O2078+Multi4*SimulationData!O3080 -> 7.620394861 | P99: =Multi1*SimulationData!P74+Multi2*SimulationData!P1076+Multi3*SimulationData!P2078+Multi4*SimulationData!P3080 -> 7.07156269 | Q99: =Multi1*SimulationData!Q74+Multi2*SimulationData!Q1076+Multi3*SimulationData!Q2078+Multi4*SimulationData!Q3080 -> 7.407687557 | R99: =Multi1*SimulationData!R74+Multi2*SimulationData!R1076+Multi3*SimulationData!R2078+Multi4*SimulationData!R3080 -> 7.562752042 | S99: =Multi1*SimulationData!S74+Multi2*SimulationData!S1076+Multi3*SimulationData!S2078+Multi4*SimulationData!S3080 -> 7.184618552 | T99: =Multi1*SimulationData!T74+Multi2*SimulationData!T1076+Multi3*SimulationData!T2078+Multi4*SimulationData!T3080 -> 7.172729513 | U99: =Multi1*SimulationData!U74+Multi2*SimulationData!U1076+Multi3*SimulationData!U2078+Multi4*SimulationData!U3080 -> 6.91930052 | V99: =Multi1*SimulationData!V74+Multi2*SimulationData!V1076+Multi3*SimulationData!V2078+Multi4*SimulationData!V3080 -> 6.730324863 | W99: =Multi1*SimulationData!W74+Multi2*SimulationData!W1076+Multi3*SimulationData!W2078+Multi4*SimulationData!W3080 -> 6.624223675 | X99: =Multi1*SimulationData!X74+Multi2*SimulationData!X1076+Multi3*SimulationData!X2078+Multi4*SimulationData!X3080 -> 6.752163299 | Y99: =Multi1*SimulationData!Y74+Multi2*SimulationData!Y1076+Multi3*SimulationData!Y2078+Multi4*SimulationData!Y3080 -> 5.786908282 | Z99: =Multi1*SimulationData!Z74+Multi2*SimulationData!Z1076+Multi3*SimulationData!Z2078+Multi4*SimulationData!Z3080 -> 5.976662722 | AA99: =Multi1*SimulationData!AA74+Multi2*SimulationData!AA1076+Multi3*SimulationData!AA2078+Multi4*SimulationData!AA3080 -> 4.98142835 | AB99: =Multi1*SimulationData!AB74+Multi2*SimulationData!AB1076+Multi3*SimulationData!AB2078+Multi4*SimulationData!AB3080 -> 5.201521427 | AC99: =Multi1*SimulationData!AC74+Multi2*SimulationData!AC1076+Multi3*SimulationData!AC2078+Multi4*SimulationData!AC3080 -> 4.220366423 | AD99: =Multi1*SimulationData!AD74+Multi2*SimulationData!AD1076+Multi3*SimulationData!AD2078+Multi4*SimulationData!AD3080 -> 4.422840518 | AE99: =Multi1*SimulationData!AE74+Multi2*SimulationData!AE1076+Multi3*SimulationData!AE2078+Multi4*SimulationData!AE3080 -> 3.38388746
B100: Simulation 73 | C100: =Multi1*SimulationData!C75+Multi2*SimulationData!C1077+Multi3*SimulationData!C2079+Multi4*SimulationData!C3081 -> 3.715804598 | D100: =Multi1*SimulationData!D75+Multi2*SimulationData!D1077+Multi3*SimulationData!D2079+Multi4*SimulationData!D3081 -> 4.906935264 | E100: =Multi1*SimulationData!E75+Multi2*SimulationData!E1077+Multi3*SimulationData!E2079+Multi4*SimulationData!E3081 -> 4.73537779 | F100: =Multi1*SimulationData!F75+Multi2*SimulationData!F1077+Multi3*SimulationData!F2079+Multi4*SimulationData!F3081 -> 3.163979666 | G100: =Multi1*SimulationData!G75+Multi2*SimulationData!G1077+Multi3*SimulationData!G2079+Multi4*SimulationData!G3081 -> 3.161012364 | H100: =Multi1*SimulationData!H75+Multi2*SimulationData!H1077+Multi3*SimulationData!H2079+Multi4*SimulationData!H3081 -> 3.254499167 | I100: =Multi1*SimulationData!I75+Multi2*SimulationData!I1077+Multi3*SimulationData!I2079+Multi4*SimulationData!I3081 -> 2.926088613 | J100: =Multi1*SimulationData!J75+Multi2*SimulationData!J1077+Multi3*SimulationData!J2079+Multi4*SimulationData!J3081 -> 3.012921987 | K100: =Multi1*SimulationData!K75+Multi2*SimulationData!K1077+Multi3*SimulationData!K2079+Multi4*SimulationData!K3081 -> 4.5972326 | L100: =Multi1*SimulationData!L75+Multi2*SimulationData!L1077+Multi3*SimulationData!L2079+Multi4*SimulationData!L3081 -> 4.956628077 | M100: =Multi1*SimulationData!M75+Multi2*SimulationData!M1077+Multi3*SimulationData!M2079+Multi4*SimulationData!M3081 -> 5.066189803 | N100: =Multi1*SimulationData!N75+Multi2*SimulationData!N1077+Multi3*SimulationData!N2079+Multi4*SimulationData!N3081 -> 5.17791266 | O100: =Multi1*SimulationData!O75+Multi2*SimulationData!O1077+Multi3*SimulationData!O2079+Multi4*SimulationData!O3081 -> 6.026042693 | P100: =Multi1*SimulationData!P75+Multi2*SimulationData!P1077+Multi3*SimulationData!P2079+Multi4*SimulationData!P3081 -> 5.690320742 | Q100: =Multi1*SimulationData!Q75+Multi2*SimulationData!Q1077+Multi3*SimulationData!Q2079+Multi4*SimulationData!Q3081 -> 5.4321834 | R100: =Multi1*SimulationData!R75+Multi2*SimulationData!R1077+Multi3*SimulationData!R2079+Multi4*SimulationData!R3081 -> 5.045965827 | S100: =Multi1*SimulationData!S75+Multi2*SimulationData!S1077+Multi3*SimulationData!S2079+Multi4*SimulationData!S3081 -> 5.191501617 | T100: =Multi1*SimulationData!T75+Multi2*SimulationData!T1077+Multi3*SimulationData!T2079+Multi4*SimulationData!T3081 -> 5.330482041 | U100: =Multi1*SimulationData!U75+Multi2*SimulationData!U1077+Multi3*SimulationData!U2079+Multi4*SimulationData!U3081 -> 5.007006773 | V100: =Multi1*SimulationData!V75+Multi2*SimulationData!V1077+Multi3*SimulationData!V2079+Multi4*SimulationData!V3081 -> 4.962882018 | W100: =Multi1*SimulationData!W75+Multi2*SimulationData!W1077+Multi3*SimulationData!W2079+Multi4*SimulationData!W3081 -> 4.58274734 | X100: =Multi1*SimulationData!X75+Multi2*SimulationData!X1077+Multi3*SimulationData!X2079+Multi4*SimulationData!X3081 -> 4.633860021 | Y100: =Multi1*SimulationData!Y75+Multi2*SimulationData!Y1077+Multi3*SimulationData!Y2079+Multi4*SimulationData!Y3081 -> 3.709284263 | Z100: =Multi1*SimulationData!Z75+Multi2*SimulationData!Z1077+Multi3*SimulationData!Z2079+Multi4*SimulationData!Z3081 -> 4.023563486 | AA100: =Multi1*SimulationData!AA75+Multi2*SimulationData!AA1077+Multi3*SimulationData!AA2079+Multi4*SimulationData!AA3081 -> 3.098114903 | AB100: =Multi1*SimulationData!AB75+Multi2*SimulationData!AB1077+Multi3*SimulationData!AB2079+Multi4*SimulationData!AB3081 -> 3.367092971 | AC100: =Multi1*SimulationData!AC75+Multi2*SimulationData!AC1077+Multi3*SimulationData!AC2079+Multi4*SimulationData!AC3081 -> 2.446726765 | AD100: =Multi1*SimulationData!AD75+Multi2*SimulationData!AD1077+Multi3*SimulationData!AD2079+Multi4*SimulationData!AD3081 -> 2.706188772 | AE100: =Multi1*SimulationData!AE75+Multi2*SimulationData!AE1077+Multi3*SimulationData!AE2079+Multi4*SimulationData!AE3081 -> 1.736787466
B101: Simulation 74 | C101: =Multi1*SimulationData!C76+Multi2*SimulationData!C1078+Multi3*SimulationData!C2080+Multi4*SimulationData!C3082 -> 3.715804598 | D101: =Multi1*SimulationData!D76+Multi2*SimulationData!D1078+Multi3*SimulationData!D2080+Multi4*SimulationData!D3082 -> 3.2785267 | E101: =Multi1*SimulationData!E76+Multi2*SimulationData!E1078+Multi3*SimulationData!E2080+Multi4*SimulationData!E3082 -> 2.900375155 | F101: =Multi1*SimulationData!F76+Multi2*SimulationData!F1078+Multi3*SimulationData!F2080+Multi4*SimulationData!F3082 -> 3.239273259 | G101: =Multi1*SimulationData!G76+Multi2*SimulationData!G1078+Multi3*SimulationData!G2080+Multi4*SimulationData!G3082 -> 2.47719665 | H101: =Multi1*SimulationData!H76+Multi2*SimulationData!H1078+Multi3*SimulationData!H2080+Multi4*SimulationData!H3082 -> 0.9658406946 | I101: =Multi1*SimulationData!I76+Multi2*SimulationData!I1078+Multi3*SimulationData!I2080+Multi4*SimulationData!I3082 -> 1.443737416 | J101: =Multi1*SimulationData!J76+Multi2*SimulationData!J1078+Multi3*SimulationData!J2080+Multi4*SimulationData!J3082 -> 1.475397347 | K101: =Multi1*SimulationData!K76+Multi2*SimulationData!K1078+Multi3*SimulationData!K2080+Multi4*SimulationData!K3082 -> 0.7843232335 | L101: =Multi1*SimulationData!L76+Multi2*SimulationData!L1078+Multi3*SimulationData!L2080+Multi4*SimulationData!L3082 -> 1.09214102 | M101: =Multi1*SimulationData!M76+Multi2*SimulationData!M1078+Multi3*SimulationData!M2080+Multi4*SimulationData!M3082 -> 1.120307354 | N101: =Multi1*SimulationData!N76+Multi2*SimulationData!N1078+Multi3*SimulationData!N2080+Multi4*SimulationData!N3082 -> 1.180351881 | O101: =Multi1*SimulationData!O76+Multi2*SimulationData!O1078+Multi3*SimulationData!O2080+Multi4*SimulationData!O3082 -> 0.7145280933 | P101: =Multi1*SimulationData!P76+Multi2*SimulationData!P1078+Multi3*SimulationData!P2080+Multi4*SimulationData!P3082 -> 0.635301174 | Q101: =Multi1*SimulationData!Q76+Multi2*SimulationData!Q1078+Multi3*SimulationData!Q2080+Multi4*SimulationData!Q3082 -> 0.865406736 | R101: =Multi1*SimulationData!R76+Multi2*SimulationData!R1078+Multi3*SimulationData!R2080+Multi4*SimulationData!R3082 -> 0.9228364698 | S101: =Multi1*SimulationData!S76+Multi2*SimulationData!S1078+Multi3*SimulationData!S2080+Multi4*SimulationData!S3082 -> 0.7777307176 | T101: =Multi1*SimulationData!T76+Multi2*SimulationData!T1078+Multi3*SimulationData!T2080+Multi4*SimulationData!T3082 -> 0.4000176199 | U101: =Multi1*SimulationData!U76+Multi2*SimulationData!U1078+Multi3*SimulationData!U2080+Multi4*SimulationData!U3082 -> 0.3275654173 | V101: =Multi1*SimulationData!V76+Multi2*SimulationData!V1078+Multi3*SimulationData!V2080+Multi4*SimulationData!V3082 -> 0.1281375981 | W101: =Multi1*SimulationData!W76+Multi2*SimulationData!W1078+Multi3*SimulationData!W2080+Multi4*SimulationData!W3082 -> 0.002611592017 | X101: =Multi1*SimulationData!X76+Multi2*SimulationData!X1078+Multi3*SimulationData!X2080+Multi4*SimulationData!X3082 -> 0 | Y101: =Multi1*SimulationData!Y76+Multi2*SimulationData!Y1078+Multi3*SimulationData!Y2080+Multi4*SimulationData!Y3082 -> 0 | Z101: =Multi1*SimulationData!Z76+Multi2*SimulationData!Z1078+Multi3*SimulationData!Z2080+Multi4*SimulationData!Z3082 -> 0 | AA101: =Multi1*SimulationData!AA76+Multi2*SimulationData!AA1078+Multi3*SimulationData!AA2080+Multi4*SimulationData!AA3082 -> 0 | AB101: =Multi1*SimulationData!AB76+Multi2*SimulationData!AB1078+Multi3*SimulationData!AB2080+Multi4*SimulationData!AB3082 -> 0 | AC101: =Multi1*SimulationData!AC76+Multi2*SimulationData!AC1078+Multi3*SimulationData!AC2080+Multi4*SimulationData!AC3082 -> 0 | AD101: =Multi1*SimulationData!AD76+Multi2*SimulationData!AD1078+Multi3*SimulationData!AD2080+Multi4*SimulationData!AD3082 -> 0 | AE101: =Multi1*SimulationData!AE76+Multi2*SimulationData!AE1078+Multi3*SimulationData!AE2080+Multi4*SimulationData!AE3082 -> 0
B102: Simulation 75 | C102: =Multi1*SimulationData!C77+Multi2*SimulationData!C1079+Multi3*SimulationData!C2081+Multi4*SimulationData!C3083 -> 3.715804598 | D102: =Multi1*SimulationData!D77+Multi2*SimulationData!D1079+Multi3*SimulationData!D2081+Multi4*SimulationData!D3083 -> 2.040680498 | E102: =Multi1*SimulationData!E77+Multi2*SimulationData!E1079+Multi3*SimulationData!E2081+Multi4*SimulationData!E3083 -> 1.342273893 | F102: =Multi1*SimulationData!F77+Multi2*SimulationData!F1079+Multi3*SimulationData!F2081+Multi4*SimulationData!F3083 -> 3.884854724 | G102: =Multi1*SimulationData!G77+Multi2*SimulationData!G1079+Multi3*SimulationData!G2081+Multi4*SimulationData!G3083 -> 4.813651471 | H102: =Multi1*SimulationData!H77+Multi2*SimulationData!H1079+Multi3*SimulationData!H2081+Multi4*SimulationData!H3083 -> 3.810181104 | I102: =Multi1*SimulationData!I77+Multi2*SimulationData!I1079+Multi3*SimulationData!I2081+Multi4*SimulationData!I3083 -> 4.713420968 | J102: =Multi1*SimulationData!J77+Multi2*SimulationData!J1079+Multi3*SimulationData!J2081+Multi4*SimulationData!J3083 -> 2.804472746 | K102: =Multi1*SimulationData!K77+Multi2*SimulationData!K1079+Multi3*SimulationData!K2081+Multi4*SimulationData!K3083 -> 2.971342085 | L102: =Multi1*SimulationData!L77+Multi2*SimulationData!L1079+Multi3*SimulationData!L2081+Multi4*SimulationData!L3083 -> 1.602285103 | M102: =Multi1*SimulationData!M77+Multi2*SimulationData!M1079+Multi3*SimulationData!M2081+Multi4*SimulationData!M3083 -> 1.765269732 | N102: =Multi1*SimulationData!N77+Multi2*SimulationData!N1079+Multi3*SimulationData!N2081+Multi4*SimulationData!N3083 -> 0.4546189505 | O102: =Multi1*SimulationData!O77+Multi2*SimulationData!O1079+Multi3*SimulationData!O2081+Multi4*SimulationData!O3083 -> 0.3236709994 | P102: =Multi1*SimulationData!P77+Multi2*SimulationData!P1079+Multi3*SimulationData!P2081+Multi4*SimulationData!P3083 -> 0.06168755781 | Q102: =Multi1*SimulationData!Q77+Multi2*SimulationData!Q1079+Multi3*SimulationData!Q2081+Multi4*SimulationData!Q3083 -> 0.1251173446 | R102: =Multi1*SimulationData!R77+Multi2*SimulationData!R1079+Multi3*SimulationData!R2081+Multi4*SimulationData!R3083 -> 0.0558151881 | S102: =Multi1*SimulationData!S77+Multi2*SimulationData!S1079+Multi3*SimulationData!S2081+Multi4*SimulationData!S3083 -> 0.06884750333 | T102: =Multi1*SimulationData!T77+Multi2*SimulationData!T1079+Multi3*SimulationData!T2081+Multi4*SimulationData!T3083 -> 0.03880980137 | U102: =Multi1*SimulationData!U77+Multi2*SimulationData!U1079+Multi3*SimulationData!U2081+Multi4*SimulationData!U3083 -> 0.01067890058 | V102: =Multi1*SimulationData!V77+Multi2*SimulationData!V1079+Multi3*SimulationData!V2081+Multi4*SimulationData!V3083 -> 0.001331691639 | W102: =Multi1*SimulationData!W77+Multi2*SimulationData!W1079+Multi3*SimulationData!W2081+Multi4*SimulationData!W3083 -> 8.569131625e-10 | X102: =Multi1*SimulationData!X77+Multi2*SimulationData!X1079+Multi3*SimulationData!X2081+Multi4*SimulationData!X3083 -> 0 | Y102: =Multi1*SimulationData!Y77+Multi2*SimulationData!Y1079+Multi3*SimulationData!Y2081+Multi4*SimulationData!Y3083 -> 0 | Z102: =Multi1*SimulationData!Z77+Multi2*SimulationData!Z1079+Multi3*SimulationData!Z2081+Multi4*SimulationData!Z3083 -> 0 | AA102: =Multi1*SimulationData!AA77+Multi2*SimulationData!AA1079+Multi3*SimulationData!AA2081+Multi4*SimulationData!AA3083 -> 0 | AB102: =Multi1*SimulationData!AB77+Multi2*SimulationData!AB1079+Multi3*SimulationData!AB2081+Multi4*SimulationData!AB3083 -> 0 | AC102: =Multi1*SimulationData!AC77+Multi2*SimulationData!AC1079+Multi3*SimulationData!AC2081+Multi4*SimulationData!AC3083 -> 0 | AD102: =Multi1*SimulationData!AD77+Multi2*SimulationData!AD1079+Multi3*SimulationData!AD2081+Multi4*SimulationData!AD3083 -> 0 | AE102: =Multi1*SimulationData!AE77+Multi2*SimulationData!AE1079+Multi3*SimulationData!AE2081+Multi4*SimulationData!AE3083 -> 0
B103: Simulation 76 | C103: =Multi1*SimulationData!C78+Multi2*SimulationData!C1080+Multi3*SimulationData!C2082+Multi4*SimulationData!C3084 -> 3.715804598 | D103: =Multi1*SimulationData!D78+Multi2*SimulationData!D1080+Multi3*SimulationData!D2082+Multi4*SimulationData!D3084 -> 3.536123767 | E103: =Multi1*SimulationData!E78+Multi2*SimulationData!E1080+Multi3*SimulationData!E2082+Multi4*SimulationData!E3084 -> 2.934921979 | F103: =Multi1*SimulationData!F78+Multi2*SimulationData!F1080+Multi3*SimulationData!F2082+Multi4*SimulationData!F3084 -> 3.078762995 | G103: =Multi1*SimulationData!G78+Multi2*SimulationData!G1080+Multi3*SimulationData!G2082+Multi4*SimulationData!G3084 -> 4.121274399 | H103: =Multi1*SimulationData!H78+Multi2*SimulationData!H1080+Multi3*SimulationData!H2082+Multi4*SimulationData!H3084 -> 3.535778426 | I103: =Multi1*SimulationData!I78+Multi2*SimulationData!I1080+Multi3*SimulationData!I2082+Multi4*SimulationData!I3084 -> 3.269135231 | J103: =Multi1*SimulationData!J78+Multi2*SimulationData!J1080+Multi3*SimulationData!J2082+Multi4*SimulationData!J3084 -> 3.112554817 | K103: =Multi1*SimulationData!K78+Multi2*SimulationData!K1080+Multi3*SimulationData!K2082+Multi4*SimulationData!K3084 -> 2.915410842 | L103: =Multi1*SimulationData!L78+Multi2*SimulationData!L1080+Multi3*SimulationData!L2082+Multi4*SimulationData!L3084 -> 3.013926203 | M103: =Multi1*SimulationData!M78+Multi2*SimulationData!M1080+Multi3*SimulationData!M2082+Multi4*SimulationData!M3084 -> 4.703078098 | N103: =Multi1*SimulationData!N78+Multi2*SimulationData!N1080+Multi3*SimulationData!N2082+Multi4*SimulationData!N3084 -> 6.881017933 | O103: =Multi1*SimulationData!O78+Multi2*SimulationData!O1080+Multi3*SimulationData!O2082+Multi4*SimulationData!O3084 -> 8.352713653 | P103: =Multi1*SimulationData!P78+Multi2*SimulationData!P1080+Multi3*SimulationData!P2082+Multi4*SimulationData!P3084 -> 8.473964744 | Q103: =Multi1*SimulationData!Q78+Multi2*SimulationData!Q1080+Multi3*SimulationData!Q2082+Multi4*SimulationData!Q3084 -> 8.458714897 | R103: =Multi1*SimulationData!R78+Multi2*SimulationData!R1080+Multi3*SimulationData!R2082+Multi4*SimulationData!R3084 -> 8.840213005 | S103: =Multi1*SimulationData!S78+Multi2*SimulationData!S1080+Multi3*SimulationData!S2082+Multi4*SimulationData!S3084 -> 8.692892963 | T103: =Multi1*SimulationData!T78+Multi2*SimulationData!T1080+Multi3*SimulationData!T2082+Multi4*SimulationData!T3084 -> 8.80318734 | U103: =Multi1*SimulationData!U78+Multi2*SimulationData!U1080+Multi3*SimulationData!U2082+Multi4*SimulationData!U3084 -> 8.634313578 | V103: =Multi1*SimulationData!V78+Multi2*SimulationData!V1080+Multi3*SimulationData!V2082+Multi4*SimulationData!V3084 -> 8.231709018 | W103: =Multi1*SimulationData!W78+Multi2*SimulationData!W1080+Multi3*SimulationData!W2082+Multi4*SimulationData!W3084 -> 8.561581756 | X103: =Multi1*SimulationData!X78+Multi2*SimulationData!X1080+Multi3*SimulationData!X2082+Multi4*SimulationData!X3084 -> 8.704863969 | Y103: =Multi1*SimulationData!Y78+Multi2*SimulationData!Y1080+Multi3*SimulationData!Y2082+Multi4*SimulationData!Y3084 -> 7.919335865 | Z103: =Multi1*SimulationData!Z78+Multi2*SimulationData!Z1080+Multi3*SimulationData!Z2082+Multi4*SimulationData!Z3084 -> 8.319691808 | AA103: =Multi1*SimulationData!AA78+Multi2*SimulationData!AA1080+Multi3*SimulationData!AA2082+Multi4*SimulationData!AA3084 -> 7.426418405 | AB103: =Multi1*SimulationData!AB78+Multi2*SimulationData!AB1080+Multi3*SimulationData!AB2082+Multi4*SimulationData!AB3084 -> 7.75781959 | AC103: =Multi1*SimulationData!AC78+Multi2*SimulationData!AC1080+Multi3*SimulationData!AC2082+Multi4*SimulationData!AC3084 -> 6.859282576 | AD103: =Multi1*SimulationData!AD78+Multi2*SimulationData!AD1080+Multi3*SimulationData!AD2082+Multi4*SimulationData!AD3084 -> 7.103178973 | AE103: =Multi1*SimulationData!AE78+Multi2*SimulationData!AE1080+Multi3*SimulationData!AE2082+Multi4*SimulationData!AE3084 -> 6.076274918
